Department Family,Entity,Date,Expense Type,Expense Area,Supplier,Transaction Number,Amount,Vat No,
Department of Health,CT Revenue Funds,06/04/2017,Accomodation Insurance,15 Deercote Hortonwood Premises,TELFORD & WREKIN COUNCIL,4317952,869.95,162 3321 00,
Department of Health,CT Revenue Funds,06/04/2017,Accomodation Insurance,14 Deercote Hollinswood Premises,TELFORD & WREKIN COUNCIL,4317952,869.95,162 3321 00,
Department of Health,CT Revenue Funds,06/04/2017,Accomodation Insurance,Stepping Stones,TELFORD & WREKIN COUNCIL,4318177,2627.39,162 3321 00,
Department of Health,CT Revenue Funds,06/04/2017,Additions - Assets Under Construction Bishops Castle Bishops Castle Hospital Roofing Replacement,Balance Sheet Suspense,HCT CONSTRUCTION CONSULTANTS LTD,06120,350.00,,
Department of Health,CT Revenue Funds,06/04/2017,Additions - Assets Under Construction Bishops Castle Hospital Replacement Flooring,Balance Sheet Suspense,HCT CONSTRUCTION CONSULTANTS LTD,06118,350.00,,
Department of Health,CT Revenue Funds,06/04/2017,Additions - Assets Under Construction Bridgnorth Hospital Car Park and Paving Replacement,Balance Sheet Suspense,HCT CONSTRUCTION CONSULTANTS LTD,06119,1250.00,,
Department of Health,CT Revenue Funds,06/04/2017,Additions - Assets Under Construction Bridgnorth Hospital Replacement Flooring,Balance Sheet Suspense,HCT CONSTRUCTION CONSULTANTS LTD,06118,1375.00,,
Department of Health,CT Revenue Funds,06/04/2017,Additions - Assets Under Construction Bridgnorth Hospital Roofing Replacement,Balance Sheet Suspense,HCT CONSTRUCTION CONSULTANTS LTD,06120,350.00,,
Department of Health,CT Revenue Funds,06/04/2017,Additions - Assets Under Construction I/T Devices for Mobile Working,Balance Sheet Suspense,MISCO COMPUTER SUPPLIES LTD,11291985,-0.05,494 1756 15,
Department of Health,CT Revenue Funds,06/04/2017,Additions - Assets Under Construction I/T Devices for Mobile Working,Balance Sheet Suspense,MISCO COMPUTER SUPPLIES LTD,11291985,-112274.34,494 1756 15,
Department of Health,CT Revenue Funds,06/04/2017,Additions - Assets Under Construction I/T Devices for Mobile Working,Balance Sheet Suspense,MISCO COMPUTER SUPPLIES LTD,11291985,112274.34,494 1756 15,
Department of Health,CT Revenue Funds,06/04/2017,Additions - Assets Under Construction I/T Devices for Mobile Working,Balance Sheet Suspense,MISCO COMPUTER SUPPLIES LTD,11291985,0.01,494 1756 15,
Department of Health,CT Revenue Funds,06/04/2017,Additions - Assets Under Construction I/T Devices for Mobile Working,Balance Sheet Suspense,MISCO COMPUTER SUPPLIES LTD,11291985,112274.34,494 1756 15,
Department of Health,CT Revenue Funds,06/04/2017,Additions - Assets Under Construction I/T Devices for Mobile Working,Balance Sheet Suspense,MISCO COMPUTER SUPPLIES LTD,11291985,-0.01,494 1756 15,
Department of Health,CT Revenue Funds,06/04/2017,Additions - Assets Under Construction I/T Devices for Mobile Working,Balance Sheet Suspense,MISCO COMPUTER SUPPLIES LTD,11291985,561371.68,494 1756 15,
Department of Health,CT Revenue Funds,06/04/2017,Additions - Assets Under Construction I/T Devices for Mobile Working,Balance Sheet Suspense,MISCO COMPUTER SUPPLIES LTD,11291985,-0.01,494 1756 15,
Department of Health,CT Revenue Funds,06/04/2017,Additions - Assets Under Construction I/T Devices for Mobile Working,Balance Sheet Suspense,MISCO COMPUTER SUPPLIES LTD,11291985,0.01,494 1756 15,
Department of Health,CT Revenue Funds,06/04/2017,Additions - Assets Under Construction IT Replacement Hardware,Balance Sheet Suspense,MISCO COMPUTER SUPPLIES LTD,11289612,1145.40,494 1756 15,
Department of Health,CT Revenue Funds,06/04/2017,Additions - Assets Under Construction IT Replacement Hardware,Balance Sheet Suspense,MISCO COMPUTER SUPPLIES LTD,11289612,5727.00,494 1756 15,
Department of Health,CT Revenue Funds,06/04/2017,Additions - Assets Under Construction Whitchurch Hospital Car Park and Road Resurfacing,Balance Sheet Suspense,HCT CONSTRUCTION CONSULTANTS LTD,06119,350.00,,
Department of Health,CT Revenue Funds,06/04/2017,Additions - Assets Under Construction Whitchurch Hospital Car Park and Road Resurfacing,Balance Sheet Suspense,CLC CONTRACTORS LTD,AP66787-001,3156.60,,
Department of Health,CT Revenue Funds,06/04/2017,Additions - Assets Under Construction Whitchurch Hospital Car Park and Road Resurfacing,Balance Sheet Suspense,CLC CONTRACTORS LTD,AP66787-001,15783.00,,
Department of Health,CT Revenue Funds,06/04/2017,Additions - Assets Under Construction Whitchurch Hospital Car Park and Road Resurfacing,Balance Sheet Suspense,CLC CONTRACTORS LTD,AP66787-001,-3156.60,,
Department of Health,CT Revenue Funds,06/04/2017,Additions - Assets Under Construction Whitchurch Hospital Roofing Replacement,Balance Sheet Suspense,HCT CONSTRUCTION CONSULTANTS LTD,06120,350.00,,
Department of Health,CT Revenue Funds,06/04/2017,Agency Admin & Clerical,MSK Management & Admin,PERTEMPS,P742513,75.15,844 2788 00,
Department of Health,CT Revenue Funds,06/04/2017,Agency Admin & Clerical,MSK Management & Admin,PERTEMPS,P742513,375.75,844 2788 00,
Department of Health,CT Revenue Funds,06/04/2017,Agency Admin & Clerical,MSK Management & Admin,PERTEMPS,P742514,79.43,844 2788 00,
Department of Health,CT Revenue Funds,06/04/2017,Agency Admin & Clerical,MSK Management & Admin,PERTEMPS,P742514,397.13,844 2788 00,
Department of Health,CT Revenue Funds,06/04/2017,Agency Admin & Clerical,MSK Management & Admin,PERTEMPS,P742515,475.66,844 2788 00,
Department of Health,CT Revenue Funds,06/04/2017,Agency Admin & Clerical,CAMHS Admin,PERTEMPS,P742523,25.97,844 2788 00,
Department of Health,CT Revenue Funds,06/04/2017,Agency Admin & Clerical,CAMHS Admin,PERTEMPS,P742523,129.84,844 2788 00,
Department of Health,CT Revenue Funds,06/04/2017,Agency Admin & Clerical,CAMHS Learning Disabilities,PERTEMPS,P742524,356.40,844 2788 00,
Department of Health,CT Revenue Funds,06/04/2017,Agency Admin & Clerical,CAMHS Learning Disabilities,PERTEMPS,P742524,71.28,844 2788 00,
Department of Health,CT Revenue Funds,06/04/2017,Agency Admin & Clerical,Community Eating Disorder Service,PERTEMPS,P742525,142.56,844 2788 00,
Department of Health,CT Revenue Funds,06/04/2017,Agency Admin & Clerical,Community Eating Disorder Service,PERTEMPS,P742525,28.51,844 2788 00,
Department of Health,CT Revenue Funds,06/04/2017,Agency Admin & Clerical,CAMHS Admin,PERTEMPS,P742526,88.50,844 2788 00,
Department of Health,CT Revenue Funds,06/04/2017,Agency Admin & Clerical,CAMHS Admin,PERTEMPS,P742526,442.50,844 2788 00,
Department of Health,CT Revenue Funds,06/04/2017,Agency Admin & Clerical,CAMHS Admin,PERTEMPS,P742527,88.50,844 2788 00,
Department of Health,CT Revenue Funds,06/04/2017,Agency Admin & Clerical,CAMHS Admin,PERTEMPS,P742527,442.50,844 2788 00,
Department of Health,CT Revenue Funds,06/04/2017,Agency Hlthcare Assistants & Support Staff,Bridgnorth Hospital Inpatient Ward,ID MEDICAL,10793,432.40,733 7385 18,
Department of Health,CT Revenue Funds,06/04/2017,Agency Hlthcare Assistants & Support Staff,Bishops Castle Hospital Inpatient Ward,ID MEDICAL,10915,701.74,733 7385 18,
Department of Health,CT Revenue Funds,06/04/2017,Agency Hlthcare Assistants & Support Staff,Bishops Castle Hospital Inpatient Ward,ID MEDICAL,10926,174.44,733 7385 18,
Department of Health,CT Revenue Funds,06/04/2017,Agency Hlthcare Assistants & Support Staff,Bishops Castle Hospital Inpatient Ward,ID MEDICAL,10928,185.12,733 7385 18,
Department of Health,CT Revenue Funds,06/04/2017,Agency Hlthcare Assistants & Support Staff,Bridgnorth Hospital Inpatient Ward,ID MEDICAL,10930,213.60,733 7385 18,
Department of Health,CT Revenue Funds,06/04/2017,Agency Hlthcare Assistants & Support Staff,Ludlow Hospital Inpatient Wards,ID MEDICAL,10931,213.60,733 7385 18,
Department of Health,CT Revenue Funds,06/04/2017,Agency Hlthcare Assistants & Support Staff,Ludlow Hospital Inpatient Wards,ID MEDICAL,10932,291.92,733 7385 18,
Department of Health,CT Revenue Funds,06/04/2017,Agency Hlthcare Assistants & Support Staff,Ludlow Hospital Inpatient Wards,ID MEDICAL,10933,370.24,733 7385 18,
Department of Health,CT Revenue Funds,06/04/2017,Agency Hlthcare Assistants & Support Staff,Ludlow Hospital Inpatient Wards,ID MEDICAL,10934,587.40,733 7385 18,
Department of Health,CT Revenue Funds,06/04/2017,Agency Hlthcare Assistants & Support Staff,Whitchurch Hospital Inpatient Ward,ID MEDICAL,10935,106.80,733 7385 18,
Department of Health,CT Revenue Funds,06/04/2017,Agency Hlthcare Assistants & Support Staff,Whitchurch Hospital Inpatient Ward,ID MEDICAL,10936,320.40,733 7385 18,
Department of Health,CT Revenue Funds,06/04/2017,Agency Hlthcare Assistants & Support Staff,Stoke Heath Prison Healthcare,ID MEDICAL,10937,199.36,733 7385 18,
Department of Health,CT Revenue Funds,06/04/2017,Agency Hlthcare Assistants & Support Staff,Bishops Castle Hospital Inpatient Ward,ID MEDICAL,10938,106.80,733 7385 18,
Department of Health,CT Revenue Funds,06/04/2017,Agency Hlthcare Assistants & Support Staff,Ludlow Hospital Inpatient Wards,ID MEDICAL,10938,377.36,733 7385 18,
Department of Health,CT Revenue Funds,06/04/2017,Agency Hlthcare Assistants & Support Staff,Ludlow Hospital Inpatient Wards,ID MEDICAL,10938,-106.80,733 7385 18,
Department of Health,CT Revenue Funds,06/04/2017,Agency Hlthcare Assistants & Support Staff,Bishops Castle Hospital Inpatient Ward,ID MEDICAL,10940,97.26,733 7385 18,
Department of Health,CT Revenue Funds,06/04/2017,Agency Hlthcare Assistants & Support Staff,Ludlow Hospital Inpatient Wards,ID MEDICAL,10942,291.92,733 7385 18,
Department of Health,CT Revenue Funds,06/04/2017,Agency Hlthcare Assistants & Support Staff,Ludlow Hospital Inpatient Wards,ID MEDICAL,10943,106.80,733 7385 18,
Department of Health,CT Revenue Funds,06/04/2017,Agency Hlthcare Assistants & Support Staff,Ludlow Hospital Inpatient Wards,ID MEDICAL,10944,382.06,733 7385 18,
Department of Health,CT Revenue Funds,06/04/2017,Agency Hlthcare Assistants & Support Staff,Ludlow Hospital Inpatient Wards,ID MEDICAL,10945,153.83,733 7385 18,
Department of Health,CT Revenue Funds,06/04/2017,Agency Hlthcare Assistants & Support Staff,Stoke Heath Prison Healthcare,ID MEDICAL,10946,156.64,733 7385 18,
Department of Health,CT Revenue Funds,06/04/2017,Agency Hlthcare Assistants & Support Staff,Ludlow Hospital Inpatient Wards,ID MEDICAL,10947,266.63,733 7385 18,
Department of Health,CT Revenue Funds,06/04/2017,Agency Hlthcare Assistants & Support Staff,Bishops Castle Hospital Inpatient Ward,ID MEDICAL,10948,178.00,733 7385 18,
Department of Health,CT Revenue Funds,06/04/2017,Agency Hlthcare Assistants & Support Staff,Bishops Castle Hospital Inpatient Ward,ID MEDICAL,10949,153.83,733 7385 18,
Department of Health,CT Revenue Funds,06/04/2017,Agency Hlthcare Assistants & Support Staff,Ludlow Hospital Inpatient Wards,ID MEDICAL,10950,165.75,733 7385 18,
Department of Health,CT Revenue Funds,06/04/2017,Agency Hlthcare Assistants & Support Staff,Stoke Heath Prison Healthcare,ID MEDICAL,517259,192.24,733 7385 18,
Department of Health,CT Revenue Funds,06/04/2017,Agency Hlthcare Assistants & Support Staff,Whitchurch Hospital Inpatient Ward,ID MEDICAL,517261,205.10,733 7385 18,
Department of Health,CT Revenue Funds,06/04/2017,Agency Hlthcare Assistants & Support Staff,Whitchurch Hospital Inpatient Ward,ID MEDICAL,517263,725.18,733 7385 18,
Department of Health,CT Revenue Funds,06/04/2017,Agency Hlthcare Assistants & Support Staff,Whitchurch Hospital Inpatient Ward,ID MEDICAL,517265,472.80,733 7385 18,
Department of Health,CT Revenue Funds,06/04/2017,Agency Hlthcare Assistants & Support Staff,Whitchurch Hospital Inpatient Ward,ID MEDICAL,517267,194.85,733 7385 18,
Department of Health,CT Revenue Funds,06/04/2017,Agency Hlthcare Assistants & Support Staff,Ludlow Hospital Inpatient Wards,ID MEDICAL,519863,215.36,733 7385 18,
Department of Health,CT Revenue Funds,06/04/2017,Agency Nursing,Oswestry Minor Injuries Unit,MSI RECRUITMENT LTD,253995,1528.26,933 2976 04,
Department of Health,CT Revenue Funds,06/04/2017,Agency Nursing,Oswestry Minor Injuries Unit,MSI RECRUITMENT LTD,256335,1193.30,933 2976 04,
Department of Health,CT Revenue Funds,06/04/2017,Agency Nursing,Oswestry Minor Injuries Unit,PULSE,3858282,496.60,676 2854 93,
Department of Health,CT Revenue Funds,06/04/2017,Agency Nursing,Bishops Castle Hospital Inpatient Ward,THORNBURY NURSING SERVICES LTD,3863811,522.58,676 2854 93,
Department of Health,CT Revenue Funds,06/04/2017,Agency Nursing,Oswestry Minor Injuries Unit,PULSE,3865867,365.76,676 2854 93,
Department of Health,CT Revenue Funds,06/04/2017,Agency Nursing,Bishops Castle Hospital Inpatient Ward,QUALITY CARE COVER,50001833,221.94,,
Department of Health,CT Revenue Funds,06/04/2017,Agency Nursing,Whitchurch Hospital Inpatient Ward,QUALITY CARE COVER,50001834,302.40,,
Department of Health,CT Revenue Funds,06/04/2017,Agency Nursing,Bishops Castle Hospital Inpatient Ward,ID MEDICAL,517212,327.60,733 7385 18,
Department of Health,CT Revenue Funds,06/04/2017,Agency Nursing,Bishops Castle Hospital Inpatient Ward,ID MEDICAL,517213,374.40,733 7385 18,
Department of Health,CT Revenue Funds,06/04/2017,Agency Nursing,Bishops Castle Hospital Inpatient Ward,ID MEDICAL,517214,327.60,733 7385 18,
Department of Health,CT Revenue Funds,06/04/2017,Agency Nursing,Bishops Castle Hospital Inpatient Ward,ID MEDICAL,517215,460.90,733 7385 18,
Department of Health,CT Revenue Funds,06/04/2017,Agency Nursing,Stoke Heath Prison Healthcare,ID MEDICAL,517257,1724.75,733 7385 18,
Department of Health,CT Revenue Funds,06/04/2017,Agency Nursing,Stoke Heath Prison Healthcare,ID MEDICAL,517258,329.74,733 7385 18,
Department of Health,CT Revenue Funds,06/04/2017,Agency Nursing,Whitchurch Hospital Inpatient Ward,ID MEDICAL,517260,486.72,733 7385 18,
Department of Health,CT Revenue Funds,06/04/2017,Agency Nursing,Whitchurch Hospital Inpatient Ward,ID MEDICAL,517262,327.60,733 7385 18,
Department of Health,CT Revenue Funds,06/04/2017,Agency Nursing,Whitchurch Hospital Inpatient Ward,ID MEDICAL,517264,720.08,733 7385 18,
Department of Health,CT Revenue Funds,06/04/2017,Agency Nursing,Whitchurch Hospital Inpatient Ward,ID MEDICAL,517266,403.30,733 7385 18,
Department of Health,CT Revenue Funds,06/04/2017,Agency Nursing,Whitchurch Hospital Inpatient Ward,ID MEDICAL,517268,327.60,733 7385 18,
Department of Health,CT Revenue Funds,06/04/2017,Agency Nursing,Ludlow Hospital Inpatient Wards,ID MEDICAL,519860,460.90,733 7385 18,
Department of Health,CT Revenue Funds,06/04/2017,Agency Nursing,Ludlow Hospital Inpatient Wards,ID MEDICAL,519861,327.60,733 7385 18,
Department of Health,CT Revenue Funds,06/04/2017,Agency Nursing,Ludlow Hospital Inpatient Wards,ID MEDICAL,519862,599.17,733 7385 18,
Department of Health,CT Revenue Funds,06/04/2017,Agency Nursing,Ludlow Hospital Inpatient Wards,ID MEDICAL,519864,403.30,733 7385 18,
Department of Health,CT Revenue Funds,06/04/2017,Agency Nursing,Ludlow Hospital Inpatient Wards,ID MEDICAL,519865,327.60,733 7385 18,
Department of Health,CT Revenue Funds,06/04/2017,Agency Nursing,Oswestry Minor Injuries Unit,MEDACS HEALTHCARE SERVICES PLC,604-1022306,237.07,745 7310 30,
Department of Health,CT Revenue Funds,06/04/2017,Agency Nursing,Bridgnorth Hospital Minor Injuries Unit,MEDACS HEALTHCARE SERVICES PLC,604-1025628,748.56,745 7310 30,
Department of Health,CT Revenue Funds,06/04/2017,Agency Nursing,Oswestry Minor Injuries Unit,MEDACS HEALTHCARE SERVICES PLC,604-1025629,795.53,745 7310 30,
Department of Health,CT Revenue Funds,06/04/2017,Agency Nursing,Ludlow Hospital Minor Injuries Unit,MED TEAM PRIMARY CARE SERVICES LIMITED,77410,904.56,932 3488 18,
Department of Health,CT Revenue Funds,06/04/2017,Agency Nursing,Ludlow Hospital Minor Injuries Unit,MED TEAM PRIMARY CARE SERVICES LIMITED,77411,1959.85,932 3488 18,
Department of Health,CT Revenue Funds,06/04/2017,Agency Nursing,Shropshire CAMHS Team,HCL SOCIAL CARE,HSOC5635727,3.15,,
Department of Health,CT Revenue Funds,06/04/2017,Agency Nursing,Shropshire CAMHS Team,HCL SOCIAL CARE,HSOC5635727,15.75,,
Department of Health,CT Revenue Funds,06/04/2017,Agency Nursing,Shropshire CAMHS Team,HCL SOCIAL CARE,HSOC5636771,9.45,,
Department of Health,CT Revenue Funds,06/04/2017,Agency Nursing,Shropshire CAMHS Team,HCL SOCIAL CARE,HSOC5636771,47.23,,
Department of Health,CT Revenue Funds,06/04/2017,Agency Nursing,Shropshire CAMHS Team,HCL SOCIAL CARE,HSOC5637632,1343.32,,
Department of Health,CT Revenue Funds,06/04/2017,Agency Nursing,Shropshire CAMHS Team,HCL SOCIAL CARE,HSOC5637633,3.15,,
Department of Health,CT Revenue Funds,06/04/2017,Agency Nursing,Shropshire CAMHS Team,HCL SOCIAL CARE,HSOC5637633,15.74,,
Department of Health,CT Revenue Funds,06/04/2017,Agency Nursing,Stoke Heath Prison Healthcare,IMPERIAL MEDICAL STAFFING LTD,IMP201160,579.56,810 3150 89,
Department of Health,CT Revenue Funds,06/04/2017,Agency Nursing,Stoke Heath Prison Healthcare,IMPERIAL MEDICAL STAFFING LTD,IMP201161,579.56,810 3150 89,
Department of Health,CT Revenue Funds,06/04/2017,Agency Nursing,Stoke Heath Prison Healthcare,IMPERIAL MEDICAL STAFFING LTD,IMP201162,579.56,810 3150 89,
Department of Health,CT Revenue Funds,06/04/2017,Agency Nursing,Stoke Heath Prison Healthcare,IMPERIAL MEDICAL STAFFING LTD,IMP201163,579.56,810 3150 89,
Department of Health,CT Revenue Funds,06/04/2017,Agency Nursing,Stoke Heath Prison Healthcare,IMPERIAL MEDICAL STAFFING LTD,IMP202299,579.56,810 3150 89,
Department of Health,CT Revenue Funds,06/04/2017,Agency Nursing,Stoke Heath Prison Healthcare,IMPERIAL MEDICAL STAFFING LTD,IMP202300,579.56,810 3150 89,
Department of Health,CT Revenue Funds,06/04/2017,Agency Nursing,Stoke Heath Prison Healthcare,IMPERIAL MEDICAL STAFFING LTD,IMP202301,579.56,810 3150 89,
Department of Health,CT Revenue Funds,06/04/2017,Agency Nursing,Stoke Heath Prison Healthcare,IMPERIAL MEDICAL STAFFING LTD,IMP202302,450.77,810 3150 89,
Department of Health,CT Revenue Funds,06/04/2017,Agency Nursing,Stoke Heath Prison Healthcare,IMPERIAL MEDICAL STAFFING LTD,IMP202303,558.09,810 3150 89,
Department of Health,CT Revenue Funds,06/04/2017,Agency Nursing,Shropshire CAMHS Team,JCJ LTD,SWP5637665,1500.00,,
Department of Health,CT Revenue Funds,06/04/2017,Agency Nursing,Shropshire CAMHS Team,JCJ LTD,SWP5637665,300.00,,
Department of Health,CT Revenue Funds,06/04/2017,Agency PAMs,Shropshire CAMHS Team,PULSE,3858280,1417.88,676 2854 93,
Department of Health,CT Revenue Funds,06/04/2017,Agency PAMs,Shropshire CAMHS Team,PULSE,3858280,283.58,676 2854 93,
Department of Health,CT Revenue Funds,06/04/2017,Agency PAMs,MSK Therapy,PIERS MEADOWS RECRUITMENT,7031701,245.78,946 2606 12,
Department of Health,CT Revenue Funds,06/04/2017,Agency PAMs,MSK Therapy,PIERS MEADOWS RECRUITMENT,7031701,1228.88,946 2606 12,
Department of Health,CT Revenue Funds,06/04/2017,Agency PAMs,MSK Therapy,PIERS MEADOWS RECRUITMENT,7032399,242.50,946 2606 12,
Department of Health,CT Revenue Funds,06/04/2017,Agency PAMs,MSK Therapy,PIERS MEADOWS RECRUITMENT,7032399,1212.49,946 2606 12,
Department of Health,CT Revenue Funds,06/04/2017,Agency PAMs,MSK Therapy,PIERS MEADOWS RECRUITMENT,7290401,1228.88,946 2606 12,
Department of Health,CT Revenue Funds,06/04/2017,Agency PAMs,MSK Therapy,PIERS MEADOWS RECRUITMENT,7290401,245.78,946 2606 12,
Department of Health,CT Revenue Funds,06/04/2017,Agency PAMs,Shropshire CAMHS Team,HCL SOCIAL CARE,HSOC5637634,196.62,,
Department of Health,CT Revenue Funds,06/04/2017,Agency PAMs,Shropshire CAMHS Team,HCL SOCIAL CARE,HSOC5637634,983.10,,
Department of Health,CT Revenue Funds,06/04/2017,AMICUS,Payables,UNITE THE UNION,0801177-QTR END MAR17,370.50,,
Department of Health,CT Revenue Funds,06/04/2017,Bed Accessories,Community Equipment Stores,ULTIMATE HEALTHCARE,237031,145.00,,
Department of Health,CT Revenue Funds,06/04/2017,Bed Accessories,Community Equipment Stores,ULTIMATE HEALTHCARE,237031,725.00,,
Department of Health,CT Revenue Funds,06/04/2017,Bed Accessories,Community Equipment Stores,AIDAPT,285454,272.10,,
Department of Health,CT Revenue Funds,06/04/2017,Bed Accessories,Community Equipment Stores,AIDAPT,285454,54.42,,
Department of Health,CT Revenue Funds,06/04/2017,Bed Accessories,Community Equipment Stores,ROMA MEDICAL AIDS LTD,592638,650.00,763 0039 51,
Department of Health,CT Revenue Funds,06/04/2017,Bed Accessories,Community Equipment Stores,ROMA MEDICAL AIDS LTD,592638,130.00,763 0039 51,
Department of Health,CT Revenue Funds,06/04/2017,Bed Accessories,Community Equipment Stores,RBF HEALTHCARE,719,9.40,,
Department of Health,CT Revenue Funds,06/04/2017,Bed Accessories,Community Equipment Stores,RBF HEALTHCARE,719,47.00,,
Department of Health,CT Revenue Funds,06/04/2017,Bed Accessories,Community Equipment Stores,NOTTINGHAM REHAB SUPPLIES,97397032,23.40,125 6886 44,
Department of Health,CT Revenue Funds,06/04/2017,Bed Accessories,Community Equipment Stores,NOTTINGHAM REHAB SUPPLIES,97397032,-1.87,125 6886 44,
Department of Health,CT Revenue Funds,06/04/2017,Bed Accessories,Community Equipment Stores,NOTTINGHAM REHAB SUPPLIES,97397032,-9.36,125 6886 44,
Department of Health,CT Revenue Funds,06/04/2017,Bed Accessories,Community Equipment Stores,NOTTINGHAM REHAB SUPPLIES,97397032,117.00,125 6886 44,
Department of Health,CT Revenue Funds,06/04/2017,Bed Accessories,Community Equipment Stores,PROSYS INTERNATIONAL LTD,P6227,140.80,,
Department of Health,CT Revenue Funds,06/04/2017,Bed Accessories,Community Equipment Stores,PROSYS INTERNATIONAL LTD,P6227,704.00,,
Department of Health,CT Revenue Funds,06/04/2017,Bed Accessories,Community Equipment Stores,LISCLARE LTD,SINV03068834,127.75,,
Department of Health,CT Revenue Funds,06/04/2017,Bed Accessories,Community Equipment Stores,LISCLARE LTD,SINV03068834,67.38,,
Department of Health,CT Revenue Funds,06/04/2017,Bed Accessories,Community Equipment Stores,LISCLARE LTD,SINV03068834,0.01,,
Department of Health,CT Revenue Funds,06/04/2017,Bed Accessories,Community Equipment Stores,LISCLARE LTD,SINV03068834,0.06,,
Department of Health,CT Revenue Funds,06/04/2017,Bed Accessories,Community Equipment Stores,LISCLARE LTD,SINV03068834,-0.01,,
Department of Health,CT Revenue Funds,06/04/2017,Bed Accessories,Community Equipment Stores,LISCLARE LTD,SINV03068834,-0.01,,
Department of Health,CT Revenue Funds,06/04/2017,Bed Accessories,Community Equipment Stores,LISCLARE LTD,SINV03068834,11.36,,
Department of Health,CT Revenue Funds,06/04/2017,Bed Accessories,Community Equipment Stores,LISCLARE LTD,SINV03068834,74.38,,
Department of Health,CT Revenue Funds,06/04/2017,Bed Accessories,Community Equipment Stores,LISCLARE LTD,SINV03068834,56.81,,
Department of Health,CT Revenue Funds,06/04/2017,Bed Accessories,Community Equipment Stores,LISCLARE LTD,SINV03068834,13.48,,
Department of Health,CT Revenue Funds,06/04/2017,Bed Accessories,Community Equipment Stores,LISCLARE LTD,SINV03068834,25.55,,
Department of Health,CT Revenue Funds,06/04/2017,Bed Accessories,Community Equipment Stores,LISCLARE LTD,SINV03068834,14.87,,
Department of Health,CT Revenue Funds,06/04/2017,Bedpans & Urinals,Ludlow Hospital Inpatient Wards,VERNACARE LTD,OP/I395191,285.12,498 0975 81,
Department of Health,CT Revenue Funds,06/04/2017,Bedpans & Urinals,Ludlow Hospital Inpatient Wards,VERNACARE LTD,OP/I395191,57.02,498 0975 81,
Department of Health,CT Revenue Funds,06/04/2017,Blood Glucose Testing Stocks,Inventories,ABBOTT LABORATORIES LTD,751181827,15.00,430 8670 56,
Department of Health,CT Revenue Funds,06/04/2017,Blood Glucose Testing Stocks,Inventories,ABBOTT LABORATORIES LTD,751181827,3.00,430 8670 56,
Department of Health,CT Revenue Funds,06/04/2017,Blood Glucose Testing Stocks,Inventories,ABBOTT LABORATORIES LTD,751181827,4960.00,430 8670 56,
Department of Health,CT Revenue Funds,06/04/2017,Blood Glucose Testing Stocks,Inventories,ABBOTT LABORATORIES LTD,751181827,992.00,430 8670 56,
Department of Health,CT Revenue Funds,06/04/2017,"Books, Journals & Subscriptions",Dudley School Nurses,BLACKWELLS BOOKSHOP,00161694,116.88,532 5855 39,
Department of Health,CT Revenue Funds,06/04/2017,"Books, Journals & Subscriptions",Dudley School Nurses,BLACKWELLS BOOKSHOP,00161694,0.03,532 5855 39,
Department of Health,CT Revenue Funds,06/04/2017,Building & Engineering Equipment Maintenance/Repairs,Longbow Unit B,BELVIDERE LIFTS LTD,17190,296.00,,
Department of Health,CT Revenue Funds,06/04/2017,Car Parking,South Shropshire Health Visitors,SHROPSHIRE COUNCIL,A JONES DV65ZYK,450.00,162 3474 72,
Department of Health,CT Revenue Funds,06/04/2017,Car Parking,Shropshire School Nurses,SHROPSHIRE COUNCIL,G FITZPATRICK GFF460 APR 17,240.00,162 3474 72,
Department of Health,CT Revenue Funds,06/04/2017,Car Parking,Shropshire School Nurses,SHROPSHIRE COUNCIL,L COLLINS-SINGH DL14JXY APR 17,240.00,162 3474 72,
Department of Health,CT Revenue Funds,06/04/2017,Car Parking,Podiatry Services,SHREWSBURY AND TELFORD HOSPITAL NHS TRUST,S BREEZE KX15VKG,90.00,,
Department of Health,CT Revenue Funds,06/04/2017,Catering Provisions,Whitchurch Hospital Catering,BIDFOOD,73935207,242.80,643 9946 92,
Department of Health,CT Revenue Funds,06/04/2017,Catering Provisions,Whitchurch Hospital Catering,BIDFOOD,73935207,99.57,643 9946 92,
Department of Health,CT Revenue Funds,06/04/2017,Catering Provisions,Whitchurch Hospital Catering,BIDFOOD,73935207,19.91,643 9946 92,
Department of Health,CT Revenue Funds,06/04/2017,Catering Provisions,Ludlow Hospital Catering,BIDFOOD,74002150,207.73,643 9946 92,
Department of Health,CT Revenue Funds,06/04/2017,Catering Provisions,Whitchurch Hospital Catering,JOHAL DAIRIES LTD,892558,82.72,101 3075 37,
Department of Health,CT Revenue Funds,06/04/2017,Catering Provisions,Bridgnorth Hospital Catering,JOHAL DAIRIES LTD,897460,101.18,101 3075 37,
Department of Health,CT Revenue Funds,06/04/2017,Catering Provisions,Whitchurch Hospital Catering,JOHAL DAIRIES LTD,897462,82.48,101 3075 37,
Department of Health,CT Revenue Funds,06/04/2017,Catering Provisions,Whitchurch Hospital Catering,BIRCHALL FOODSERVICE,CIV0372624,32.73,,
Department of Health,CT Revenue Funds,06/04/2017,Catering Provisions,Whitchurch Hospital Catering,BIRCHALL FOODSERVICE,CIV0374493,50.36,,
Department of Health,CT Revenue Funds,06/04/2017,Catering Provisions,Whitchurch Hospital Catering,TOTAL PRODUCE,HER-966667,43.34,896 5678 42,
Department of Health,CT Revenue Funds,06/04/2017,Catering Provisions,Whitchurch Hospital Catering,TOTAL PRODUCE,HER-967703,37.55,896 5678 42,
Department of Health,CT Revenue Funds,06/04/2017,Catering Provisions,Whitchurch Hospital Catering,TOTAL PRODUCE,HER-968374,38.95,896 5678 42,
Department of Health,CT Revenue Funds,06/04/2017,Catering Provisions,Whitchurch Hospital Catering,TOTAL PRODUCE,HER-969305,47.09,896 5678 42,
Department of Health,CT Revenue Funds,06/04/2017,Catering Provisions,Whitchurch Hospital Catering,JOHN SHEPPARD BUTCHERS LTD,SINV571470,198.92,,
Department of Health,CT Revenue Funds,06/04/2017,Catering Provisions,Whitchurch Hospital Catering,JOHN SHEPPARD BUTCHERS LTD,SINV573816,166.14,,
Department of Health,CT Revenue Funds,06/04/2017,Catering Provisions,Ludlow Hospital Catering,JOHN SHEPPARD BUTCHERS LTD,SINV574161,180.18,,
Department of Health,CT Revenue Funds,06/04/2017,Catering Provisions,Bridgnorth Hospital Catering,JOHN SHEPPARD BUTCHERS LTD,SINV574834,152.97,,
Department of Health,CT Revenue Funds,06/04/2017,Catering Provisions,Whitchurch Hospital Catering,TOTAL PRODUCE,TCO-963475,-3.38,896 5678 42,
Department of Health,CT Revenue Funds,06/04/2017,Charity Donations,Payables,CHARITIES TRUST,MAR17,30.00,,
Department of Health,CT Revenue Funds,06/04/2017,Cleaning Equipment,Bishops Castle Hospital Domestics,ARGOS,01514305,344.98,145 8990 25,
Department of Health,CT Revenue Funds,06/04/2017,Cleaning Equipment,Bishops Castle Hospital Domestics,ARGOS,01514305,26.84,145 8990 25,
Department of Health,CT Revenue Funds,06/04/2017,Cleaning Equipment,Bishops Castle Hospital Domestics,ARGOS,01514305,68.99,145 8990 25,
Department of Health,CT Revenue Funds,06/04/2017,Cleaning Equipment,Bishops Castle Hospital Domestics,ARGOS,01514305,5.37,145 8990 25,
Department of Health,CT Revenue Funds,06/04/2017,Cleaning Materials,Ludlow Hospital Hotel Services,ARGOS,01519679,6.07,145 8990 25,
Department of Health,CT Revenue Funds,06/04/2017,Cleaning Materials,Ludlow Hospital Hotel Services,ARGOS,01519679,77.99,145 8990 25,
Department of Health,CT Revenue Funds,06/04/2017,Cleaning Materials,Ludlow Hospital Hotel Services,ARGOS,01519679,30.33,145 8990 25,
Department of Health,CT Revenue Funds,06/04/2017,Cleaning Materials,Ludlow Hospital Hotel Services,ARGOS,01519679,389.99,145 8990 25,
Department of Health,CT Revenue Funds,06/04/2017,Cleaning Materials,Ludlow Hospital Hotel Services,ARGOS,01519680,6.07,145 8990 25,
Department of Health,CT Revenue Funds,06/04/2017,Cleaning Materials,Ludlow Hospital Hotel Services,ARGOS,01519680,77.99,145 8990 25,
Department of Health,CT Revenue Funds,06/04/2017,Cleaning Materials,Ludlow Hospital Hotel Services,ARGOS,01519680,389.99,145 8990 25,
Department of Health,CT Revenue Funds,06/04/2017,Cleaning Materials,Ludlow Hospital Hotel Services,ARGOS,01519680,30.33,145 8990 25,
Department of Health,CT Revenue Funds,06/04/2017,Cobalt Unit Donations,Payables,LINGEN DAVIES CANCER RELIEF,AP16-MAR17 PAYROLL DEDUCTIONS,5.28,,
Department of Health,CT Revenue Funds,06/04/2017,Communication Aids,Child Speech and Language Therapy,LOGAN TECHNOLOGIES LTD,2856,10.00,,
Department of Health,CT Revenue Funds,06/04/2017,Communication Aids,Child Speech and Language Therapy,LOGAN TECHNOLOGIES LTD,2856,2.00,,
Department of Health,CT Revenue Funds,06/04/2017,Communication Aids,Child Speech and Language Therapy,GREEN CLOUD IT,INV-3404,12.00,,
Department of Health,CT Revenue Funds,06/04/2017,Communication Aids,Child Speech and Language Therapy,GREEN CLOUD IT,INV-3404,6.80,,
Department of Health,CT Revenue Funds,06/04/2017,Communication Aids,Child Speech and Language Therapy,GREEN CLOUD IT,INV-3404,2.40,,
Department of Health,CT Revenue Funds,06/04/2017,Communication Aids,Child Speech and Language Therapy,GREEN CLOUD IT,INV-3404,34.00,,
Department of Health,CT Revenue Funds,06/04/2017,Computer Consumables,South East Interdisciplinary Teams,MISCO COMPUTER SUPPLIES LTD,11285507,22.55,494 1756 15,
Department of Health,CT Revenue Funds,06/04/2017,Computer Consumables,South East Interdisciplinary Teams,MISCO COMPUTER SUPPLIES LTD,11285507,-0.01,494 1756 15,
Department of Health,CT Revenue Funds,06/04/2017,Computer Consumables,South East Interdisciplinary Teams,MISCO COMPUTER SUPPLIES LTD,11285507,11.03,494 1756 15,
Department of Health,CT Revenue Funds,06/04/2017,Computer Consumables,South East Interdisciplinary Teams,MISCO COMPUTER SUPPLIES LTD,11285507,-11.03,494 1756 15,
Department of Health,CT Revenue Funds,06/04/2017,Computer Consumables,South East Interdisciplinary Teams,MISCO COMPUTER SUPPLIES LTD,11285507,22.55,494 1756 15,
Department of Health,CT Revenue Funds,06/04/2017,Computer Consumables,South East Interdisciplinary Teams,MISCO COMPUTER SUPPLIES LTD,11285507,11.03,494 1756 15,
Department of Health,CT Revenue Funds,06/04/2017,Computer Consumables,South East Interdisciplinary Teams,MISCO COMPUTER SUPPLIES LTD,11285507,112.74,494 1756 15,
Department of Health,CT Revenue Funds,06/04/2017,Computer Consumables,South East Interdisciplinary Teams,MISCO COMPUTER SUPPLIES LTD,11285507,112.74,494 1756 15,
Department of Health,CT Revenue Funds,06/04/2017,Computer Consumables,South East Interdisciplinary Teams,MISCO COMPUTER SUPPLIES LTD,11285507,55.14,494 1756 15,
Department of Health,CT Revenue Funds,06/04/2017,Computer Consumables,Ludlow Hospital Inpatient Wards,OFFICETEAM GROUP LTD,IO776182,19.00,,
Department of Health,CT Revenue Funds,06/04/2017,Computer Consumables,Ludlow Hospital Inpatient Wards,OFFICETEAM GROUP LTD,IO776182,95.00,,
Department of Health,CT Revenue Funds,06/04/2017,Computer Hardware & Software,ICS Central,MISCO COMPUTER SUPPLIES LTD,11284468,66.73,494 1756 15,
Department of Health,CT Revenue Funds,06/04/2017,Computer Hardware & Software,ICS Central,MISCO COMPUTER SUPPLIES LTD,11284468,13.35,494 1756 15,
Department of Health,CT Revenue Funds,06/04/2017,Computer Hardware & Software,ICS Central,MISCO COMPUTER SUPPLIES LTD,11284468,-0.01,494 1756 15,
Department of Health,CT Revenue Funds,06/04/2017,Computer Hardware & Software,Community Hospitals & Out Patient Svces Divison Management,MISCO COMPUTER SUPPLIES LTD,11292537,875.37,494 1756 15,
Department of Health,CT Revenue Funds,06/04/2017,Computer Hardware & Software,Community Hospitals & Out Patient Svces Divison Management,MISCO COMPUTER SUPPLIES LTD,11292537,175.07,494 1756 15,
Department of Health,CT Revenue Funds,06/04/2017,Computer Hardware & Software,Oswestry Minor Injuries Unit,MISCO COMPUTER SUPPLIES LTD,11293089,307.98,494 1756 15,
Department of Health,CT Revenue Funds,06/04/2017,Computer Hardware & Software,Oswestry Minor Injuries Unit,MISCO COMPUTER SUPPLIES LTD,11293089,61.59,494 1756 15,
Department of Health,CT Revenue Funds,06/04/2017,Computer Hardware & Software,Oswestry Minor Injuries Unit,MISCO COMPUTER SUPPLIES LTD,11293089,-1.24,494 1756 15,
Department of Health,CT Revenue Funds,06/04/2017,Computer Hardware & Software,Oswestry Minor Injuries Unit,MISCO COMPUTER SUPPLIES LTD,11293089,-6.22,494 1756 15,
Department of Health,CT Revenue Funds,06/04/2017,Computer Hardware Purchases,IM&T Support,MISCO COMPUTER SUPPLIES LTD,11288781,-63.84,494 1756 15,
Department of Health,CT Revenue Funds,06/04/2017,Computer Hardware Purchases,IM&T Support,MISCO COMPUTER SUPPLIES LTD,11288781,-12.77,494 1756 15,
Department of Health,CT Revenue Funds,06/04/2017,Computer Hardware Purchases,IM&T Support,MISCO COMPUTER SUPPLIES LTD,11288781,61.39,494 1756 15,
Department of Health,CT Revenue Funds,06/04/2017,Computer Hardware Purchases,IM&T Support,MISCO COMPUTER SUPPLIES LTD,11288781,306.96,494 1756 15,
Department of Health,CT Revenue Funds,06/04/2017,Computer Hardware Purchases,IM&T Support,MISCO COMPUTER SUPPLIES LTD,11290620,12.79,494 1756 15,
Department of Health,CT Revenue Funds,06/04/2017,Computer Hardware Purchases,IM&T Support,MISCO COMPUTER SUPPLIES LTD,11290620,-0.53,494 1756 15,
Department of Health,CT Revenue Funds,06/04/2017,Computer Hardware Purchases,IM&T Support,MISCO COMPUTER SUPPLIES LTD,11290620,2.56,494 1756 15,
Department of Health,CT Revenue Funds,06/04/2017,Computer Hardware Purchases,IM&T Support,MISCO COMPUTER SUPPLIES LTD,11290620,-2.66,494 1756 15,
Department of Health,CT Revenue Funds,06/04/2017,Computer Hardware Purchases Non Recurring Items 1617,IM&T Support,MISCO COMPUTER SUPPLIES LTD,11292047,7140.00,494 1756 15,
Department of Health,CT Revenue Funds,06/04/2017,Computer Hardware Purchases Non Recurring Items 1617,IM&T Support,MISCO COMPUTER SUPPLIES LTD,11292047,4.99,494 1756 15,
Department of Health,CT Revenue Funds,06/04/2017,Computer Hardware Purchases Non Recurring Items 1617,IM&T Support,MISCO COMPUTER SUPPLIES LTD,11292047,1.00,494 1756 15,
Department of Health,CT Revenue Funds,06/04/2017,Computer Hardware Purchases Non Recurring Items 1617,IM&T Support,MISCO COMPUTER SUPPLIES LTD,11292047,1428.00,494 1756 15,
Department of Health,CT Revenue Funds,06/04/2017,Computer Network Costs,Organisational Development,CBC COMPUTER SYSTEMS LTD,SIN024634,2.40,534 1281 70,
Department of Health,CT Revenue Funds,06/04/2017,Computer Network Costs,Organisational Development,CBC COMPUTER SYSTEMS LTD,SIN024634,12.00,534 1281 70,
Department of Health,CT Revenue Funds,06/04/2017,Computer Software / Licence  Fees,Oswestry Primary Care Centre,WIGGLY-AMPS LIMITED,18970,89.25,,
Department of Health,CT Revenue Funds,06/04/2017,Computer Software / Licence  Fees,Oswestry Primary Care Centre,WIGGLY-AMPS LIMITED,18970,446.25,,
Department of Health,CT Revenue Funds,06/04/2017,Computer Software / Licence  Fees,Shrewsbury and Atcham Physiotherapy Clinics,PHYSIO TOOLS UK,19153,129.00,,
Department of Health,CT Revenue Funds,06/04/2017,Computer Software / Licence  Fees,Shrewsbury and Atcham Physiotherapy Clinics,PHYSIO TOOLS UK,19153,25.80,,
Department of Health,CT Revenue Funds,06/04/2017,Computer Software / Licence  Fees,Operations Directorate Management,MEDIABURST LIMITED,T_42_N56332,10500.00,,
Department of Health,CT Revenue Funds,06/04/2017,Computer Software / Licence  Fees,Operations Directorate Management,MEDIABURST LIMITED,T_42_N56332,2100.00,,
Department of Health,CT Revenue Funds,06/04/2017,Confidential Waste Collection,Bridgnorth Health Centre,RESTORE DATASHRED,64800255,18.36,,
Department of Health,CT Revenue Funds,06/04/2017,Contract : Grounds & Gardens,Dale Acre Way,SPACECARE (SHROPSHIRE),317023,45.00,790 8831 89,
Department of Health,CT Revenue Funds,06/04/2017,Contract : Grounds & Gardens,Dale Acre Way,SPACECARE (SHROPSHIRE),317023,-7275.83,790 8831 89,
Department of Health,CT Revenue Funds,06/04/2017,Contract : Grounds & Gardens,Dale Acre Way,SPACECARE (SHROPSHIRE),317023,7275.83,790 8831 89,
Department of Health,CT Revenue Funds,06/04/2017,Contract : Hygiene & Sanitary,Gains Park,PHS GROUP LTD,64805955,97.27,542 9514 38,
Department of Health,CT Revenue Funds,06/04/2017,Contract : Photocopying Rental & Charges,Ludlow & Bishop Castle Admin,KONICA BUSINESS MACHINES (UK) LTD,1129382238,29.02,974 9607 63,
Department of Health,CT Revenue Funds,06/04/2017,Contract : Photocopying Rental & Charges,Organisational Development,KONICA BUSINESS MACHINES (UK) LTD,1130145844,142.11,974 9607 63,
Department of Health,CT Revenue Funds,06/04/2017,Contract : Photocopying Rental & Charges,Community Equipment Stores,XEROX UK,1606710477,116.42,232 3646 82,
Department of Health,CT Revenue Funds,06/04/2017,Contract : Photocopying Rental & Charges,Dudley School Nurses,ALTODIGITAL,1933851,844.89,,
Department of Health,CT Revenue Funds,06/04/2017,Contract : Photocopying Rental & Charges,Glebe Centre Premises,XEROX FINANCE LTD,97116539,235.11,232 3646 82,
Department of Health,CT Revenue Funds,06/04/2017,Contract : Photocopying Rental & Charges,Bishops Castle Hospital Inpatient Ward,XEROX FINANCE LTD,97116540,307.41,232 3646 82,
Department of Health,CT Revenue Funds,06/04/2017,Contract : Photocopying Rental & Charges,Occupational Health Shropshire,XEROX FINANCE LTD,97116578,156.79,232 3646 82,
Department of Health,CT Revenue Funds,06/04/2017,Course Fees,Organisational Development,OPEN CROSSING LTD,OCINV-SHROPCOM001,2531.00,,
Department of Health,CT Revenue Funds,06/04/2017,Course Fees,Learning Beyond Registration,KC JONES CONFERENCE AND EVENTS LTD,PPN17009,150.00,,
Department of Health,CT Revenue Funds,06/04/2017,Court Order Payment,Payables,HMCTS WEST MERCIA,16037391VTF-MAR17,12.69,,
Department of Health,CT Revenue Funds,06/04/2017,Court Order Payment,Payables,HMCTS MERSEYSIDE COLLECTIONS,16041285FMD-MAR17,206.20,,
Department of Health,CT Revenue Funds,06/04/2017,Cycle to Work Salary Sacrifice,Payables,SME HCI LTD,125469 PAYMENT 11,68.48,,
Department of Health,CT Revenue Funds,06/04/2017,Cycle to Work Salary Sacrifice,Payables,SME HCI LTD,125469 PAYMENT 11,48.64,,
Department of Health,CT Revenue Funds,06/04/2017,Cycle to Work Salary Sacrifice,Payables,SME HCI LTD,125469 PAYMENT 11,45.17,,
Department of Health,CT Revenue Funds,06/04/2017,Cycle to Work Salary Sacrifice,Payables,SME HCI LTD,125469 PAYMENT 11,36.51,,
Department of Health,CT Revenue Funds,06/04/2017,Cycle to Work Salary Sacrifice,Payables,SME HCI LTD,125469 PAYMENT 11,38.67,,
Department of Health,CT Revenue Funds,06/04/2017,Cycle to Work Salary Sacrifice,Payables,SME HCI LTD,125572 PAYMENT 10,48.32,,
Department of Health,CT Revenue Funds,06/04/2017,Cycle to Work Salary Sacrifice,Payables,SME HCI LTD,125658 PAYMENT 9,33.69,,
Department of Health,CT Revenue Funds,06/04/2017,Cycle to Work Salary Sacrifice,Payables,SME HCI LTD,126484 PAYMENT 81.38,67.82,,
Department of Health,CT Revenue Funds,06/04/2017,Debt Recovery & Credit Control,Ludlow Hospital Catering,CCI CREDIT MANAGEMENT LTD,SCH8 INV015571,8.00,,
Department of Health,CT Revenue Funds,06/04/2017,Debt Recovery & Credit Control,Podiatry Services,CCI CREDIT MANAGEMENT LTD,SCH8 INV015571,5.00,,
Department of Health,CT Revenue Funds,06/04/2017,Dental Laboratory Items,Stoke Heath Prison Healthcare,S4 DENTAL LABORATORY,BRISTSTOKE-MAR17,267.00,,
Department of Health,CT Revenue Funds,06/04/2017,Dental Surgery Equipment,Special Care and Access,ORAL HEALTH FOUNDATION,117401,15.90,,
Department of Health,CT Revenue Funds,06/04/2017,Dental Surgery Equipment,Special Care and Access,ORAL HEALTH FOUNDATION,117401,11.15,,
Department of Health,CT Revenue Funds,06/04/2017,Dental Surgery Equipment,Special Care and Access,ORAL HEALTH FOUNDATION,117401,8.88,,
Department of Health,CT Revenue Funds,06/04/2017,Dental Surgery Equipment,Special Care and Access,ORAL HEALTH FOUNDATION,117401,-6.70,,
Department of Health,CT Revenue Funds,06/04/2017,Dental Surgery Equipment,Special Care and Access,ORAL HEALTH FOUNDATION,117401,2.23,,
Department of Health,CT Revenue Funds,06/04/2017,Dental Surgery Equipment,Special Care and Access,ORAL HEALTH FOUNDATION,117401,1.78,,
Department of Health,CT Revenue Funds,06/04/2017,Dental Surgery Equipment,Special Care and Access,ORAL HEALTH FOUNDATION,117401,-1.34,,
Department of Health,CT Revenue Funds,06/04/2017,Dental Surgery Equipment,Special Care and Access,ORAL HEALTH FOUNDATION,117401,3.18,,
Department of Health,CT Revenue Funds,06/04/2017,Dental Surgery Equipment,C Arms Dental Practice,DENTAL DIRECTORY BILLERICAY DENTAL,2618042,83.88,,
Department of Health,CT Revenue Funds,06/04/2017,Dental Surgery Equipment,C Arms Dental Practice,DENTAL DIRECTORY BILLERICAY DENTAL,2618042,419.40,,
Department of Health,CT Revenue Funds,06/04/2017,Dental Surgery Equipment,Dental Central Admin,WRIGHT COTTRELL,92467084,120.00,,
Department of Health,CT Revenue Funds,06/04/2017,Dental Surgery Equipment,Dental Central Admin,WRIGHT COTTRELL,92467084,24.00,,
Department of Health,CT Revenue Funds,06/04/2017,Dental Surgery Sundries,Special Care and Access,OSWESTRY DENTAL LAB,510-MAR17,48.32,,
Department of Health,CT Revenue Funds,06/04/2017,Dental Surgery Sundries,M Drayton Dental Practice,DAVID SHEPPARD CERAMICS,I011338,53.00,,
Department of Health,CT Revenue Funds,06/04/2017,Dental Surgery Sundries,Special Care and Access,S4 DENTAL LABORATORY,MARSH-MAR17,95.00,,
Department of Health,CT Revenue Funds,06/04/2017,Dental Surgery Sundries,Special Care and Access,HENRY SCHEIN MINERVA - CONSUMABLES,RI66435034,23.18,573 7789 79,
Department of Health,CT Revenue Funds,06/04/2017,Dental Surgery Sundries,Special Care and Access,HENRY SCHEIN MINERVA - CONSUMABLES,RI66435034,4.64,573 7789 79,
Department of Health,CT Revenue Funds,06/04/2017,Dental Surgery Sundries,Special Care and Access,S4 DENTAL LABORATORY,SEAGDAWLEY-MAR17,160.80,,
Department of Health,CT Revenue Funds,06/04/2017,Disclosure & Barring Service Checks,HR and Workforce,CAPITA RESOURCING LTD,R0041565,73.50,,
Department of Health,CT Revenue Funds,06/04/2017,Disposal of Surplus Equipment Services Not Income,HR and Workforce,CAPITA RESOURCING LTD,R0041565,728.00,,
Department of Health,CT Revenue Funds,06/04/2017,DWP Direct Earnings Attachment,Payables,CHESHIRE WEST & CHESTER COUNCIL,45456499-MAR17,20.69,,
Department of Health,CT Revenue Funds,06/04/2017,DWP Direct Earnings Attachment,Payables,POWYS COUNTY COUNCIL,9001645279-MAR17,253.30,,
Department of Health,CT Revenue Funds,06/04/2017,DWP Direct Earnings Attachment,Payables,CAPS,A0QP6246-MAR17,25.00,,
Department of Health,CT Revenue Funds,06/04/2017,DWP Direct Earnings Attachment,Payables,HEREFORDSHIRE COUNCIL,A18571317/71340 - MAR17,115.86,,
Department of Health,CT Revenue Funds,06/04/2017,DWP Direct Earnings Attachment,Payables,CHESHIRE WEST & CHESTER COUNCIL,MAR17,36.30,,
Department of Health,CT Revenue Funds,06/04/2017,DWP Direct Earnings Attachment,Payables,SHROPSHIRE COUNCIL,MAR17,319.39,162 3474 72,
Department of Health,CT Revenue Funds,06/04/2017,DWP Direct Earnings Attachment,Payables,CHILD SUPPORT AGENCY,NA832670D - MAR17,329.14,,
Department of Health,CT Revenue Funds,06/04/2017,DWP Direct Earnings Attachment,Payables,DEPARTMENT FOR WORK AND PENSIONS,NP042517C/YY434806B MAR17,65.89,,
Department of Health,CT Revenue Funds,06/04/2017,Electricity,Monkmoor CDC,SHROPSHIRE COUNCIL,33470-GAS&ELECTRIC FEB17,754.21,162 3474 72,
Department of Health,CT Revenue Funds,06/04/2017,Electromedical Equipment Instruments,Community Neuro Rehabilitation Team (CNRT),ARGOS,01519677,4.77,145 8990 25,
Department of Health,CT Revenue Funds,06/04/2017,Electromedical Equipment Instruments,Community Neuro Rehabilitation Team (CNRT),ARGOS,01519677,-56.85,145 8990 25,
Department of Health,CT Revenue Funds,06/04/2017,Electromedical Equipment Instruments,Community Neuro Rehabilitation Team (CNRT),ARGOS,01519677,56.85,145 8990 25,
Department of Health,CT Revenue Funds,06/04/2017,Electromedical Equipment Instruments,Community Neuro Rehabilitation Team (CNRT),ARGOS,01519677,-4.77,145 8990 25,
Department of Health,CT Revenue Funds,06/04/2017,Electromedical Equipment Instruments,Community Neuro Rehabilitation Team (CNRT),ARGOS,01519677,0.01,145 8990 25,
Department of Health,CT Revenue Funds,06/04/2017,Electromedical Equipment Instruments,Community Neuro Rehabilitation Team (CNRT),ARGOS,01519677,4.77,145 8990 25,
Department of Health,CT Revenue Funds,06/04/2017,Electromedical Equipment Instruments,Community Neuro Rehabilitation Team (CNRT),ARGOS,01519677,4.50,145 8990 25,
Department of Health,CT Revenue Funds,06/04/2017,Electromedical Equipment Instruments,Community Neuro Rehabilitation Team (CNRT),ARGOS,01519677,56.85,145 8990 25,
Department of Health,CT Revenue Funds,06/04/2017,Electromedical Equipment Instruments,Community Neuro Rehabilitation Team (CNRT),ARGOS,01519677,23.86,145 8990 25,
Department of Health,CT Revenue Funds,06/04/2017,Electromedical Equipment Instruments,Community Neuro Rehabilitation Team (CNRT),ARGOS,01519677,22.50,145 8990 25,
Department of Health,CT Revenue Funds,06/04/2017,Electromedical Equipment Instruments,Community Neuro Rehabilitation Team (CNRT),ARGOS,01519677,284.25,145 8990 25,
Department of Health,CT Revenue Funds,06/04/2017,Electromedical Equipment Instruments,Community Neuro Rehabilitation Team (CNRT),TAYLOR & FRANCIS,4854363I,16.00,,
Department of Health,CT Revenue Funds,06/04/2017,Electromedical Equipment Instruments,Community Neuro Rehabilitation Team (CNRT),TAYLOR & FRANCIS,4854363I,79.98,,
Department of Health,CT Revenue Funds,06/04/2017,Electromedical Equipment Instruments,Community Neuro Rehabilitation Team (CNRT),PERFORMANCE HEALTH,5144293389,7.50,945 7652 83,
Department of Health,CT Revenue Funds,06/04/2017,Electromedical Equipment Instruments,Community Neuro Rehabilitation Team (CNRT),PERFORMANCE HEALTH,5144293389,3.72,945 7652 83,
Department of Health,CT Revenue Funds,06/04/2017,Electromedical Equipment Instruments,Community Neuro Rehabilitation Team (CNRT),PERFORMANCE HEALTH,5144293389,18.58,945 7652 83,
Department of Health,CT Revenue Funds,06/04/2017,Electromedical Equipment Instruments,Community Neuro Rehabilitation Team (CNRT),PERFORMANCE HEALTH,5144293389,37.50,945 7652 83,
Department of Health,CT Revenue Funds,06/04/2017,Electromedical Equipment Instruments,ICS Central,PERFORMANCE HEALTH,5144308314,7.50,945 7652 83,
Department of Health,CT Revenue Funds,06/04/2017,Electromedical Equipment Instruments,ICS Central,PERFORMANCE HEALTH,5144308314,1.32,945 7652 83,
Department of Health,CT Revenue Funds,06/04/2017,Electromedical Equipment Instruments,ICS Central,PERFORMANCE HEALTH,5144308314,37.50,945 7652 83,
Department of Health,CT Revenue Funds,06/04/2017,Electromedical Equipment Instruments,ICS Central,PERFORMANCE HEALTH,5144308314,6.60,945 7652 83,
Department of Health,CT Revenue Funds,06/04/2017,Electromedical Equipment Instruments,Community Neuro Rehabilitation Team (CNRT),PERFORMANCE HEALTH,5144308803,7.50,945 7652 83,
Department of Health,CT Revenue Funds,06/04/2017,Electromedical Equipment Instruments,Community Neuro Rehabilitation Team (CNRT),PERFORMANCE HEALTH,5144308803,37.50,945 7652 83,
Department of Health,CT Revenue Funds,06/04/2017,Electromedical Equipment Instruments,Community Neuro Rehabilitation Team (CNRT),PERFORMANCE HEALTH,5144308990,-7.50,945 7652 83,
Department of Health,CT Revenue Funds,06/04/2017,Electromedical Equipment Instruments,Community Neuro Rehabilitation Team (CNRT),PERFORMANCE HEALTH,5144308990,-37.50,945 7652 83,
Department of Health,CT Revenue Funds,06/04/2017,Electromedical Equipment Instruments,Community Neuro Rehabilitation Team (CNRT),PERFORMANCE HEALTH,5144308990,-18.58,945 7652 83,
Department of Health,CT Revenue Funds,06/04/2017,Electromedical Equipment Instruments,Community Neuro Rehabilitation Team (CNRT),PERFORMANCE HEALTH,5144308990,-3.72,945 7652 83,
Department of Health,CT Revenue Funds,06/04/2017,Electromedical Equipment Instruments,Community Neuro Rehabilitation Team (CNRT),KETTERING SURGICAL APPLIANCES LTD,80265,254.75,121 5091 15,
Department of Health,CT Revenue Funds,06/04/2017,Electromedical Equipment Instruments,Community Neuro Rehabilitation Team (CNRT),KETTERING SURGICAL APPLIANCES LTD,80265,50.95,121 5091 15,
Department of Health,CT Revenue Funds,06/04/2017,Electromedical Equipment Instruments,Community Neuro Rehabilitation Team (CNRT),EXTREMEGB LTD,EGB11325,76.40,,
Department of Health,CT Revenue Funds,06/04/2017,Electromedical Equipment Instruments,Community Neuro Rehabilitation Team (CNRT),EXTREMEGB LTD,EGB11325,0.25,,
Department of Health,CT Revenue Funds,06/04/2017,Electromedical Equipment Instruments,Community Neuro Rehabilitation Team (CNRT),EXTREMEGB LTD,EGB11325,76.40,,
Department of Health,CT Revenue Funds,06/04/2017,Electromedical Equipment Instruments,Community Neuro Rehabilitation Team (CNRT),EXTREMEGB LTD,EGB11325,1.27,,
Department of Health,CT Revenue Funds,06/04/2017,Electromedical Equipment Instruments,Community Neuro Rehabilitation Team (CNRT),EXTREMEGB LTD,EGB11325,15.28,,
Department of Health,CT Revenue Funds,06/04/2017,Electromedical Equipment Instruments,Community Neuro Rehabilitation Team (CNRT),EXTREMEGB LTD,EGB11325,-76.40,,
Department of Health,CT Revenue Funds,06/04/2017,External Contracts : Catering,Bishops Castle Hospital Domestics,COVERAGE CARE LTD,PSI114120,2971.73,,
Department of Health,CT Revenue Funds,06/04/2017,External Contracts : Domestics,Community Equipment Stores,FRESH HOUSE PROFESSIONAL OFFICE & DOMESTIC CLEANING,FH000545,84.00,,
Department of Health,CT Revenue Funds,06/04/2017,External Contracts : Domestics,Tissue Viability Nurses (T&W),FRESH HOUSE PROFESSIONAL OFFICE & DOMESTIC CLEANING,FH000546,24.00,,
Department of Health,CT Revenue Funds,06/04/2017,External Contracts : Window Cleaning,Dudley School Nurses,PETTY CASH,SHEET 4 7.3.4.17,35.00,,
Department of Health,CT Revenue Funds,06/04/2017,Fair Share Credit Union,Payables,FAIRSHARE CREDIT UNION LTD,MAR17,230.00,,
Department of Health,CT Revenue Funds,06/04/2017,Fire/Security/Alarm Equipment,Telford South Community Nursing,WELLINGTON MEDICAL PRACTICE PARTNERSHIP,004531,24.24,,
Department of Health,CT Revenue Funds,06/04/2017,"Forms, Record Cards & Booklets",CAMHS Learning Disabilities,PEARSON EDUCATION LIMITED,1364743,32.00,,
Department of Health,CT Revenue Funds,06/04/2017,"Forms, Record Cards & Booklets",CAMHS Learning Disabilities,PEARSON EDUCATION LIMITED,1364743,340.00,,
Department of Health,CT Revenue Funds,06/04/2017,"Forms, Record Cards & Booklets",CAMHS Learning Disabilities,PEARSON EDUCATION LIMITED,1364743,68.00,,
Department of Health,CT Revenue Funds,06/04/2017,"Forms, Record Cards & Booklets",CAMHS Learning Disabilities,PEARSON EDUCATION LIMITED,1364743,-68.00,,
Department of Health,CT Revenue Funds,06/04/2017,"Forms, Record Cards & Booklets",CAMHS Learning Disabilities,PEARSON EDUCATION LIMITED,1364743,6.40,,
Department of Health,CT Revenue Funds,06/04/2017,"Forms, Record Cards & Booklets",Shropshire CAMHS Team,PEARSON EDUCATION LIMITED,1372305,131.00,,
Department of Health,CT Revenue Funds,06/04/2017,"Forms, Record Cards & Booklets",Shropshire CAMHS Team,PEARSON EDUCATION LIMITED,1372305,655.00,,
Department of Health,CT Revenue Funds,06/04/2017,"Forms, Record Cards & Booklets",Shropshire CAMHS Team,PEARSON EDUCATION LIMITED,1372305,131.00,,
Department of Health,CT Revenue Funds,06/04/2017,"Forms, Record Cards & Booklets",Shropshire CAMHS Team,PEARSON EDUCATION LIMITED,1372305,655.00,,
Department of Health,CT Revenue Funds,06/04/2017,"Forms, Record Cards & Booklets",CAMHS Team (T&W),PEARSON EDUCATION LIMITED,1372306,131.00,,
Department of Health,CT Revenue Funds,06/04/2017,"Forms, Record Cards & Booklets",CAMHS Team (T&W),PEARSON EDUCATION LIMITED,1372306,655.00,,
Department of Health,CT Revenue Funds,06/04/2017,"Forms, Record Cards & Booklets",CAMHS Team (T&W),PEARSON EDUCATION LIMITED,1372306,655.00,,
Department of Health,CT Revenue Funds,06/04/2017,"Forms, Record Cards & Booklets",CAMHS Team (T&W),PEARSON EDUCATION LIMITED,1372306,131.00,,
Department of Health,CT Revenue Funds,06/04/2017,Furniture & Fittings,Shropshire School Nurses,WT COMMUNICATIONS LTD,2705,56.00,,
Department of Health,CT Revenue Funds,06/04/2017,Furniture & Fittings,Shropshire School Nurses,WT COMMUNICATIONS LTD,2705,280.00,,
Department of Health,CT Revenue Funds,06/04/2017,Furniture & Fittings,Bridgnorth Hospital Inpatient Ward,FRONTIER THERAPEUTICS,434172,351.80,700 8536 57,
Department of Health,CT Revenue Funds,06/04/2017,Furniture & Fittings,Bridgnorth Hospital Inpatient Ward,FRONTIER THERAPEUTICS,434172,70.36,700 8536 57,
Department of Health,CT Revenue Funds,06/04/2017,Furniture & Fittings,HR and Workforce,EFG OFFICE FURNITURE LTD,888080,16.33,,
Department of Health,CT Revenue Funds,06/04/2017,Furniture & Fittings,HR and Workforce,EFG OFFICE FURNITURE LTD,888080,81.66,,
Department of Health,CT Revenue Funds,06/04/2017,Furniture & Fittings,Whitchurch Hospital Administration,OFFICE DEPOT,970746005.,10.60,,
Department of Health,CT Revenue Funds,06/04/2017,Furniture & Fittings,Whitchurch Hospital Administration,OFFICE DEPOT,970746005.,53.01,,
Department of Health,CT Revenue Funds,06/04/2017,Gas,Monkmoor CDC,SHROPSHIRE COUNCIL,33470-GAS&ELECTRIC FEB17,234.88,162 3474 72,
Department of Health,CT Revenue Funds,06/04/2017,General Practitioners,APCS Dermatology,MARYSVILLE MEDICAL PRACTICE,01743-300 - DERMATOLOGY,2957.73,,
Department of Health,CT Revenue Funds,06/04/2017,GP Medical Advisor,APCS - Dermatology - Telford and Wrekin,OAKENGATES MEDICAL PRACTICE,93,1473.66,,
Department of Health,CT Revenue Funds,06/04/2017,GP Medical Advisor,APCS - Dermatology - Telford and Wrekin,OAKENGATES MEDICAL PRACTICE,94,1473.66,,
Department of Health,CT Charitable Funds,06/04/2017,Grants re Staff Welfare,SCL3 Ludlow Hospital ZH Legacy,UNIVERSITY OF WOLVERHAMPTON FINANCE OFF,1627550-001,412.36,,
Department of Health,CT Revenue Funds,06/04/2017,Hoists/Slings,Community Equipment Stores,OSPREY SLING COMPANY LTD,17401,15.00,,
Department of Health,CT Revenue Funds,06/04/2017,Hoists/Slings,Community Equipment Stores,OSPREY SLING COMPANY LTD,17401,127.00,,
Department of Health,CT Revenue Funds,06/04/2017,Hoists/Slings,Community Equipment Stores,OSPREY SLING COMPANY LTD,17401,117.00,,
Department of Health,CT Revenue Funds,06/04/2017,Hoists/Slings,Community Equipment Stores,OSPREY SLING COMPANY LTD,17401,23.40,,
Department of Health,CT Revenue Funds,06/04/2017,Hoists/Slings,Community Equipment Stores,OSPREY SLING COMPANY LTD,17401,126.00,,
Department of Health,CT Revenue Funds,06/04/2017,Hoists/Slings,Community Equipment Stores,OSPREY SLING COMPANY LTD,17401,3.00,,
Department of Health,CT Revenue Funds,06/04/2017,Hoists/Slings,Community Equipment Stores,OSPREY SLING COMPANY LTD,17401,25.40,,
Department of Health,CT Revenue Funds,06/04/2017,Hoists/Slings,Community Equipment Stores,OSPREY SLING COMPANY LTD,17401,25.20,,
Department of Health,CT Revenue Funds,06/04/2017,Hoists/Slings,Community Equipment Stores,OSPREY SLING COMPANY LTD,17453,144.00,,
Department of Health,CT Revenue Funds,06/04/2017,Hoists/Slings,Community Equipment Stores,OSPREY SLING COMPANY LTD,17453,720.00,,
Department of Health,CT Revenue Funds,06/04/2017,Home Management daily Living Aids Miscellaneous Appliances,Community Equipment Stores,ACCORA,042372,97.50,,
Department of Health,CT Revenue Funds,06/04/2017,Home Management daily Living Aids Miscellaneous Appliances,Community Equipment Stores,ACCORA,042372,19.50,,
Department of Health,CT Revenue Funds,06/04/2017,Home Management daily Living Aids Miscellaneous Appliances,Whitchurch Hospital Inpatient Ward,ARJOHUNTLEIGH UK,3390054023,15.00,382 4746 30,
Department of Health,CT Revenue Funds,06/04/2017,Home Management daily Living Aids Miscellaneous Appliances,Whitchurch Hospital Inpatient Ward,ARJOHUNTLEIGH UK,3390054023,-14.85,382 4746 30,
Department of Health,CT Revenue Funds,06/04/2017,Home Management daily Living Aids Miscellaneous Appliances,Whitchurch Hospital Inpatient Ward,ARJOHUNTLEIGH UK,3390054023,3.00,382 4746 30,
Department of Health,CT Revenue Funds,06/04/2017,Home Management daily Living Aids Miscellaneous Appliances,Whitchurch Hospital Inpatient Ward,ARJOHUNTLEIGH UK,3390054023,148.49,382 4746 30,
Department of Health,CT Revenue Funds,06/04/2017,Home Management daily Living Aids Miscellaneous Appliances,Whitchurch Hospital Inpatient Ward,ARJOHUNTLEIGH UK,3390054023,-74.25,382 4746 30,
Department of Health,CT Revenue Funds,06/04/2017,Home Management daily Living Aids Miscellaneous Appliances,Whitchurch Hospital Inpatient Ward,ARJOHUNTLEIGH UK,3390054023,742.47,382 4746 30,
Department of Health,CT Revenue Funds,06/04/2017,Home Management daily Living Aids Miscellaneous Appliances,Community Equipment Stores,SIDHIL LTD,625881,90.48,461 1277 66,
Department of Health,CT Revenue Funds,06/04/2017,Home Management daily Living Aids Miscellaneous Appliances,Community Equipment Stores,SIDHIL LTD,625881,18.10,461 1277 66,
Department of Health,CT Revenue Funds,06/04/2017,Home Management daily Living Aids Miscellaneous Appliances,Community Equipment Stores,IKA MOBILITY,IN1069,30.00,971 5578 82,
Department of Health,CT Revenue Funds,06/04/2017,Home Management daily Living Aids Miscellaneous Appliances,Community Equipment Stores,IKA MOBILITY,IN1069,150.00,971 5578 82,
Department of Health,CT Revenue Funds,06/04/2017,Home Management daily Living Aids Miscellaneous Appliances,Community Equipment Stores,IKA MOBILITY,IN1069,-30.00,971 5578 82,
Department of Health,CT Revenue Funds,06/04/2017,Home Management daily Living Aids Miscellaneous Appliances,Community Equipment Stores,IKA MOBILITY,IN1070,-42.56,971 5578 82,
Department of Health,CT Revenue Funds,06/04/2017,Home Management daily Living Aids Miscellaneous Appliances,Community Equipment Stores,IKA MOBILITY,IN1070,212.79,971 5578 82,
Department of Health,CT Revenue Funds,06/04/2017,Home Management daily Living Aids Miscellaneous Appliances,Community Equipment Stores,IKA MOBILITY,IN1070,42.56,971 5578 82,
Department of Health,CT Revenue Funds,06/04/2017,Home Management daily Living Aids Miscellaneous Appliances,Community Equipment Stores,IKA MOBILITY,IN1071,-49.40,971 5578 82,
Department of Health,CT Revenue Funds,06/04/2017,Home Management daily Living Aids Miscellaneous Appliances,Community Equipment Stores,IKA MOBILITY,IN1071,49.40,971 5578 82,
Department of Health,CT Revenue Funds,06/04/2017,Home Management daily Living Aids Miscellaneous Appliances,Community Equipment Stores,IKA MOBILITY,IN1071,246.99,971 5578 82,
Department of Health,CT Revenue Funds,06/04/2017,Home Management daily Living Aids Miscellaneous Appliances,Community Equipment Stores,KENWAY MOBILITY,KS0010288 1.4.17,115.50,,
Department of Health,CT Revenue Funds,06/04/2017,Home Management daily Living Aids Miscellaneous Appliances,Community Equipment Stores,KENWAY MOBILITY,KS0010289 1.4.17,115.50,,
Department of Health,CT Revenue Funds,06/04/2017,Home Management daily Living Aids Miscellaneous Appliances,Community Equipment Stores,KENWAY MOBILITY,KS0010290 1.4.17,134.75,,
Department of Health,CT Revenue Funds,06/04/2017,Home Management daily Living Aids Miscellaneous Appliances,Community Equipment Stores,KENWAY MOBILITY,KS0010291 1.4.17,177.50,,
Department of Health,CT Revenue Funds,06/04/2017,Home Management daily Living Aids Miscellaneous Appliances,Community Equipment Stores,KENWAY MOBILITY,KS0010292 1.4.17,115.50,,
Department of Health,CT Revenue Funds,06/04/2017,Home Management daily Living Aids Miscellaneous Appliances,Community Equipment Stores,KENWAY MOBILITY,KS0010293 1.4.17,115.50,,
Department of Health,CT Revenue Funds,06/04/2017,Home Management daily Living Aids Miscellaneous Appliances,Community Equipment Stores,KENWAY MOBILITY,KS0010294 1.4.17,161.25,,
Department of Health,CT Revenue Funds,06/04/2017,Home Management daily Living Aids Miscellaneous Appliances,Community Equipment Stores,KENWAY MOBILITY,KS0010295 1.4.17,96.25,,
Department of Health,CT Revenue Funds,06/04/2017,Hospital Saturday Fund,Payables,BIRMINGHAM HOSPITAL SATURDAY FUND,FEB17 DEDUCTIONS,132.45,,
Department of Health,CT Revenue Funds,06/04/2017,Hospitality,CAMHS Management,JENNYS CATERING,25048,234.00,647896863,
Department of Health,CT Revenue Funds,06/04/2017,Interpreting Services,Community Neuro Rehabilitation Team (CNRT),ABSOLUTE INTERPRETING AND TRANSLATIONS LTD,136448,38.50,,
Department of Health,CT Revenue Funds,06/04/2017,Interpreting Services,Shrewsbury and Atcham Health Visitiors,ABSOLUTE INTERPRETING AND TRANSLATIONS LTD,136677,67.37,,
Department of Health,CT Revenue Funds,06/04/2017,Interpreting Services,Whitchurch Hospital Outpatients,ABSOLUTE INTERPRETING AND TRANSLATIONS LTD,136681,38.50,,
Department of Health,CT Revenue Funds,06/04/2017,Interpreting Services,Monkmoor CDC,ABSOLUTE INTERPRETING AND TRANSLATIONS LTD,136683,48.12,,
Department of Health,CT Revenue Funds,06/04/2017,Interpreting Services,Shrewsbury and Atcham Health Visitiors,ABSOLUTE INTERPRETING AND TRANSLATIONS LTD,136712,48.12,,
Department of Health,CT Revenue Funds,06/04/2017,Interpreting Services,Child Speech and Language Therapy,ABSOLUTE INTERPRETING AND TRANSLATIONS LTD,136714,57.75,,
Department of Health,CT Revenue Funds,06/04/2017,Interpreting Services,Telford Child Development Centre,ABSOLUTE INTERPRETING AND TRANSLATIONS LTD,136716,48.12,,
Department of Health,CT Revenue Funds,06/04/2017,Interpreting Services,Monkmoor CDC,ABSOLUTE INTERPRETING AND TRANSLATIONS LTD,136718,38.50,,
Department of Health,CT Revenue Funds,06/04/2017,Interpreting Services,Shrewsbury and Atcham Health Visitiors,ABSOLUTE INTERPRETING AND TRANSLATIONS LTD,136930,38.50,,
Department of Health,CT Revenue Funds,06/04/2017,Interpreting Services,Shrewsbury and Atcham Health Visitiors,ABSOLUTE INTERPRETING AND TRANSLATIONS LTD,137303,48.12,,
Department of Health,CT Revenue Funds,06/04/2017,Interpreting Services,Monkmoor CDC,ABSOLUTE INTERPRETING AND TRANSLATIONS LTD,137304,77.00,,
Department of Health,CT Revenue Funds,06/04/2017,Interpreting Services,CAMHS Team (T&W),ABSOLUTE INTERPRETING AND TRANSLATIONS LTD,137325,67.37,,
Department of Health,CT Revenue Funds,06/04/2017,Interpreting Services,CAMHS Team (T&W),VISS SIGN LANGUAGE INTERPRETING SERVICE,6175,118.75,875 9280 71,
Department of Health,CT Revenue Funds,06/04/2017,Laboratory Apparatus,Telford North Community Nursing,MEDISAVE (UK) LTD,1173681,276.19,,
Department of Health,CT Revenue Funds,06/04/2017,Laboratory Apparatus,Telford North Community Nursing,MEDISAVE (UK) LTD,1173681,55.24,,
Department of Health,CT Revenue Funds,06/04/2017,Laboratory Apparatus,Telford North Community Nursing,MEDISAVE (UK) LTD,1173681,-16.70,,
Department of Health,CT Revenue Funds,06/04/2017,Laboratory Apparatus,Telford North Community Nursing,MEDISAVE (UK) LTD,1173681,-3.34,,
Department of Health,CT Revenue Funds,06/04/2017,Laboratory Apparatus,Telford North Community Nursing,MEDISAVE (UK) LTD,323516,22.15,,
Department of Health,CT Revenue Funds,06/04/2017,Laboratory Apparatus,Telford North Community Nursing,MEDISAVE (UK) LTD,323516,-276.19,,
Department of Health,CT Revenue Funds,06/04/2017,Laboratory Apparatus,Telford North Community Nursing,MEDISAVE (UK) LTD,323516,110.75,,
Department of Health,CT Revenue Funds,06/04/2017,Laboratory Apparatus,Telford North Community Nursing,MEDISAVE (UK) LTD,323516,-55.24,,
Department of Health,CT Revenue Funds,06/04/2017,Laboratory External Tests,Occupational Health Shropshire,MIDLAND PATHOLOGY SERVICES LIMITED,OHSA D 3 2017,722.20,,
Department of Health,CT Revenue Funds,06/04/2017,Laboratory External Tests,Occupational Health Shropshire,MIDLAND PATHOLOGY SERVICES LIMITED,OHSA E 3 2017,718.00,,
Department of Health,CT Revenue Funds,06/04/2017,Laboratory External Tests,Occupational Health Stoke,MIDLAND PATHOLOGY SERVICES LIMITED,SCHA D 3 2017,118.20,,
Department of Health,CT Revenue Funds,06/04/2017,Laboratory External Tests,Occupational Health Stoke,MIDLAND PATHOLOGY SERVICES LIMITED,SCHA E 3 2017,404.80,,
Department of Health,CT Revenue Funds,06/04/2017,Leased Cars : Contract,North West Shropshire Interdisciplinary Teams,GREENHOUS GROUP LTD,21727607,155.80,713 2418 68,
Department of Health,CT Revenue Funds,06/04/2017,Leased Cars : Contract,Telford School Nurses,AUTOMOTIVE LEASING LTD,502203059,30.92,442 5587 39,
Department of Health,CT Revenue Funds,06/04/2017,Leased Cars : Contract,Telford South Community Nursing,AUTOMOTIVE LEASING LTD,502336281,173.59,442 5587 39,
Department of Health,CT Revenue Funds,06/04/2017,Leased Cars : Contract,Community Childrens Nurses,AUTOMOTIVE LEASING LTD,502414506,288.78,442 5587 39,
Department of Health,CT Revenue Funds,06/04/2017,Leased Cars : Contract,Community Equipment Stores,AUTOMOTIVE LEASING LTD,502414507,544.94,442 5587 39,
Department of Health,CT Revenue Funds,06/04/2017,Leased Cars : Contract,North West Shropshire Interdisciplinary Teams,AUTOMOTIVE LEASING LTD,502417287,-1536.53,442 5587 39,
Department of Health,CT Revenue Funds,06/04/2017,Leased Cars : Contract,North West Shropshire Interdisciplinary Teams,AUTOMOTIVE LEASING LTD,502418953,167.16,442 5587 39,
Department of Health,CT Revenue Funds,06/04/2017,Leased Cars : Contract,North West Shropshire Interdisciplinary Teams,AUTOMOTIVE LEASING LTD,502420343,178.00,442 5587 39,
Department of Health,CT Revenue Funds,06/04/2017,Leased Cars : Contract,North West Shropshire Interdisciplinary Teams,AUTOMOTIVE LEASING LTD,502434699,271.01,442 5587 39,
Department of Health,CT Revenue Funds,06/04/2017,Leased Cars : Contract,Telford School Nurses,AUTOMOTIVE LEASING LTD,502505027,-30.92,442 5587 39,
Department of Health,CT Revenue Funds,06/04/2017,Leased Cars : Contract,Telford School Nurses,AUTOMOTIVE LEASING LTD,502505027,-37.10,442 5587 39,
Department of Health,CT Revenue Funds,06/04/2017,Leased Cars : Contract,Telford School Nurses,AUTOMOTIVE LEASING LTD,502505027,37.10,442 5587 39,
Department of Health,CT Revenue Funds,06/04/2017,Leased Cars : Contract,Telford North Community Nursing,AUTOMOTIVE LEASING LTD,502511997,2096.80,442 5587 39,
Department of Health,CT Revenue Funds,06/04/2017,Leased Cars : Contract,DO NOT USE Community Nursing Team 5,LEX AUTOLEASE LTD,950017438590,63.00,,
Department of Health,CT Revenue Funds,06/04/2017,Leased Cars : Contract,DO NOT USE Community Nursing Team 5,LEX AUTOLEASE LTD,950017438590,-63.00,,
Department of Health,CT Revenue Funds,06/04/2017,Leased Cars : Contract,DO NOT USE Community Nursing Team 5,LEX AUTOLEASE LTD,950017438590,315.00,,
Department of Health,CT Revenue Funds,06/04/2017,Leased Cars : Contract,DO NOT USE Community Nursing Team 5,LEX AUTOLEASE LTD,950017524519,15.75,,
Department of Health,CT Revenue Funds,06/04/2017,Leased Cars : Contract,DO NOT USE Community Nursing Team 5,LEX AUTOLEASE LTD,950017524519,-15.75,,
Department of Health,CT Revenue Funds,06/04/2017,Leased Cars : Contract,DO NOT USE Community Nursing Team 5,LEX AUTOLEASE LTD,950017524519,78.75,,
Department of Health,CT Revenue Funds,06/04/2017,Leased Cars : Contract,DO NOT USE Community Nursing Team 5,LEX AUTOLEASE LTD,950017960195,311.79,,
Department of Health,CT Revenue Funds,06/04/2017,Leased Cars : Contract,DO NOT USE Community Nursing Team 5,LEX AUTOLEASE LTD,950017960195,62.36,,
Department of Health,CT Revenue Funds,06/04/2017,Leased Cars : Contract,DO NOT USE Community Nursing Team 5,LEX AUTOLEASE LTD,950018407549,-57.40,,
Department of Health,CT Revenue Funds,06/04/2017,Leased Cars : Contract,DO NOT USE Community Nursing Team 5,LEX AUTOLEASE LTD,950018407549,287.00,,
Department of Health,CT Revenue Funds,06/04/2017,Leased Cars : Contract,DO NOT USE Community Nursing Team 5,LEX AUTOLEASE LTD,950018407549,57.40,,
Department of Health,CT Revenue Funds,06/04/2017,Leased Cars : Contract,DO NOT USE Community Nursing Team 5,LEX AUTOLEASE LTD,950018685570,184.50,,
Department of Health,CT Revenue Funds,06/04/2017,Leased Cars : Contract,DO NOT USE Community Nursing Team 5,LEX AUTOLEASE LTD,950018685570,-36.90,,
Department of Health,CT Revenue Funds,06/04/2017,Leased Cars : Contract,DO NOT USE Community Nursing Team 5,LEX AUTOLEASE LTD,950018685570,36.90,,
Department of Health,CT Revenue Funds,06/04/2017,Leased Cars : Contract,North East Shropshire Interdisciplinary Teams,ARNOLD CLARK LTD,I00237400,363.46,334 3318 79,
Department of Health,CT Revenue Funds,06/04/2017,Leased Cars : Contract,North East Shropshire Interdisciplinary Teams,ARNOLD CLARK LTD,I00237400,-363.46,334 3318 79,
Department of Health,CT Revenue Funds,06/04/2017,Leased Cars : Contract,North East Shropshire Interdisciplinary Teams,ARNOLD CLARK LTD,I00237400,1817.28,334 3318 79,
Department of Health,CT Revenue Funds,06/04/2017,Leased Cars : Contract,Community Childrens Nurses,VOLKSWAGEN GROUP LEASING,IN02078986,1717.87,,
Department of Health,CT Revenue Funds,06/04/2017,Leased Cars : Contract,Community Childrens Nurses,VOLKSWAGEN GROUP LEASING,IN02078986,343.57,,
Department of Health,CT Revenue Funds,06/04/2017,Leased Cars : Contract,Community Childrens Nurses,VOLKSWAGEN GROUP LEASING,IN02078986,-343.57,,
Department of Health,CT Revenue Funds,06/04/2017,Leased Cars : Contract,Diabetes Specialist Nursing,ARNOLD CLARK LTD,K00086065,-1213.19,334 3318 79,
Department of Health,CT Revenue Funds,06/04/2017,Leased Cars : Contract,Nurse Liaison Intermediate Care (T&W),ARNOLD CLARK LTD,M00172299,163.00,334 3318 79,
Department of Health,CT Revenue Funds,06/04/2017,Leased Cars : Contract,North West Shropshire Interdisciplinary Teams,LEX AUTOLEASE LTD,PFIN684169,2.00,,
Department of Health,CT Revenue Funds,06/04/2017,Leased Cars : Contract,North West Shropshire Interdisciplinary Teams,LEX AUTOLEASE LTD,PFIN684169,10.00,,
Department of Health,CT Revenue Funds,06/04/2017,Leased Cars : Expenses Excl Rental,Governance,NATIONAL WINDSCREENS STAFFORD,I43014219,50.00,,
Department of Health,CT Revenue Funds,06/04/2017,Leased Cars : Expenses Excl Rental,Telford South Community Nursing,LOOKERS PLC,MI0010997,20.00,,
Department of Health,CT Revenue Funds,06/04/2017,Legal/Professional Fees,Whitchurch Hospital,HCT CONSTRUCTION CONSULTANTS LTD,06118,1250.00,,
Department of Health,CT Revenue Funds,06/04/2017,Legal/Professional Fees,Whitchurch Hospital,VALUATION OFFICE AGENCY,25000135032016,387.73,888848141,
Department of Health,CT Revenue Funds,06/04/2017,Legal/Professional Fees,Whitchurch Hospital,VALUATION OFFICE AGENCY,25000135032016,77.55,888848141,
Department of Health,CT Revenue Funds,06/04/2017,Legal/Professional Fees,Organisational Development,OPEN CROSSING LTD,OCINV-SHROPCOM002,5497.00,,
Department of Health,CT Revenue Funds,06/04/2017,Legal/Professional Fees,Organisational Development,OPEN CROSSING LTD,OCINV-SHROPCOM002,1099.40,,
Department of Health,CT Revenue Funds,06/04/2017,Mattress Systems,Community Equipment Stores,FRONTIER THERAPEUTICS,434367,140.72,700 8536 57,
Department of Health,CT Revenue Funds,06/04/2017,Mattress Systems,Community Equipment Stores,FRONTIER THERAPEUTICS,434367,703.60,700 8536 57,
Department of Health,CT Revenue Funds,06/04/2017,Mattress Systems,Community Equipment Stores,FRONTIER THERAPEUTICS,434403,703.60,700 8536 57,
Department of Health,CT Revenue Funds,06/04/2017,Mattress Systems,Community Equipment Stores,FRONTIER THERAPEUTICS,434403,140.72,700 8536 57,
Department of Health,CT Revenue Funds,06/04/2017,Mattress Systems,Community Equipment Stores,FRONTIER THERAPEUTICS,434420,140.72,700 8536 57,
Department of Health,CT Revenue Funds,06/04/2017,Mattress Systems,Community Equipment Stores,FRONTIER THERAPEUTICS,434420,703.60,700 8536 57,
Department of Health,CT Revenue Funds,06/04/2017,Mattress Systems,Community Equipment Stores,FRONTIER THERAPEUTICS,434421,140.72,700 8536 57,
Department of Health,CT Revenue Funds,06/04/2017,Mattress Systems,Community Equipment Stores,FRONTIER THERAPEUTICS,434421,703.60,700 8536 57,
Department of Health,CT Revenue Funds,06/04/2017,Mattress Systems,Community Equipment Stores,FRONTIER THERAPEUTICS,434422,140.72,700 8536 57,
Department of Health,CT Revenue Funds,06/04/2017,Mattress Systems,Community Equipment Stores,FRONTIER THERAPEUTICS,434422,703.60,700 8536 57,
Department of Health,CT Revenue Funds,06/04/2017,Mattress Systems,Community Equipment Stores,FRONTIER THERAPEUTICS,434518,140.72,700 8536 57,
Department of Health,CT Revenue Funds,06/04/2017,Mattress Systems,Community Equipment Stores,FRONTIER THERAPEUTICS,434518,703.60,700 8536 57,
Department of Health,CT Revenue Funds,06/04/2017,Mattress Systems,Community Equipment Stores,FRONTIER THERAPEUTICS,434520,140.72,700 8536 57,
Department of Health,CT Revenue Funds,06/04/2017,Mattress Systems,Community Equipment Stores,FRONTIER THERAPEUTICS,434520,703.60,700 8536 57,
Department of Health,CT Revenue Funds,06/04/2017,Medical & Surgical Equipment : Disposable,Bridgnorth Hospital Minor Injuries Unit,WEST MERCIA SUPPLIES,B610570,272.24,639 7887 63,
Department of Health,CT Revenue Funds,06/04/2017,Medical & Surgical Equipment : Disposable,Bridgnorth Hospital Minor Injuries Unit,WEST MERCIA SUPPLIES,B610570,30.25,639 7887 63,
Department of Health,CT Revenue Funds,06/04/2017,Medical & Surgical Equipment : Disposable,Bridgnorth Hospital Minor Injuries Unit,WEST MERCIA SUPPLIES,B610570,54.45,639 7887 63,
Department of Health,CT Revenue Funds,06/04/2017,Medical & Surgical Equipment : Disposable,Bridgnorth Hospital Minor Injuries Unit,WEST MERCIA SUPPLIES,B610570,6.05,639 7887 63,
Department of Health,CT Revenue Funds,06/04/2017,Medical & Surgical Equipment : General,APCS Gynaecology,MEDIPLUS LTD,SIN189033,63.90,,
Department of Health,CT Revenue Funds,06/04/2017,Medical & Surgical Equipment : General,APCS Gynaecology,MEDIPLUS LTD,SIN189033,127.80,,
Department of Health,CT Revenue Funds,06/04/2017,Medical & Surgical Equipment : General,APCS Gynaecology,MEDIPLUS LTD,SIN189033,319.50,,
Department of Health,CT Revenue Funds,06/04/2017,Medical & Surgical Equipment : General,APCS Gynaecology,MEDIPLUS LTD,SIN189033,25.56,,
Department of Health,CT Revenue Funds,06/04/2017,Medical & Surgical Equipment : General,APCS Gynaecology,MEDIPLUS LTD,SIN189064,25.56,,
Department of Health,CT Revenue Funds,06/04/2017,Medical & Surgical Equipment : General,APCS Gynaecology,MEDIPLUS LTD,SIN189064,63.90,,
Department of Health,CT Revenue Funds,06/04/2017,Medical & Surgical Equipment : General,APCS Gynaecology,MEDIPLUS LTD,SIN189064,319.50,,
Department of Health,CT Revenue Funds,06/04/2017,Medical & Surgical Equipment : General,APCS Gynaecology,MEDIPLUS LTD,SIN189064,127.80,,
Department of Health,CT Revenue Funds,06/04/2017,Medical Examination Reports,Occupational Health Stoke,LEEK HEALTH CENTRE,88B/16,35.00,,
Department of Health,CT Revenue Funds,06/04/2017,Medical Examination Reports,Occupational Health Stoke,WERRINGTON VILLAGE SURGERY,R GREEN DOB 28.11.65 MED REPORT,130.00,,
Department of Health,CT Revenue Funds,06/04/2017,Medical Gases,Bridgnorth Hospital Inpatient Ward,BOC LTD,3040546165,120.75,226 5565 55,
Department of Health,CT Revenue Funds,06/04/2017,Medical Gases,Bridgnorth Hospital Inpatient Ward,BOC LTD,3040546165,24.15,226 5565 55,
Department of Health,CT Revenue Funds,06/04/2017,Medical Gases,Whitchurch Hospital Inpatient Ward,BOC LTD,3040647679,45.10,226 5565 55,
Department of Health,CT Revenue Funds,06/04/2017,Medical Gases,Whitchurch Hospital Inpatient Ward,BOC LTD,3040647679,9.02,226 5565 55,
Department of Health,CT Revenue Funds,06/04/2017,Medical Gases,Special Care and Access,BOC LTD,3040665212,42.06,226 5565 55,
Department of Health,CT Revenue Funds,06/04/2017,Medical Gases,Special Care and Access,BOC LTD,3040665212,8.41,226 5565 55,
Department of Health,CT Revenue Funds,06/04/2017,Medical Gases,Whitchurch Hospital Inpatient Ward,BOC LTD,3040709201,270.87,226 5565 55,
Department of Health,CT Revenue Funds,06/04/2017,Medical Gases,Whitchurch Hospital Inpatient Ward,BOC LTD,3040709201,54.18,226 5565 55,
Department of Health,CT Revenue Funds,06/04/2017,Medical Gases,Special Care and Access,BOC LTD,3040709204,1.85,226 5565 55,
Department of Health,CT Revenue Funds,06/04/2017,Medical Gases,Special Care and Access,BOC LTD,3040709204,9.26,226 5565 55,
Department of Health,CT Revenue Funds,06/04/2017,Medical Gases,Special Care and Access,BOC LTD,3040709210,29.30,226 5565 55,
Department of Health,CT Revenue Funds,06/04/2017,Medical Gases,Special Care and Access,BOC LTD,3040709210,5.86,226 5565 55,
Department of Health,CT Revenue Funds,06/04/2017,Medical Gases,Bridgnorth Hospital Inpatient Ward,BOC LTD,3040709214,402.37,226 5565 55,
Department of Health,CT Revenue Funds,06/04/2017,Medical Gases,Bridgnorth Hospital Inpatient Ward,BOC LTD,3040709214,80.48,226 5565 55,
Department of Health,CT Revenue Funds,06/04/2017,Medical Gases,Ludlow Hospital Inpatient Wards,BOC LTD,3040709219,76.36,226 5565 55,
Department of Health,CT Revenue Funds,06/04/2017,Medical Gases,Ludlow Hospital Inpatient Wards,BOC LTD,3040709219,381.80,226 5565 55,
Department of Health,CT Revenue Funds,06/04/2017,Medical Gases,Stoke Heath Prison Healthcare,BOC LTD,3040712727,24.56,226 5565 55,
Department of Health,CT Revenue Funds,06/04/2017,Medical Gases,Stoke Heath Prison Healthcare,BOC LTD,3040712727,122.81,226 5565 55,
Department of Health,CT Revenue Funds,06/04/2017,Medical Gases,C Arms Dental Practice,BOC LTD,3040725907,3.39,226 5565 55,
Department of Health,CT Revenue Funds,06/04/2017,Medical Gases,C Arms Dental Practice,BOC LTD,3040725907,16.93,226 5565 55,
Department of Health,CT Revenue Funds,06/04/2017,Medical Gases,Oswestry Minor Injuries Unit,BOC LTD,3040777767,67.19,226 5565 55,
Department of Health,CT Revenue Funds,06/04/2017,Medical Gases,Oswestry Minor Injuries Unit,BOC LTD,3040777767,13.44,226 5565 55,
Department of Health,CT Revenue Funds,06/04/2017,Medical Gases,Special Care and Access,BOC LTD,3040781320,40.37,226 5565 55,
Department of Health,CT Revenue Funds,06/04/2017,Medical Gases,Special Care and Access,BOC LTD,3040781320,8.08,226 5565 55,
Department of Health,CT Revenue Funds,06/04/2017,Medical Gases,Special Care and Access,BOC LTD,3040841547,5.52,226 5565 55,
Department of Health,CT Revenue Funds,06/04/2017,Medical Gases,Special Care and Access,BOC LTD,3040841547,27.58,226 5565 55,
Department of Health,CT Revenue Funds,06/04/2017,Medical Gases,Bridgnorth Hospital Inpatient Ward,BOC LTD,3040973805,16.19,226 5565 55,
Department of Health,CT Revenue Funds,06/04/2017,Medical Gases,Bridgnorth Hospital Inpatient Ward,BOC LTD,3040973805,80.94,226 5565 55,
Department of Health,CT Revenue Funds,06/04/2017,Meeting Expenses/Room Hire,EPR Programme,SHROPSHIRE EDUCATION & CONFERENCE,141806,86.33,762 4470 27,
Department of Health,CT Revenue Funds,06/04/2017,Meeting Expenses/Room Hire,EPR Programme,SHROPSHIRE EDUCATION & CONFERENCE,141806,17.27,762 4470 27,
Department of Health,CT Revenue Funds,06/04/2017,Meeting Expenses/Room Hire,Diabetes Specialist Nursing,TELFORD & WREKIN COUNCIL FOR VOLUNTARY SERVICE,20584,-50.00,,
Department of Health,CT Revenue Funds,06/04/2017,Meeting Expenses/Room Hire,Diabetes Specialist Nursing,TELFORD & WREKIN COUNCIL FOR VOLUNTARY SERVICE,20584,50.00,,
Department of Health,CT Revenue Funds,06/04/2017,Meeting Expenses/Room Hire,Falls Prevention,MAYFAIR COMMUNITY CENTRE,6715,60.00,,
Department of Health,CT Revenue Funds,06/04/2017,Meeting Expenses/Room Hire,Falls Prevention,MAYFAIR COMMUNITY CENTRE,6715,12.00,,
Department of Health,CT Revenue Funds,06/04/2017,Meeting Expenses/Room Hire,EPR Programme,SHREWSBURY TOWN FOOTBALL CLUB,6788,224.00,,
Department of Health,CT Revenue Funds,06/04/2017,Meeting Expenses/Room Hire,EPR Programme,SHREWSBURY TOWN FOOTBALL CLUB,6788,44.80,,
Department of Health,CT Revenue Funds,06/04/2017,Meeting Expenses/Room Hire,MSK Management & Admin,BUCKATREE HALL HOTEL,PROFORMA/100417,55.00,,
Department of Health,CT Revenue Funds,06/04/2017,Meeting Expenses/Room Hire,MSK Management & Admin,BUCKATREE HALL HOTEL,PROFORMA/100417,275.00,,
Department of Health,CT Revenue Funds,06/04/2017,Meeting Expenses/Room Hire,Diabetes Specialist Nursing,SHROPSHIRE COUNCIL,SGL002079,60.00,162 3474 72,
Department of Health,CT Revenue Funds,06/04/2017,Minor Works,Whitchurch Hospital,MULTI FLOOR (WALSALL) LTD,53708,3501.53,,
Department of Health,CT Revenue Funds,06/04/2017,Miscellaneous Expenditure,HR and Workforce,OPTIMUM CONTACT LTD,4985,2250.00,,
Department of Health,CT Revenue Funds,06/04/2017,Miscellaneous Expenditure,HR and Workforce,OPTIMUM CONTACT LTD,4985,450.00,,
Department of Health,CT Revenue Funds,06/04/2017,Miscellaneous Medical Tests,Bridgnorth Hospital Outpatients,NUFFIELD HEALTH,243194,110.00,564 2911 37,
Department of Health,CT Revenue Funds,06/04/2017,Mobile Phones,Psychiatry Learning Disabilites,EE LIMITED (FORMALLY ORANGE),01254388082,1.60,771 5920 16,
Department of Health,CT Revenue Funds,06/04/2017,Mobile Phones,Psychiatry Learning Disabilites,EE LIMITED (FORMALLY ORANGE),01254388082,8.00,771 5920 16,
Department of Health,CT Revenue Funds,06/04/2017,Mobile Phones,Dental Central Admin,EE LIMITED (FORMALLY ORANGE),01254388082,7.20,771 5920 16,
Department of Health,CT Revenue Funds,06/04/2017,Mobile Phones,Dental Central Admin,EE LIMITED (FORMALLY ORANGE),01254388082,35.98,771 5920 16,
Department of Health,CT Revenue Funds,06/04/2017,Mobile Phones,Special Care and Access,EE LIMITED (FORMALLY ORANGE),01254388082,15.49,771 5920 16,
Department of Health,CT Revenue Funds,06/04/2017,Mobile Phones,Special Care and Access,EE LIMITED (FORMALLY ORANGE),01254388082,77.44,771 5920 16,
Department of Health,CT Revenue Funds,06/04/2017,Mobile Phones,South Shropshire Health Visitors,EE LIMITED (FORMALLY ORANGE),01254388082,45.56,771 5920 16,
Department of Health,CT Revenue Funds,06/04/2017,Mobile Phones,South Shropshire Health Visitors,EE LIMITED (FORMALLY ORANGE),01254388082,227.82,771 5920 16,
Department of Health,CT Revenue Funds,06/04/2017,Mobile Phones,Dudley School Nurses,EE LIMITED (FORMALLY ORANGE),01254388082,227.06,771 5920 16,
Department of Health,CT Revenue Funds,06/04/2017,Mobile Phones,Dudley School Nurses,EE LIMITED (FORMALLY ORANGE),01254388082,1135.22,771 5920 16,
Department of Health,CT Revenue Funds,06/04/2017,Mobile Phones,ICS North East,EE LIMITED (FORMALLY ORANGE),01254388082,87.14,771 5920 16,
Department of Health,CT Revenue Funds,06/04/2017,Mobile Phones,ICS North East,EE LIMITED (FORMALLY ORANGE),01254388082,17.43,771 5920 16,
Department of Health,CT Revenue Funds,06/04/2017,Mobile Phones,ICS South East,EE LIMITED (FORMALLY ORANGE),01254388082,63.22,771 5920 16,
Department of Health,CT Revenue Funds,06/04/2017,Mobile Phones,ICS South East,EE LIMITED (FORMALLY ORANGE),01254388082,12.64,771 5920 16,
Department of Health,CT Revenue Funds,06/04/2017,Mobile Phones,Telford North Cluster Health Visitors,EE LIMITED (FORMALLY ORANGE),01254388082,159.78,771 5920 16,
Department of Health,CT Revenue Funds,06/04/2017,Mobile Phones,Telford North Cluster Health Visitors,EE LIMITED (FORMALLY ORANGE),01254388082,798.92,771 5920 16,
Department of Health,CT Revenue Funds,06/04/2017,Mobile Phones,Shropshire FNP,EE LIMITED (FORMALLY ORANGE),01254388082,32.14,771 5920 16,
Department of Health,CT Revenue Funds,06/04/2017,Mobile Phones,Shropshire FNP,EE LIMITED (FORMALLY ORANGE),01254388082,160.72,771 5920 16,
Department of Health,CT Revenue Funds,06/04/2017,Mobile Phones,Shrewsbury and Atcham Health Visitiors,EE LIMITED (FORMALLY ORANGE),01254388082,79.60,771 5920 16,
Department of Health,CT Revenue Funds,06/04/2017,Mobile Phones,Shrewsbury and Atcham Health Visitiors,EE LIMITED (FORMALLY ORANGE),01254388082,398.01,771 5920 16,
Department of Health,CT Revenue Funds,06/04/2017,Mobile Phones,C Arms Dental Practice,EE LIMITED (FORMALLY ORANGE),01254388082,0.70,771 5920 16,
Department of Health,CT Revenue Funds,06/04/2017,Mobile Phones,C Arms Dental Practice,EE LIMITED (FORMALLY ORANGE),01254388082,3.50,771 5920 16,
Department of Health,CT Revenue Funds,06/04/2017,Mobile Phones,Coral House,EE LIMITED (FORMALLY ORANGE),01254388082,2.53,771 5920 16,
Department of Health,CT Revenue Funds,06/04/2017,Mobile Phones,Coral House,EE LIMITED (FORMALLY ORANGE),01254388082,12.65,771 5920 16,
Department of Health,CT Revenue Funds,06/04/2017,Mobile Phones,Family Nurse Programme,EE LIMITED (FORMALLY ORANGE),01254388082,34.51,771 5920 16,
Department of Health,CT Revenue Funds,06/04/2017,Mobile Phones,Family Nurse Programme,EE LIMITED (FORMALLY ORANGE),01254388082,172.54,771 5920 16,
Department of Health,CT Revenue Funds,06/04/2017,Mobile Phones,New Born Hearing Screening,EE LIMITED (FORMALLY ORANGE),01254388082,-0.37,771 5920 16,
Department of Health,CT Revenue Funds,06/04/2017,Mobile Phones,New Born Hearing Screening,EE LIMITED (FORMALLY ORANGE),01254388082,-1.86,771 5920 16,
Department of Health,CT Revenue Funds,06/04/2017,Mobile Phones,Shropshire LAC Nurses,EE LIMITED (FORMALLY ORANGE),01254388082,2.80,771 5920 16,
Department of Health,CT Revenue Funds,06/04/2017,Mobile Phones,Shropshire LAC Nurses,EE LIMITED (FORMALLY ORANGE),01254388082,14.00,771 5920 16,
Department of Health,CT Revenue Funds,06/04/2017,Mobile Phones,Safeguarding Team,EE LIMITED (FORMALLY ORANGE),01254388082,11.75,771 5920 16,
Department of Health,CT Revenue Funds,06/04/2017,Mobile Phones,Safeguarding Team,EE LIMITED (FORMALLY ORANGE),01254388082,58.73,771 5920 16,
Department of Health,CT Revenue Funds,06/04/2017,Mobile Phones,Shropshire Child Comm Physiotherapy,EE LIMITED (FORMALLY ORANGE),01254388082,33.58,771 5920 16,
Department of Health,CT Revenue Funds,06/04/2017,Mobile Phones,Shropshire Child Comm Physiotherapy,EE LIMITED (FORMALLY ORANGE),01254388082,167.88,771 5920 16,
Department of Health,CT Revenue Funds,06/04/2017,Mobile Phones,Telford School Nurses,EE LIMITED (FORMALLY ORANGE),01254388082,47.93,771 5920 16,
Department of Health,CT Revenue Funds,06/04/2017,Mobile Phones,Telford School Nurses,EE LIMITED (FORMALLY ORANGE),01254388082,239.64,771 5920 16,
Department of Health,CT Revenue Funds,06/04/2017,Mobile Phones,Shropshire & Telford Special Schools (Bridge & Severndale),EE LIMITED (FORMALLY ORANGE),01254388082,4.24,771 5920 16,
Department of Health,CT Revenue Funds,06/04/2017,Mobile Phones,Shropshire & Telford Special Schools (Bridge & Severndale),EE LIMITED (FORMALLY ORANGE),01254388082,21.20,771 5920 16,
Department of Health,CT Revenue Funds,06/04/2017,Mobile Phones,Monkmoor CDC,EE LIMITED (FORMALLY ORANGE),01254388082,2.80,771 5920 16,
Department of Health,CT Revenue Funds,06/04/2017,Mobile Phones,Monkmoor CDC,EE LIMITED (FORMALLY ORANGE),01254388082,14.00,771 5920 16,
Department of Health,CT Revenue Funds,06/04/2017,Mobile Phones,M Drayton Dental Practice,EE LIMITED (FORMALLY ORANGE),01254388082,1.48,771 5920 16,
Department of Health,CT Revenue Funds,06/04/2017,Mobile Phones,M Drayton Dental Practice,EE LIMITED (FORMALLY ORANGE),01254388082,7.39,771 5920 16,
Department of Health,CT Revenue Funds,06/04/2017,Mobile Phones,Breast Feeding Lead,EE LIMITED (FORMALLY ORANGE),01254388082,7.27,771 5920 16,
Department of Health,CT Revenue Funds,06/04/2017,Mobile Phones,Breast Feeding Lead,EE LIMITED (FORMALLY ORANGE),01254388082,36.34,771 5920 16,
Department of Health,CT Revenue Funds,06/04/2017,Mobile Phones,Child Support Services Management,EE LIMITED (FORMALLY ORANGE),01254388082,2.84,771 5920 16,
Department of Health,CT Revenue Funds,06/04/2017,Mobile Phones,Child Support Services Management,EE LIMITED (FORMALLY ORANGE),01254388082,14.21,771 5920 16,
Department of Health,CT Revenue Funds,06/04/2017,Mobile Phones,Shropshire Community Paediatric Medical Staff,EE LIMITED (FORMALLY ORANGE),01254388082,14.52,771 5920 16,
Department of Health,CT Revenue Funds,06/04/2017,Mobile Phones,Shropshire Community Paediatric Medical Staff,EE LIMITED (FORMALLY ORANGE),01254388082,72.58,771 5920 16,
Department of Health,CT Revenue Funds,06/04/2017,Mobile Phones,CAMHS Learning Disabilities,EE LIMITED (FORMALLY ORANGE),01254388082,34.82,771 5920 16,
Department of Health,CT Revenue Funds,06/04/2017,Mobile Phones,CAMHS Learning Disabilities,EE LIMITED (FORMALLY ORANGE),01254388082,174.09,771 5920 16,
Department of Health,CT Revenue Funds,06/04/2017,Mobile Phones,Shrewsbury and Atcham South Interdisciplinary Teams,EE LIMITED (FORMALLY ORANGE),01254388082,45.58,771 5920 16,
Department of Health,CT Revenue Funds,06/04/2017,Mobile Phones,Shrewsbury and Atcham South Interdisciplinary Teams,EE LIMITED (FORMALLY ORANGE),01254388082,227.90,771 5920 16,
Department of Health,CT Revenue Funds,06/04/2017,Mobile Phones,Operations Directorate Management,EE LIMITED (FORMALLY ORANGE),01254388082,11.78,771 5920 16,
Department of Health,CT Revenue Funds,06/04/2017,Mobile Phones,Operations Directorate Management,EE LIMITED (FORMALLY ORANGE),01254388082,58.90,771 5920 16,
Department of Health,CT Revenue Funds,06/04/2017,Mobile Phones,PDS Out of Hours,EE LIMITED (FORMALLY ORANGE),01254388082,4.07,771 5920 16,
Department of Health,CT Revenue Funds,06/04/2017,Mobile Phones,PDS Out of Hours,EE LIMITED (FORMALLY ORANGE),01254388082,20.36,771 5920 16,
Department of Health,CT Revenue Funds,06/04/2017,Mobile Phones,North Shropshire Health Visitors,EE LIMITED (FORMALLY ORANGE),01254388082,48.97,771 5920 16,
Department of Health,CT Revenue Funds,06/04/2017,Mobile Phones,North Shropshire Health Visitors,EE LIMITED (FORMALLY ORANGE),01254388082,244.85,771 5920 16,
Department of Health,CT Revenue Funds,06/04/2017,Mobile Phones,Continence Services,EE LIMITED (FORMALLY ORANGE),01254388082,42.30,771 5920 16,
Department of Health,CT Revenue Funds,06/04/2017,Mobile Phones,Continence Services,EE LIMITED (FORMALLY ORANGE),01254388082,8.46,771 5920 16,
Department of Health,CT Revenue Funds,06/04/2017,Mobile Phones,North East Shropshire Interdisciplinary Teams,EE LIMITED (FORMALLY ORANGE),01254388082,100.73,771 5920 16,
Department of Health,CT Revenue Funds,06/04/2017,Mobile Phones,North East Shropshire Interdisciplinary Teams,EE LIMITED (FORMALLY ORANGE),01254388082,503.67,771 5920 16,
Department of Health,CT Revenue Funds,06/04/2017,Mobile Phones,Respiratory Liaison Nurses (T&W),EE LIMITED (FORMALLY ORANGE),01254388082,196.61,771 5920 16,
Department of Health,CT Revenue Funds,06/04/2017,Mobile Phones,Respiratory Liaison Nurses (T&W),EE LIMITED (FORMALLY ORANGE),01254388082,39.32,771 5920 16,
Department of Health,CT Revenue Funds,06/04/2017,Mobile Phones,Community Physiotherapy (T&W),EE LIMITED (FORMALLY ORANGE),01254388082,15.44,771 5920 16,
Department of Health,CT Revenue Funds,06/04/2017,Mobile Phones,Bridgnorth Hospital Minor Injuries Unit,EE LIMITED (FORMALLY ORANGE),01254388082,0.70,771 5920 16,
Department of Health,CT Revenue Funds,06/04/2017,Mobile Phones,Bridgnorth Hospital Minor Injuries Unit,EE LIMITED (FORMALLY ORANGE),01254388082,3.50,771 5920 16,
Department of Health,CT Revenue Funds,06/04/2017,Mobile Phones,Single Point of Referral,EE LIMITED (FORMALLY ORANGE),01254388082,16.05,771 5920 16,
Department of Health,CT Revenue Funds,06/04/2017,Mobile Phones,Single Point of Referral,EE LIMITED (FORMALLY ORANGE),01254388082,80.26,771 5920 16,
Department of Health,CT Revenue Funds,06/04/2017,Mobile Phones,Oswestry DAART,EE LIMITED (FORMALLY ORANGE),01254388082,2.80,771 5920 16,
Department of Health,CT Revenue Funds,06/04/2017,Mobile Phones,Oswestry DAART,EE LIMITED (FORMALLY ORANGE),01254388082,14.00,771 5920 16,
Department of Health,CT Revenue Funds,06/04/2017,Mobile Phones,Bridgnorth Hospital Administration,EE LIMITED (FORMALLY ORANGE),01254388082,3.26,771 5920 16,
Department of Health,CT Revenue Funds,06/04/2017,Mobile Phones,Bridgnorth Hospital Administration,EE LIMITED (FORMALLY ORANGE),01254388082,16.30,771 5920 16,
Department of Health,CT Revenue Funds,06/04/2017,Mobile Phones,Continence Advisors (T&W),EE LIMITED (FORMALLY ORANGE),01254388082,29.59,771 5920 16,
Department of Health,CT Revenue Funds,06/04/2017,Mobile Phones,Continence Advisors (T&W),EE LIMITED (FORMALLY ORANGE),01254388082,5.92,771 5920 16,
Department of Health,CT Revenue Funds,06/04/2017,Mobile Phones,Bridgnorth Hospital Inpatient Ward,EE LIMITED (FORMALLY ORANGE),01254388082,8.06,771 5920 16,
Department of Health,CT Revenue Funds,06/04/2017,Mobile Phones,Bridgnorth Hospital Inpatient Ward,EE LIMITED (FORMALLY ORANGE),01254388082,40.32,771 5920 16,
Department of Health,CT Revenue Funds,06/04/2017,Mobile Phones,Telford North Community Nursing,EE LIMITED (FORMALLY ORANGE),01254388082,493.02,771 5920 16,
Department of Health,CT Revenue Funds,06/04/2017,Mobile Phones,South East Interdisciplinary Teams,EE LIMITED (FORMALLY ORANGE),01254388082,121.46,771 5920 16,
Department of Health,CT Revenue Funds,06/04/2017,Mobile Phones,South East Interdisciplinary Teams,EE LIMITED (FORMALLY ORANGE),01254388082,607.29,771 5920 16,
Department of Health,CT Revenue Funds,06/04/2017,Mobile Phones,William Farr House,EE LIMITED (FORMALLY ORANGE),01254388082,1.41,771 5920 16,
Department of Health,CT Revenue Funds,06/04/2017,Mobile Phones,William Farr House,EE LIMITED (FORMALLY ORANGE),01254388082,0.28,771 5920 16,
Department of Health,CT Revenue Funds,06/04/2017,Mobile Phones,ICS North West,EE LIMITED (FORMALLY ORANGE),01254388082,30.68,771 5920 16,
Department of Health,CT Revenue Funds,06/04/2017,Mobile Phones,ICS North West,EE LIMITED (FORMALLY ORANGE),01254388082,6.14,771 5920 16,
Department of Health,CT Revenue Funds,06/04/2017,Mobile Phones,Shropshire Child Psychiatry,EE LIMITED (FORMALLY ORANGE),01254388082,9.02,771 5920 16,
Department of Health,CT Revenue Funds,06/04/2017,Mobile Phones,Shropshire Child Psychiatry,EE LIMITED (FORMALLY ORANGE),01254388082,45.08,771 5920 16,
Department of Health,CT Revenue Funds,06/04/2017,Mobile Phones,ICS South West,EE LIMITED (FORMALLY ORANGE),01254388082,58.16,771 5920 16,
Department of Health,CT Revenue Funds,06/04/2017,Mobile Phones,ICS South West,EE LIMITED (FORMALLY ORANGE),01254388082,11.63,771 5920 16,
Department of Health,CT Revenue Funds,06/04/2017,Mobile Phones,Children & Families SDG Management,EE LIMITED (FORMALLY ORANGE),01254388082,32.16,771 5920 16,
Department of Health,CT Revenue Funds,06/04/2017,Mobile Phones,Children & Families SDG Management,EE LIMITED (FORMALLY ORANGE),01254388082,160.80,771 5920 16,
Department of Health,CT Revenue Funds,06/04/2017,Mobile Phones,Operations Directorate Divisional Management,EE LIMITED (FORMALLY ORANGE),01254388082,5.57,771 5920 16,
Department of Health,CT Revenue Funds,06/04/2017,Mobile Phones,Operations Directorate Divisional Management,EE LIMITED (FORMALLY ORANGE),01254388082,27.84,771 5920 16,
Department of Health,CT Revenue Funds,06/04/2017,Mobile Phones,Community Services Division Management,EE LIMITED (FORMALLY ORANGE),01254388082,19.20,771 5920 16,
Department of Health,CT Revenue Funds,06/04/2017,Mobile Phones,Community Services Division Management,EE LIMITED (FORMALLY ORANGE),01254388082,95.98,771 5920 16,
Department of Health,CT Revenue Funds,06/04/2017,Mobile Phones,Community Hospitals & Out Patient Svces Divison Management,EE LIMITED (FORMALLY ORANGE),01254388082,9.70,771 5920 16,
Department of Health,CT Revenue Funds,06/04/2017,Mobile Phones,Community Hospitals & Out Patient Svces Divison Management,EE LIMITED (FORMALLY ORANGE),01254388082,48.50,771 5920 16,
Department of Health,CT Revenue Funds,06/04/2017,Mobile Phones,Children and Families Division Management,EE LIMITED (FORMALLY ORANGE),01254388082,9.45,771 5920 16,
Department of Health,CT Revenue Funds,06/04/2017,Mobile Phones,Children and Families Division Management,EE LIMITED (FORMALLY ORANGE),01254388082,47.28,771 5920 16,
Department of Health,CT Revenue Funds,06/04/2017,Mobile Phones,Portico House Substance Misuse,EE LIMITED (FORMALLY ORANGE),01254388082,2.96,771 5920 16,
Department of Health,CT Revenue Funds,06/04/2017,Mobile Phones,Portico House Substance Misuse,EE LIMITED (FORMALLY ORANGE),01254388082,14.82,771 5920 16,
Department of Health,CT Revenue Funds,06/04/2017,Mobile Phones,Telford Child Development Centre,EE LIMITED (FORMALLY ORANGE),01254388082,0.70,771 5920 16,
Department of Health,CT Revenue Funds,06/04/2017,Mobile Phones,Telford Child Development Centre,EE LIMITED (FORMALLY ORANGE),01254388082,3.50,771 5920 16,
Department of Health,CT Revenue Funds,06/04/2017,Mobile Phones,Child Speech and Language Therapy,EE LIMITED (FORMALLY ORANGE),01254388082,174.68,771 5920 16,
Department of Health,CT Revenue Funds,06/04/2017,Mobile Phones,Child Speech and Language Therapy,EE LIMITED (FORMALLY ORANGE),01254388082,873.40,771 5920 16,
Department of Health,CT Revenue Funds,06/04/2017,Mobile Phones,Oral Health - Dental,EE LIMITED (FORMALLY ORANGE),01254388082,5.74,771 5920 16,
Department of Health,CT Revenue Funds,06/04/2017,Mobile Phones,Oral Health - Dental,EE LIMITED (FORMALLY ORANGE),01254388082,28.70,771 5920 16,
Department of Health,CT Revenue Funds,06/04/2017,Mobile Phones,Telford South Cluster Health Visitors,EE LIMITED (FORMALLY ORANGE),01254388082,2.80,771 5920 16,
Department of Health,CT Revenue Funds,06/04/2017,Mobile Phones,Telford South Cluster Health Visitors,EE LIMITED (FORMALLY ORANGE),01254388082,14.00,771 5920 16,
Department of Health,CT Revenue Funds,06/04/2017,Mobile Phones,Telford Central Cluster Health Visitors,EE LIMITED (FORMALLY ORANGE),01254388082,3.65,771 5920 16,
Department of Health,CT Revenue Funds,06/04/2017,Mobile Phones,Telford Central Cluster Health Visitors,EE LIMITED (FORMALLY ORANGE),01254388082,18.25,771 5920 16,
Department of Health,CT Revenue Funds,06/04/2017,Mobile Phones,MSK Management & Admin,EE LIMITED (FORMALLY ORANGE),01254388082,16.93,771 5920 16,
Department of Health,CT Revenue Funds,06/04/2017,Mobile Phones,MSK Management & Admin,EE LIMITED (FORMALLY ORANGE),01254388082,84.67,771 5920 16,
Department of Health,CT Revenue Funds,06/04/2017,Mobile Phones,Immunisations and Vaccinations,EE LIMITED (FORMALLY ORANGE),01254388082,22.19,771 5920 16,
Department of Health,CT Revenue Funds,06/04/2017,Mobile Phones,Immunisations and Vaccinations,EE LIMITED (FORMALLY ORANGE),01254388082,110.93,771 5920 16,
Department of Health,CT Revenue Funds,06/04/2017,Mobile Phones,Shropshire School Nurses,EE LIMITED (FORMALLY ORANGE),01254388082,84.55,771 5920 16,
Department of Health,CT Revenue Funds,06/04/2017,Mobile Phones,Shropshire School Nurses,EE LIMITED (FORMALLY ORANGE),01254388082,422.74,771 5920 16,
Department of Health,CT Revenue Funds,06/04/2017,Mobile Phones,Falls Prevention,EE LIMITED (FORMALLY ORANGE),01254388082,18.85,771 5920 16,
Department of Health,CT Revenue Funds,06/04/2017,Mobile Phones,Falls Prevention,EE LIMITED (FORMALLY ORANGE),01254388082,94.27,771 5920 16,
Department of Health,CT Revenue Funds,06/04/2017,Mobile Phones,Podiatry Services,EE LIMITED (FORMALLY ORANGE),01254388082,39.55,771 5920 16,
Department of Health,CT Revenue Funds,06/04/2017,Mobile Phones,Podiatry Services,EE LIMITED (FORMALLY ORANGE),01254388082,197.76,771 5920 16,
Department of Health,CT Revenue Funds,06/04/2017,Mobile Phones,Podiatry Services,EE LIMITED (FORMALLY ORANGE),01254388082,-9.43,771 5920 16,
Department of Health,CT Revenue Funds,06/04/2017,Mobile Phones,Diabetes Specialist Nursing,EE LIMITED (FORMALLY ORANGE),01254388082,69.76,771 5920 16,
Department of Health,CT Revenue Funds,06/04/2017,Mobile Phones,Diabetes Specialist Nursing,EE LIMITED (FORMALLY ORANGE),01254388082,348.79,771 5920 16,
Department of Health,CT Revenue Funds,06/04/2017,Mobile Phones,Community Equipment Stores,EE LIMITED (FORMALLY ORANGE),01254388082,17.10,771 5920 16,
Department of Health,CT Revenue Funds,06/04/2017,Mobile Phones,Ludlow Hospital Minor Injuries Unit,EE LIMITED (FORMALLY ORANGE),01254388082,0.70,771 5920 16,
Department of Health,CT Revenue Funds,06/04/2017,Mobile Phones,Ludlow Hospital Minor Injuries Unit,EE LIMITED (FORMALLY ORANGE),01254388082,3.50,771 5920 16,
Department of Health,CT Revenue Funds,06/04/2017,Mobile Phones,Community Childrens Nurses,EE LIMITED (FORMALLY ORANGE),01254388082,65.80,771 5920 16,
Department of Health,CT Revenue Funds,06/04/2017,Mobile Phones,Community Childrens Nurses,EE LIMITED (FORMALLY ORANGE),01254388082,329.00,771 5920 16,
Department of Health,CT Revenue Funds,06/04/2017,Mobile Phones,Reaching Out Services,EE LIMITED (FORMALLY ORANGE),01254388082,25.33,771 5920 16,
Department of Health,CT Revenue Funds,06/04/2017,Mobile Phones,Reaching Out Services,EE LIMITED (FORMALLY ORANGE),01254388082,126.63,771 5920 16,
Department of Health,CT Revenue Funds,06/04/2017,Mobile Phones,CAMHS Youth Offending Team,EE LIMITED (FORMALLY ORANGE),01254388082,2.80,771 5920 16,
Department of Health,CT Revenue Funds,06/04/2017,Mobile Phones,CAMHS Youth Offending Team,EE LIMITED (FORMALLY ORANGE),01254388082,14.00,771 5920 16,
Department of Health,CT Revenue Funds,06/04/2017,Mobile Phones,Psychology Team,EE LIMITED (FORMALLY ORANGE),01254388082,2.25,771 5920 16,
Department of Health,CT Revenue Funds,06/04/2017,Mobile Phones,Psychology Team,EE LIMITED (FORMALLY ORANGE),01254388082,11.25,771 5920 16,
Department of Health,CT Revenue Funds,06/04/2017,Mobile Phones,Shropshire CAMHS Team,EE LIMITED (FORMALLY ORANGE),01254388082,70.47,771 5920 16,
Department of Health,CT Revenue Funds,06/04/2017,Mobile Phones,Shropshire CAMHS Team,EE LIMITED (FORMALLY ORANGE),01254388082,352.35,771 5920 16,
Department of Health,CT Revenue Funds,06/04/2017,Mobile Phones,Shropshire Primary CAMHS Service,EE LIMITED (FORMALLY ORANGE),01254388082,8.14,771 5920 16,
Department of Health,CT Revenue Funds,06/04/2017,Mobile Phones,Shropshire Primary CAMHS Service,EE LIMITED (FORMALLY ORANGE),01254388082,40.72,771 5920 16,
Department of Health,CT Revenue Funds,06/04/2017,Mobile Phones,CAMHS Team (T&W),EE LIMITED (FORMALLY ORANGE),01254388082,38.55,771 5920 16,
Department of Health,CT Revenue Funds,06/04/2017,Mobile Phones,CAMHS Team (T&W),EE LIMITED (FORMALLY ORANGE),01254388082,192.76,771 5920 16,
Department of Health,CT Revenue Funds,06/04/2017,Mobile Phones,Whitchurch Hospital Hotel Services,EE LIMITED (FORMALLY ORANGE),01254388082,-0.88,771 5920 16,
Department of Health,CT Revenue Funds,06/04/2017,Mobile Phones,Whitchurch Hospital Hotel Services,EE LIMITED (FORMALLY ORANGE),01254388082,-4.39,771 5920 16,
Department of Health,CT Revenue Funds,06/04/2017,Mobile Phones,Ludlow & Bishop Castle Admin,EE LIMITED (FORMALLY ORANGE),01254388082,6.57,771 5920 16,
Department of Health,CT Revenue Funds,06/04/2017,Mobile Phones,Ludlow & Bishop Castle Admin,EE LIMITED (FORMALLY ORANGE),01254388082,32.84,771 5920 16,
Department of Health,CT Revenue Funds,06/04/2017,Mobile Phones,Community Matrons Telford,EE LIMITED (FORMALLY ORANGE),01254388082,27.05,771 5920 16,
Department of Health,CT Revenue Funds,06/04/2017,Mobile Phones,Community Matrons Telford,EE LIMITED (FORMALLY ORANGE),01254388082,135.24,771 5920 16,
Department of Health,CT Revenue Funds,06/04/2017,Mobile Phones,Rapid Response (T&W),EE LIMITED (FORMALLY ORANGE),01254388082,31.32,771 5920 16,
Department of Health,CT Revenue Funds,06/04/2017,Mobile Phones,Rapid Response (T&W),EE LIMITED (FORMALLY ORANGE),01254388082,156.61,771 5920 16,
Department of Health,CT Revenue Funds,06/04/2017,Mobile Phones,Nurse Liaison Intermediate Care (T&W),EE LIMITED (FORMALLY ORANGE),01254388082,22.65,771 5920 16,
Department of Health,CT Revenue Funds,06/04/2017,Mobile Phones,Nurse Liaison Intermediate Care (T&W),EE LIMITED (FORMALLY ORANGE),01254388082,113.23,771 5920 16,
Department of Health,CT Revenue Funds,06/04/2017,Mobile Phones,Whitchurch Hospital Occupational Therapy,EE LIMITED (FORMALLY ORANGE),01254388082,0.70,771 5920 16,
Department of Health,CT Revenue Funds,06/04/2017,Mobile Phones,Whitchurch Hospital Occupational Therapy,EE LIMITED (FORMALLY ORANGE),01254388082,3.50,771 5920 16,
Department of Health,CT Revenue Funds,06/04/2017,Mobile Phones,Telford North Community Nursing,EE LIMITED (FORMALLY ORANGE),01254388082,98.60,771 5920 16,
Department of Health,CT Revenue Funds,06/04/2017,Mobile Phones,North West Shropshire Interdisciplinary Teams,EE LIMITED (FORMALLY ORANGE),01254388082,114.93,771 5920 16,
Department of Health,CT Revenue Funds,06/04/2017,Mobile Phones,North West Shropshire Interdisciplinary Teams,EE LIMITED (FORMALLY ORANGE),01254388082,574.66,771 5920 16,
Department of Health,CT Revenue Funds,06/04/2017,Mobile Phones,Bridgnorth Hospital Occupational Therapy,EE LIMITED (FORMALLY ORANGE),01254388082,0.80,771 5920 16,
Department of Health,CT Revenue Funds,06/04/2017,Mobile Phones,Bridgnorth Hospital Occupational Therapy,EE LIMITED (FORMALLY ORANGE),01254388082,4.00,771 5920 16,
Department of Health,CT Revenue Funds,06/04/2017,Mobile Phones,Bridgnorth Hospital Physiotherapy,EE LIMITED (FORMALLY ORANGE),01254388082,0.87,771 5920 16,
Department of Health,CT Revenue Funds,06/04/2017,Mobile Phones,Bridgnorth Hospital Physiotherapy,EE LIMITED (FORMALLY ORANGE),01254388082,4.34,771 5920 16,
Department of Health,CT Revenue Funds,06/04/2017,Mobile Phones,Bridgnorth Hospital Hotel Services,EE LIMITED (FORMALLY ORANGE),01254388082,3.32,771 5920 16,
Department of Health,CT Revenue Funds,06/04/2017,Mobile Phones,Bridgnorth Hospital Hotel Services,EE LIMITED (FORMALLY ORANGE),01254388082,16.61,771 5920 16,
Department of Health,CT Revenue Funds,06/04/2017,Mobile Phones,Ludlow Hospital Hotel Services,EE LIMITED (FORMALLY ORANGE),01254388082,3.50,771 5920 16,
Department of Health,CT Revenue Funds,06/04/2017,Mobile Phones,Ludlow Hospital Hotel Services,EE LIMITED (FORMALLY ORANGE),01254388082,17.50,771 5920 16,
Department of Health,CT Revenue Funds,06/04/2017,Mobile Phones,Bishops Castle Hospital Inpatient Ward,EE LIMITED (FORMALLY ORANGE),01254388082,2.96,771 5920 16,
Department of Health,CT Revenue Funds,06/04/2017,Mobile Phones,Bishops Castle Hospital Inpatient Ward,EE LIMITED (FORMALLY ORANGE),01254388082,14.80,771 5920 16,
Department of Health,CT Revenue Funds,06/04/2017,Mobile Phones,Community Physiotherapy (T&W),EE LIMITED (FORMALLY ORANGE),01254388082,3.09,771 5920 16,
Department of Health,CT Revenue Funds,06/04/2017,Mobile Phones,Admiral Nurse,EE LIMITED (FORMALLY ORANGE),01254388082,110.71,771 5920 16,
Department of Health,CT Revenue Funds,06/04/2017,Mobile Phones,Admiral Nurse,EE LIMITED (FORMALLY ORANGE),01254388082,22.14,771 5920 16,
Department of Health,CT Revenue Funds,06/04/2017,Mobile Phones,Telford South Community Nursing,EE LIMITED (FORMALLY ORANGE),01254388082,397.14,771 5920 16,
Department of Health,CT Revenue Funds,06/04/2017,Mobile Phones,Telford South Community Nursing,EE LIMITED (FORMALLY ORANGE),01254388082,79.43,771 5920 16,
Department of Health,CT Revenue Funds,06/04/2017,Mobile Phones,Ludlow Hospital Inpatient Wards,EE LIMITED (FORMALLY ORANGE),01254388082,-0.76,771 5920 16,
Department of Health,CT Revenue Funds,06/04/2017,Mobile Phones,Ludlow Hospital Inpatient Wards,EE LIMITED (FORMALLY ORANGE),01254388082,-3.81,771 5920 16,
Department of Health,CT Revenue Funds,06/04/2017,Mobile Phones, T&W Primary CAMHS Service,EE LIMITED (FORMALLY ORANGE),01254388082,6.64,771 5920 16,
Department of Health,CT Revenue Funds,06/04/2017,Mobile Phones, T&W Primary CAMHS Service,EE LIMITED (FORMALLY ORANGE),01254388082,33.19,771 5920 16,
Department of Health,CT Revenue Funds,06/04/2017,Mobile Phones,Shropshire Child Occupational Therapy,EE LIMITED (FORMALLY ORANGE),01254388082,10.14,771 5920 16,
Department of Health,CT Revenue Funds,06/04/2017,Mobile Phones,Shropshire Child Occupational Therapy,EE LIMITED (FORMALLY ORANGE),01254388082,50.71,771 5920 16,
Department of Health,CT Revenue Funds,06/04/2017,Mobile Phones,Community Medical Staff (T&W),EE LIMITED (FORMALLY ORANGE),01254388082,14.22,771 5920 16,
Department of Health,CT Revenue Funds,06/04/2017,Mobile Phones,Community Medical Staff (T&W),EE LIMITED (FORMALLY ORANGE),01254388082,71.10,771 5920 16,
Department of Health,CT Revenue Funds,06/04/2017,Mobile Phones,Telford Child Psychiatry,EE LIMITED (FORMALLY ORANGE),01254388082,8.15,771 5920 16,
Department of Health,CT Revenue Funds,06/04/2017,Mobile Phones,Telford Child Psychiatry,EE LIMITED (FORMALLY ORANGE),01254388082,40.77,771 5920 16,
Department of Health,CT Revenue Funds,06/04/2017,Mobile Phones,Shrewsbury and Atcham North Interdisciplinary Teams,EE LIMITED (FORMALLY ORANGE),01254388082,183.35,771 5920 16,
Department of Health,CT Revenue Funds,06/04/2017,Mobile Phones,Shrewsbury and Atcham North Interdisciplinary Teams,EE LIMITED (FORMALLY ORANGE),01254388082,916.71,771 5920 16,
Department of Health,CT Revenue Funds,06/04/2017,Mobile Phones,IM&T Support,EE LIMITED (FORMALLY ORANGE),01254388082,215.44,771 5920 16,
Department of Health,CT Revenue Funds,06/04/2017,Mobile Phones,IM&T Support,EE LIMITED (FORMALLY ORANGE),01254388082,43.09,771 5920 16,
Department of Health,CT Revenue Funds,06/04/2017,Mobile Phones,EPR Programme,EE LIMITED (FORMALLY ORANGE),01254388082,107.35,771 5920 16,
Department of Health,CT Revenue Funds,06/04/2017,Mobile Phones,EPR Programme,EE LIMITED (FORMALLY ORANGE),01254388082,21.47,771 5920 16,
Department of Health,CT Revenue Funds,06/04/2017,Mobile Phones,Information,EE LIMITED (FORMALLY ORANGE),01254388082,39.79,771 5920 16,
Department of Health,CT Revenue Funds,06/04/2017,Mobile Phones,Information,EE LIMITED (FORMALLY ORANGE),01254388082,7.96,771 5920 16,
Department of Health,CT Revenue Funds,06/04/2017,Mobile Phones,Information Governance,EE LIMITED (FORMALLY ORANGE),01254388082,15.92,771 5920 16,
Department of Health,CT Revenue Funds,06/04/2017,Mobile Phones,Information Governance,EE LIMITED (FORMALLY ORANGE),01254388082,3.18,771 5920 16,
Department of Health,CT Revenue Funds,06/04/2017,Mobile Phones,HR & Guardian Management,EE LIMITED (FORMALLY ORANGE),01254388082,36.05,771 5920 16,
Department of Health,CT Revenue Funds,06/04/2017,Mobile Phones,HR & Guardian Management,EE LIMITED (FORMALLY ORANGE),01254388082,7.21,771 5920 16,
Department of Health,CT Revenue Funds,06/04/2017,Mobile Phones,Organisational Development,EE LIMITED (FORMALLY ORANGE),01254388082,79.07,771 5920 16,
Department of Health,CT Revenue Funds,06/04/2017,Mobile Phones,Organisational Development,EE LIMITED (FORMALLY ORANGE),01254388082,15.81,771 5920 16,
Department of Health,CT Revenue Funds,06/04/2017,Mobile Phones,Estates Management,EE LIMITED (FORMALLY ORANGE),01254388082,14.85,771 5920 16,
Department of Health,CT Revenue Funds,06/04/2017,Mobile Phones,Estates Management,EE LIMITED (FORMALLY ORANGE),01254388082,2.97,771 5920 16,
Department of Health,CT Revenue Funds,06/04/2017,Mobile Phones,Oswestry Primary Care Centre,EE LIMITED (FORMALLY ORANGE),01254388082,2.79,771 5920 16,
Department of Health,CT Revenue Funds,06/04/2017,Mobile Phones,Oswestry Primary Care Centre,EE LIMITED (FORMALLY ORANGE),01254388082,13.97,771 5920 16,
Department of Health,CT Revenue Funds,06/04/2017,Mobile Phones,Trainee Health Visitors,EE LIMITED (FORMALLY ORANGE),01254388082,54.76,771 5920 16,
Department of Health,CT Revenue Funds,06/04/2017,Mobile Phones,Trainee Health Visitors,EE LIMITED (FORMALLY ORANGE),01254388082,273.80,771 5920 16,
Department of Health,CT Revenue Funds,06/04/2017,Mobile Phones,ICS Management and Admin,EE LIMITED (FORMALLY ORANGE),01254388082,36.49,771 5920 16,
Department of Health,CT Revenue Funds,06/04/2017,Mobile Phones,ICS Management and Admin,EE LIMITED (FORMALLY ORANGE),01254388082,7.30,771 5920 16,
Department of Health,CT Revenue Funds,06/04/2017,Mobile Phones,South West Interdisciplinary Teams,EE LIMITED (FORMALLY ORANGE),01254388082,81.28,771 5920 16,
Department of Health,CT Revenue Funds,06/04/2017,Mobile Phones,South West Interdisciplinary Teams,EE LIMITED (FORMALLY ORANGE),01254388082,406.42,771 5920 16,
Department of Health,CT Revenue Funds,06/04/2017,Mobile Phones,Community Equipment Stores,EE LIMITED (FORMALLY ORANGE),01254388082,85.51,771 5920 16,
Department of Health,CT Revenue Funds,06/04/2017,Mobile Phones,Governance and Strategy Management,EE LIMITED (FORMALLY ORANGE),01254388082,14.08,771 5920 16,
Department of Health,CT Revenue Funds,06/04/2017,Mobile Phones,Governance and Strategy Management,EE LIMITED (FORMALLY ORANGE),01254388082,2.82,771 5920 16,
Department of Health,CT Revenue Funds,06/04/2017,Mobile Phones,Communications,EE LIMITED (FORMALLY ORANGE),01254388082,14.06,771 5920 16,
Department of Health,CT Revenue Funds,06/04/2017,Mobile Phones,Communications,EE LIMITED (FORMALLY ORANGE),01254388082,2.81,771 5920 16,
Department of Health,CT Revenue Funds,06/04/2017,Mobile Phones,Governance,EE LIMITED (FORMALLY ORANGE),01254388082,11.38,771 5920 16,
Department of Health,CT Revenue Funds,06/04/2017,Mobile Phones,Governance,EE LIMITED (FORMALLY ORANGE),01254388082,2.28,771 5920 16,
Department of Health,CT Revenue Funds,06/04/2017,Mobile Phones,Quality & Nursing Management,EE LIMITED (FORMALLY ORANGE),01254388082,56.36,771 5920 16,
Department of Health,CT Revenue Funds,06/04/2017,Mobile Phones,Quality & Nursing Management,EE LIMITED (FORMALLY ORANGE),01254388082,11.27,771 5920 16,
Department of Health,CT Revenue Funds,06/04/2017,Mobile Phones,Quality,EE LIMITED (FORMALLY ORANGE),01254388082,25.55,771 5920 16,
Department of Health,CT Revenue Funds,06/04/2017,Mobile Phones,Quality,EE LIMITED (FORMALLY ORANGE),01254388082,5.11,771 5920 16,
Department of Health,CT Revenue Funds,06/04/2017,Mobile Phones,Infection Prevention & Control,EE LIMITED (FORMALLY ORANGE),01254388082,28.75,771 5920 16,
Department of Health,CT Revenue Funds,06/04/2017,Mobile Phones,Infection Prevention & Control,EE LIMITED (FORMALLY ORANGE),01254388082,5.75,771 5920 16,
Department of Health,CT Revenue Funds,06/04/2017,Mobile Phones,ICS Central,EE LIMITED (FORMALLY ORANGE),01254388082,261.80,771 5920 16,
Department of Health,CT Revenue Funds,06/04/2017,Mobile Phones,ICS Central,EE LIMITED (FORMALLY ORANGE),01254388082,52.36,771 5920 16,
Department of Health,CT Revenue Funds,06/04/2017,Mobile Phones,APCS Respiratory,EE LIMITED (FORMALLY ORANGE),01254388082,171.36,771 5920 16,
Department of Health,CT Revenue Funds,06/04/2017,Mobile Phones,APCS Respiratory,EE LIMITED (FORMALLY ORANGE),01254388082,34.27,771 5920 16,
Department of Health,CT Revenue Funds,06/04/2017,Mobile Phones,APCS ENT,EE LIMITED (FORMALLY ORANGE),01254388082,2.80,771 5920 16,
Department of Health,CT Revenue Funds,06/04/2017,Mobile Phones,APCS ENT,EE LIMITED (FORMALLY ORANGE),01254388082,14.00,771 5920 16,
Department of Health,CT Revenue Funds,06/04/2017,Mobile Phones,Trust Board,EE LIMITED (FORMALLY ORANGE),01254388082,302.74,771 5920 16,
Department of Health,CT Revenue Funds,06/04/2017,Mobile Phones,Trust Board,EE LIMITED (FORMALLY ORANGE),01254388082,60.55,771 5920 16,
Department of Health,CT Revenue Funds,06/04/2017,Mobile Phones,Finance Directorate Management,EE LIMITED (FORMALLY ORANGE),01254388082,24.00,771 5920 16,
Department of Health,CT Revenue Funds,06/04/2017,Mobile Phones,Finance Directorate Management,EE LIMITED (FORMALLY ORANGE),01254388082,3.00,771 5920 16,
Department of Health,CT Revenue Funds,06/04/2017,Mobile Phones,Finance Directorate Management,EE LIMITED (FORMALLY ORANGE),01254388082,4.80,771 5920 16,
Department of Health,CT Revenue Funds,06/04/2017,Mobile Phones,Counter Fraud,EE LIMITED (FORMALLY ORANGE),01254388082,14.00,771 5920 16,
Department of Health,CT Revenue Funds,06/04/2017,Mobile Phones,Counter Fraud,EE LIMITED (FORMALLY ORANGE),01254388082,2.80,771 5920 16,
Department of Health,CT Revenue Funds,06/04/2017,Mobile Phones,HR and Workforce,EE LIMITED (FORMALLY ORANGE),01254388082,70.29,771 5920 16,
Department of Health,CT Revenue Funds,06/04/2017,Mobile Phones,HR and Workforce,EE LIMITED (FORMALLY ORANGE),01254388082,14.06,771 5920 16,
Department of Health,CT Revenue Funds,06/04/2017,Mobile Phones,Whitchurch Hospital Inpatient Ward,EE LIMITED (FORMALLY ORANGE),01254388082,3.76,771 5920 16,
Department of Health,CT Revenue Funds,06/04/2017,Mobile Phones,Whitchurch Hospital Inpatient Ward,EE LIMITED (FORMALLY ORANGE),01254388082,18.80,771 5920 16,
Department of Health,CT Revenue Funds,06/04/2017,Mobile Phones,Oswestry Minor Injuries Unit,EE LIMITED (FORMALLY ORANGE),01254388082,-1.50,771 5920 16,
Department of Health,CT Revenue Funds,06/04/2017,Mobile Phones,Oswestry Minor Injuries Unit,EE LIMITED (FORMALLY ORANGE),01254388082,-7.49,771 5920 16,
Department of Health,CT Revenue Funds,06/04/2017,Mobile Phones,Community Neuro Rehabilitation Team (CNRT),EE LIMITED (FORMALLY ORANGE),01254388082,44.49,771 5920 16,
Department of Health,CT Revenue Funds,06/04/2017,Mobile Phones,Community Neuro Rehabilitation Team (CNRT),EE LIMITED (FORMALLY ORANGE),01254388082,222.47,771 5920 16,
Department of Health,CT Revenue Funds,06/04/2017,Mobile Phones,Whitchurch Hospital Management,EE LIMITED (FORMALLY ORANGE),01254388082,2.88,771 5920 16,
Department of Health,CT Revenue Funds,06/04/2017,Mobile Phones,Whitchurch Hospital Management,EE LIMITED (FORMALLY ORANGE),01254388082,14.42,771 5920 16,
Department of Health,CT Revenue Funds,06/04/2017,Mobile Phones,Wheelchair Services,EE LIMITED (FORMALLY ORANGE),01254388082,21.89,771 5920 16,
Department of Health,CT Revenue Funds,06/04/2017,Mobile Phones,Wheelchair Services,EE LIMITED (FORMALLY ORANGE),01254388082,109.46,771 5920 16,
Department of Health,CT Revenue Funds,06/04/2017,Mobile Phones,Tissue Viability Nurses (T&W),EE LIMITED (FORMALLY ORANGE),01254388082,6.27,771 5920 16,
Department of Health,CT Revenue Funds,06/04/2017,Mobile Phones,Tissue Viability Nurses (T&W),EE LIMITED (FORMALLY ORANGE),01254388082,31.37,771 5920 16,
Department of Health,CT Revenue Funds,06/04/2017,Mobile Phones,HR and Workforce,EE LIMITED (FORMALLY ORANGE),01255993882,70.94,771 5920 16,
Department of Health,CT Revenue Funds,06/04/2017,Mobile Phones,Shrewsbury and Atcham North Interdisciplinary Teams,EE LIMITED (FORMALLY ORANGE),01255993882,866.48,771 5920 16,
Department of Health,CT Revenue Funds,06/04/2017,Mobile Phones,Shrewsbury and Atcham North Interdisciplinary Teams,EE LIMITED (FORMALLY ORANGE),01255993882,173.30,771 5920 16,
Department of Health,CT Revenue Funds,06/04/2017,Mobile Phones,IM&T Support,EE LIMITED (FORMALLY ORANGE),01255993882,42.77,771 5920 16,
Department of Health,CT Revenue Funds,06/04/2017,Mobile Phones,IM&T Support,EE LIMITED (FORMALLY ORANGE),01255993882,213.85,771 5920 16,
Department of Health,CT Revenue Funds,06/04/2017,Mobile Phones,EPR Programme,EE LIMITED (FORMALLY ORANGE),01255993882,148.63,771 5920 16,
Department of Health,CT Revenue Funds,06/04/2017,Mobile Phones,EPR Programme,EE LIMITED (FORMALLY ORANGE),01255993882,743.13,771 5920 16,
Department of Health,CT Revenue Funds,06/04/2017,Mobile Phones,Information,EE LIMITED (FORMALLY ORANGE),01255993882,8.02,771 5920 16,
Department of Health,CT Revenue Funds,06/04/2017,Mobile Phones,Information,EE LIMITED (FORMALLY ORANGE),01255993882,40.10,771 5920 16,
Department of Health,CT Revenue Funds,06/04/2017,Mobile Phones,Information Governance,EE LIMITED (FORMALLY ORANGE),01255993882,3.15,771 5920 16,
Department of Health,CT Revenue Funds,06/04/2017,Mobile Phones,Information Governance,EE LIMITED (FORMALLY ORANGE),01255993882,15.74,771 5920 16,
Department of Health,CT Revenue Funds,06/04/2017,Mobile Phones,HR & Guardian Management,EE LIMITED (FORMALLY ORANGE),01255993882,7.30,771 5920 16,
Department of Health,CT Revenue Funds,06/04/2017,Mobile Phones,HR & Guardian Management,EE LIMITED (FORMALLY ORANGE),01255993882,36.51,771 5920 16,
Department of Health,CT Revenue Funds,06/04/2017,Mobile Phones,Organisational Development,EE LIMITED (FORMALLY ORANGE),01255993882,15.75,771 5920 16,
Department of Health,CT Revenue Funds,06/04/2017,Mobile Phones,Organisational Development,EE LIMITED (FORMALLY ORANGE),01255993882,78.76,771 5920 16,
Department of Health,CT Revenue Funds,06/04/2017,Mobile Phones,Estates Management,EE LIMITED (FORMALLY ORANGE),01255993882,2.89,771 5920 16,
Department of Health,CT Revenue Funds,06/04/2017,Mobile Phones,Estates Management,EE LIMITED (FORMALLY ORANGE),01255993882,14.46,771 5920 16,
Department of Health,CT Revenue Funds,06/04/2017,Mobile Phones,Oswestry Primary Care Centre,EE LIMITED (FORMALLY ORANGE),01255993882,1.45,771 5920 16,
Department of Health,CT Revenue Funds,06/04/2017,Mobile Phones,Oswestry Primary Care Centre,EE LIMITED (FORMALLY ORANGE),01255993882,7.27,771 5920 16,
Department of Health,CT Revenue Funds,06/04/2017,Mobile Phones,Trainee Health Visitors,EE LIMITED (FORMALLY ORANGE),01255993882,224.61,771 5920 16,
Department of Health,CT Revenue Funds,06/04/2017,Mobile Phones,Trainee Health Visitors,EE LIMITED (FORMALLY ORANGE),01255993882,44.92,771 5920 16,
Department of Health,CT Revenue Funds,06/04/2017,Mobile Phones,ICS Management and Admin,EE LIMITED (FORMALLY ORANGE),01255993882,36.62,771 5920 16,
Department of Health,CT Revenue Funds,06/04/2017,Mobile Phones,ICS Management and Admin,EE LIMITED (FORMALLY ORANGE),01255993882,7.32,771 5920 16,
Department of Health,CT Revenue Funds,06/04/2017,Mobile Phones,South West Interdisciplinary Teams,EE LIMITED (FORMALLY ORANGE),01255993882,458.88,771 5920 16,
Department of Health,CT Revenue Funds,06/04/2017,Mobile Phones,South West Interdisciplinary Teams,EE LIMITED (FORMALLY ORANGE),01255993882,91.78,771 5920 16,
Department of Health,CT Revenue Funds,06/04/2017,Mobile Phones,Community Equipment Stores,EE LIMITED (FORMALLY ORANGE),01255993882,82.31,771 5920 16,
Department of Health,CT Revenue Funds,06/04/2017,Mobile Phones,Community Equipment Stores,EE LIMITED (FORMALLY ORANGE),01255993882,16.46,771 5920 16,
Department of Health,CT Revenue Funds,06/04/2017,Mobile Phones,Governance and Strategy Management,EE LIMITED (FORMALLY ORANGE),01255993882,2.83,771 5920 16,
Department of Health,CT Revenue Funds,06/04/2017,Mobile Phones,Governance and Strategy Management,EE LIMITED (FORMALLY ORANGE),01255993882,14.13,771 5920 16,
Department of Health,CT Revenue Funds,06/04/2017,Mobile Phones,Communications,EE LIMITED (FORMALLY ORANGE),01255993882,2.80,771 5920 16,
Department of Health,CT Revenue Funds,06/04/2017,Mobile Phones,Communications,EE LIMITED (FORMALLY ORANGE),01255993882,14.00,771 5920 16,
Department of Health,CT Revenue Funds,06/04/2017,Mobile Phones,Governance,EE LIMITED (FORMALLY ORANGE),01255993882,2.38,771 5920 16,
Department of Health,CT Revenue Funds,06/04/2017,Mobile Phones,Governance,EE LIMITED (FORMALLY ORANGE),01255993882,11.88,771 5920 16,
Department of Health,CT Revenue Funds,06/04/2017,Mobile Phones,Quality & Nursing Management,EE LIMITED (FORMALLY ORANGE),01255993882,10.53,771 5920 16,
Department of Health,CT Revenue Funds,06/04/2017,Mobile Phones,Quality & Nursing Management,EE LIMITED (FORMALLY ORANGE),01255993882,52.66,771 5920 16,
Department of Health,CT Revenue Funds,06/04/2017,Mobile Phones,Quality,EE LIMITED (FORMALLY ORANGE),01255993882,6.11,771 5920 16,
Department of Health,CT Revenue Funds,06/04/2017,Mobile Phones,Quality,EE LIMITED (FORMALLY ORANGE),01255993882,30.54,771 5920 16,
Department of Health,CT Revenue Funds,06/04/2017,Mobile Phones,Infection Prevention & Control,EE LIMITED (FORMALLY ORANGE),01255993882,5.80,771 5920 16,
Department of Health,CT Revenue Funds,06/04/2017,Mobile Phones,Infection Prevention & Control,EE LIMITED (FORMALLY ORANGE),01255993882,28.99,771 5920 16,
Department of Health,CT Revenue Funds,06/04/2017,Mobile Phones,ICS Central,EE LIMITED (FORMALLY ORANGE),01255993882,282.14,771 5920 16,
Department of Health,CT Revenue Funds,06/04/2017,Mobile Phones,ICS Central,EE LIMITED (FORMALLY ORANGE),01255993882,56.43,771 5920 16,
Department of Health,CT Revenue Funds,06/04/2017,Mobile Phones,APCS Respiratory,EE LIMITED (FORMALLY ORANGE),01255993882,170.01,771 5920 16,
Department of Health,CT Revenue Funds,06/04/2017,Mobile Phones,APCS Respiratory,EE LIMITED (FORMALLY ORANGE),01255993882,34.00,771 5920 16,
Department of Health,CT Revenue Funds,06/04/2017,Mobile Phones,APCS ENT,EE LIMITED (FORMALLY ORANGE),01255993882,14.00,771 5920 16,
Department of Health,CT Revenue Funds,06/04/2017,Mobile Phones,Trust Board,EE LIMITED (FORMALLY ORANGE),01255993882,58.94,771 5920 16,
Department of Health,CT Revenue Funds,06/04/2017,Mobile Phones,Trust Board,EE LIMITED (FORMALLY ORANGE),01255993882,294.72,771 5920 16,
Department of Health,CT Revenue Funds,06/04/2017,Mobile Phones,Finance Directorate Management,EE LIMITED (FORMALLY ORANGE),01255993882,3.00,771 5920 16,
Department of Health,CT Revenue Funds,06/04/2017,Mobile Phones,Finance Directorate Management,EE LIMITED (FORMALLY ORANGE),01255993882,5.31,771 5920 16,
Department of Health,CT Revenue Funds,06/04/2017,Mobile Phones,Finance Directorate Management,EE LIMITED (FORMALLY ORANGE),01255993882,26.55,771 5920 16,
Department of Health,CT Revenue Funds,06/04/2017,Mobile Phones,Counter Fraud,EE LIMITED (FORMALLY ORANGE),01255993882,2.80,771 5920 16,
Department of Health,CT Revenue Funds,06/04/2017,Mobile Phones,Counter Fraud,EE LIMITED (FORMALLY ORANGE),01255993882,14.00,771 5920 16,
Department of Health,CT Revenue Funds,06/04/2017,Mobile Phones,HR and Workforce,EE LIMITED (FORMALLY ORANGE),01255993882,14.19,771 5920 16,
Department of Health,CT Revenue Funds,06/04/2017,Mobile Phones,Whitchurch Hospital Occupational Therapy,EE LIMITED (FORMALLY ORANGE),01255993882,0.72,771 5920 16,
Department of Health,CT Revenue Funds,06/04/2017,Mobile Phones,Whitchurch Hospital Inpatient Ward,EE LIMITED (FORMALLY ORANGE),01255993882,20.97,771 5920 16,
Department of Health,CT Revenue Funds,06/04/2017,Mobile Phones,Whitchurch Hospital Inpatient Ward,EE LIMITED (FORMALLY ORANGE),01255993882,4.19,771 5920 16,
Department of Health,CT Revenue Funds,06/04/2017,Mobile Phones,Community Neuro Rehabilitation Team (CNRT),EE LIMITED (FORMALLY ORANGE),01255993882,218.15,771 5920 16,
Department of Health,CT Revenue Funds,06/04/2017,Mobile Phones,Community Neuro Rehabilitation Team (CNRT),EE LIMITED (FORMALLY ORANGE),01255993882,43.63,771 5920 16,
Department of Health,CT Revenue Funds,06/04/2017,Mobile Phones,Whitchurch Hospital Management,EE LIMITED (FORMALLY ORANGE),01255993882,14.46,771 5920 16,
Department of Health,CT Revenue Funds,06/04/2017,Mobile Phones,Whitchurch Hospital Management,EE LIMITED (FORMALLY ORANGE),01255993882,2.89,771 5920 16,
Department of Health,CT Revenue Funds,06/04/2017,Mobile Phones,Wheelchair Services,EE LIMITED (FORMALLY ORANGE),01255993882,108.86,771 5920 16,
Department of Health,CT Revenue Funds,06/04/2017,Mobile Phones,Wheelchair Services,EE LIMITED (FORMALLY ORANGE),01255993882,21.77,771 5920 16,
Department of Health,CT Revenue Funds,06/04/2017,Mobile Phones,APCS ENT,EE LIMITED (FORMALLY ORANGE),01255993882,2.80,771 5920 16,
Department of Health,CT Revenue Funds,06/04/2017,Mobile Phones,Tissue Viability Nurses (T&W),EE LIMITED (FORMALLY ORANGE),01255993882,32.51,771 5920 16,
Department of Health,CT Revenue Funds,06/04/2017,Mobile Phones,Tissue Viability Nurses (T&W),EE LIMITED (FORMALLY ORANGE),01255993882,6.50,771 5920 16,
Department of Health,CT Revenue Funds,06/04/2017,Mobile Phones,Falls Prevention,EE LIMITED (FORMALLY ORANGE),01255993882,93.20,771 5920 16,
Department of Health,CT Revenue Funds,06/04/2017,Mobile Phones,Falls Prevention,EE LIMITED (FORMALLY ORANGE),01255993882,18.64,771 5920 16,
Department of Health,CT Revenue Funds,06/04/2017,Mobile Phones,Podiatry Services,EE LIMITED (FORMALLY ORANGE),01255993882,198.00,771 5920 16,
Department of Health,CT Revenue Funds,06/04/2017,Mobile Phones,Podiatry Services,EE LIMITED (FORMALLY ORANGE),01255993882,39.60,771 5920 16,
Department of Health,CT Revenue Funds,06/04/2017,Mobile Phones,Diabetes Specialist Nursing,EE LIMITED (FORMALLY ORANGE),01255993882,327.15,771 5920 16,
Department of Health,CT Revenue Funds,06/04/2017,Mobile Phones,Diabetes Specialist Nursing,EE LIMITED (FORMALLY ORANGE),01255993882,65.43,771 5920 16,
Department of Health,CT Revenue Funds,06/04/2017,Mobile Phones, T&W Primary CAMHS Service,EE LIMITED (FORMALLY ORANGE),01255993882,32.03,771 5920 16,
Department of Health,CT Revenue Funds,06/04/2017,Mobile Phones,Ludlow Hospital Minor Injuries Unit,EE LIMITED (FORMALLY ORANGE),01255993882,3.50,771 5920 16,
Department of Health,CT Revenue Funds,06/04/2017,Mobile Phones,Ludlow Hospital Minor Injuries Unit,EE LIMITED (FORMALLY ORANGE),01255993882,0.70,771 5920 16,
Department of Health,CT Revenue Funds,06/04/2017,Mobile Phones,Community Childrens Nurses,EE LIMITED (FORMALLY ORANGE),01255993882,65.20,771 5920 16,
Department of Health,CT Revenue Funds,06/04/2017,Mobile Phones,Community Childrens Nurses,EE LIMITED (FORMALLY ORANGE),01255993882,325.99,771 5920 16,
Department of Health,CT Revenue Funds,06/04/2017,Mobile Phones,Reaching Out Services,EE LIMITED (FORMALLY ORANGE),01255993882,113.84,771 5920 16,
Department of Health,CT Revenue Funds,06/04/2017,Mobile Phones,Reaching Out Services,EE LIMITED (FORMALLY ORANGE),01255993882,22.77,771 5920 16,
Department of Health,CT Revenue Funds,06/04/2017,Mobile Phones,CAMHS Youth Offending Team,EE LIMITED (FORMALLY ORANGE),01255993882,14.21,771 5920 16,
Department of Health,CT Revenue Funds,06/04/2017,Mobile Phones,CAMHS Youth Offending Team,EE LIMITED (FORMALLY ORANGE),01255993882,2.84,771 5920 16,
Department of Health,CT Revenue Funds,06/04/2017,Mobile Phones,Psychology Team,EE LIMITED (FORMALLY ORANGE),01255993882,7.14,771 5920 16,
Department of Health,CT Revenue Funds,06/04/2017,Mobile Phones,Psychology Team,EE LIMITED (FORMALLY ORANGE),01255993882,1.43,771 5920 16,
Department of Health,CT Revenue Funds,06/04/2017,Mobile Phones,Shropshire CAMHS Team,EE LIMITED (FORMALLY ORANGE),01255993882,348.19,771 5920 16,
Department of Health,CT Revenue Funds,06/04/2017,Mobile Phones,Shropshire CAMHS Team,EE LIMITED (FORMALLY ORANGE),01255993882,69.64,771 5920 16,
Department of Health,CT Revenue Funds,06/04/2017,Mobile Phones,Shropshire Primary CAMHS Service,EE LIMITED (FORMALLY ORANGE),01255993882,8.20,771 5920 16,
Department of Health,CT Revenue Funds,06/04/2017,Mobile Phones,Shropshire Primary CAMHS Service,EE LIMITED (FORMALLY ORANGE),01255993882,41.01,771 5920 16,
Department of Health,CT Revenue Funds,06/04/2017,Mobile Phones,CAMHS Team (T&W),EE LIMITED (FORMALLY ORANGE),01255993882,38.85,771 5920 16,
Department of Health,CT Revenue Funds,06/04/2017,Mobile Phones,CAMHS Team (T&W),EE LIMITED (FORMALLY ORANGE),01255993882,194.23,771 5920 16,
Department of Health,CT Revenue Funds,06/04/2017,Mobile Phones,Whitchurch Hospital Hotel Services,EE LIMITED (FORMALLY ORANGE),01255993882,7.12,771 5920 16,
Department of Health,CT Revenue Funds,06/04/2017,Mobile Phones,Whitchurch Hospital Hotel Services,EE LIMITED (FORMALLY ORANGE),01255993882,1.42,771 5920 16,
Department of Health,CT Revenue Funds,06/04/2017,Mobile Phones,Ludlow & Bishop Castle Admin,EE LIMITED (FORMALLY ORANGE),01255993882,32.75,771 5920 16,
Department of Health,CT Revenue Funds,06/04/2017,Mobile Phones,Ludlow & Bishop Castle Admin,EE LIMITED (FORMALLY ORANGE),01255993882,6.55,771 5920 16,
Department of Health,CT Revenue Funds,06/04/2017,Mobile Phones,Community Matrons Telford,EE LIMITED (FORMALLY ORANGE),01255993882,128.73,771 5920 16,
Department of Health,CT Revenue Funds,06/04/2017,Mobile Phones,Community Matrons Telford,EE LIMITED (FORMALLY ORANGE),01255993882,25.75,771 5920 16,
Department of Health,CT Revenue Funds,06/04/2017,Mobile Phones,Rapid Response (T&W),EE LIMITED (FORMALLY ORANGE),01255993882,166.72,771 5920 16,
Department of Health,CT Revenue Funds,06/04/2017,Mobile Phones,Rapid Response (T&W),EE LIMITED (FORMALLY ORANGE),01255993882,33.34,771 5920 16,
Department of Health,CT Revenue Funds,06/04/2017,Mobile Phones,Nurse Liaison Intermediate Care (T&W),EE LIMITED (FORMALLY ORANGE),01255993882,109.52,771 5920 16,
Department of Health,CT Revenue Funds,06/04/2017,Mobile Phones,Nurse Liaison Intermediate Care (T&W),EE LIMITED (FORMALLY ORANGE),01255993882,21.90,771 5920 16,
Department of Health,CT Revenue Funds,06/04/2017,Mobile Phones,Whitchurch Hospital Occupational Therapy,EE LIMITED (FORMALLY ORANGE),01255993882,3.58,771 5920 16,
Department of Health,CT Revenue Funds,06/04/2017,Mobile Phones,Telford North Community Nursing,EE LIMITED (FORMALLY ORANGE),01255993882,454.74,771 5920 16,
Department of Health,CT Revenue Funds,06/04/2017,Mobile Phones,Telford North Community Nursing,EE LIMITED (FORMALLY ORANGE),01255993882,90.95,771 5920 16,
Department of Health,CT Revenue Funds,06/04/2017,Mobile Phones,North West Shropshire Interdisciplinary Teams,EE LIMITED (FORMALLY ORANGE),01255993882,115.28,771 5920 16,
Department of Health,CT Revenue Funds,06/04/2017,Mobile Phones,North West Shropshire Interdisciplinary Teams,EE LIMITED (FORMALLY ORANGE),01255993882,576.38,771 5920 16,
Department of Health,CT Revenue Funds,06/04/2017,Mobile Phones,Bridgnorth Hospital Occupational Therapy,EE LIMITED (FORMALLY ORANGE),01255993882,-0.27,771 5920 16,
Department of Health,CT Revenue Funds,06/04/2017,Mobile Phones,Bridgnorth Hospital Occupational Therapy,EE LIMITED (FORMALLY ORANGE),01255993882,-0.05,771 5920 16,
Department of Health,CT Revenue Funds,06/04/2017,Mobile Phones,Bridgnorth Hospital Physiotherapy,EE LIMITED (FORMALLY ORANGE),01255993882,4.04,771 5920 16,
Department of Health,CT Revenue Funds,06/04/2017,Mobile Phones,Bridgnorth Hospital Physiotherapy,EE LIMITED (FORMALLY ORANGE),01255993882,0.81,771 5920 16,
Department of Health,CT Revenue Funds,06/04/2017,Mobile Phones,Bridgnorth Hospital Hotel Services,EE LIMITED (FORMALLY ORANGE),01255993882,19.05,771 5920 16,
Department of Health,CT Revenue Funds,06/04/2017,Mobile Phones,Bridgnorth Hospital Hotel Services,EE LIMITED (FORMALLY ORANGE),01255993882,3.81,771 5920 16,
Department of Health,CT Revenue Funds,06/04/2017,Mobile Phones,Ludlow Hospital Hotel Services,EE LIMITED (FORMALLY ORANGE),01255993882,17.50,771 5920 16,
Department of Health,CT Revenue Funds,06/04/2017,Mobile Phones,Ludlow Hospital Hotel Services,EE LIMITED (FORMALLY ORANGE),01255993882,3.50,771 5920 16,
Department of Health,CT Revenue Funds,06/04/2017,Mobile Phones,Bishops Castle Hospital Inpatient Ward,EE LIMITED (FORMALLY ORANGE),01255993882,11.46,771 5920 16,
Department of Health,CT Revenue Funds,06/04/2017,Mobile Phones,Bishops Castle Hospital Inpatient Ward,EE LIMITED (FORMALLY ORANGE),01255993882,2.29,771 5920 16,
Department of Health,CT Revenue Funds,06/04/2017,Mobile Phones,Community Physiotherapy (T&W),EE LIMITED (FORMALLY ORANGE),01255993882,16.51,771 5920 16,
Department of Health,CT Revenue Funds,06/04/2017,Mobile Phones,Community Physiotherapy (T&W),EE LIMITED (FORMALLY ORANGE),01255993882,3.30,771 5920 16,
Department of Health,CT Revenue Funds,06/04/2017,Mobile Phones,Admiral Nurse,EE LIMITED (FORMALLY ORANGE),01255993882,27.49,771 5920 16,
Department of Health,CT Revenue Funds,06/04/2017,Mobile Phones,Admiral Nurse,EE LIMITED (FORMALLY ORANGE),01255993882,5.50,771 5920 16,
Department of Health,CT Revenue Funds,06/04/2017,Mobile Phones,Telford South Community Nursing,EE LIMITED (FORMALLY ORANGE),01255993882,396.07,771 5920 16,
Department of Health,CT Revenue Funds,06/04/2017,Mobile Phones,Telford South Community Nursing,EE LIMITED (FORMALLY ORANGE),01255993882,79.21,771 5920 16,
Department of Health,CT Revenue Funds,06/04/2017,Mobile Phones,Ludlow Hospital Inpatient Wards,EE LIMITED (FORMALLY ORANGE),01255993882,8.37,771 5920 16,
Department of Health,CT Revenue Funds,06/04/2017,Mobile Phones,Ludlow Hospital Inpatient Wards,EE LIMITED (FORMALLY ORANGE),01255993882,1.67,771 5920 16,
Department of Health,CT Revenue Funds,06/04/2017,Mobile Phones, T&W Primary CAMHS Service,EE LIMITED (FORMALLY ORANGE),01255993882,6.41,771 5920 16,
Department of Health,CT Revenue Funds,06/04/2017,Mobile Phones,Oral Health - Dental,EE LIMITED (FORMALLY ORANGE),01255993882,28.49,771 5920 16,
Department of Health,CT Revenue Funds,06/04/2017,Mobile Phones,Oral Health - Dental,EE LIMITED (FORMALLY ORANGE),01255993882,5.70,771 5920 16,
Department of Health,CT Revenue Funds,06/04/2017,Mobile Phones,Shropshire Child Occupational Therapy,EE LIMITED (FORMALLY ORANGE),01255993882,41.20,771 5920 16,
Department of Health,CT Revenue Funds,06/04/2017,Mobile Phones,Shropshire Child Occupational Therapy,EE LIMITED (FORMALLY ORANGE),01255993882,8.24,771 5920 16,
Department of Health,CT Revenue Funds,06/04/2017,Mobile Phones,Community Medical Staff (T&W),EE LIMITED (FORMALLY ORANGE),01255993882,71.71,771 5920 16,
Department of Health,CT Revenue Funds,06/04/2017,Mobile Phones,Community Medical Staff (T&W),EE LIMITED (FORMALLY ORANGE),01255993882,14.34,771 5920 16,
Department of Health,CT Revenue Funds,06/04/2017,Mobile Phones,Telford Child Psychiatry,EE LIMITED (FORMALLY ORANGE),01255993882,43.87,771 5920 16,
Department of Health,CT Revenue Funds,06/04/2017,Mobile Phones,Telford Child Psychiatry,EE LIMITED (FORMALLY ORANGE),01255993882,8.77,771 5920 16,
Department of Health,CT Revenue Funds,06/04/2017,Mobile Phones,Operations Directorate Management,EE LIMITED (FORMALLY ORANGE),01255993882,63.89,771 5920 16,
Department of Health,CT Revenue Funds,06/04/2017,Mobile Phones,PDS Out of Hours,EE LIMITED (FORMALLY ORANGE),01255993882,18.75,771 5920 16,
Department of Health,CT Revenue Funds,06/04/2017,Mobile Phones,PDS Out of Hours,EE LIMITED (FORMALLY ORANGE),01255993882,3.75,771 5920 16,
Department of Health,CT Revenue Funds,06/04/2017,Mobile Phones,North Shropshire Health Visitors,EE LIMITED (FORMALLY ORANGE),01255993882,195.37,771 5920 16,
Department of Health,CT Revenue Funds,06/04/2017,Mobile Phones,North Shropshire Health Visitors,EE LIMITED (FORMALLY ORANGE),01255993882,39.07,771 5920 16,
Department of Health,CT Revenue Funds,06/04/2017,Mobile Phones,North East Shropshire Interdisciplinary Teams,EE LIMITED (FORMALLY ORANGE),01255993882,85.82,771 5920 16,
Department of Health,CT Revenue Funds,06/04/2017,Mobile Phones,North East Shropshire Interdisciplinary Teams,EE LIMITED (FORMALLY ORANGE),01255993882,429.10,771 5920 16,
Department of Health,CT Revenue Funds,06/04/2017,Mobile Phones,Continence Services,EE LIMITED (FORMALLY ORANGE),01255993882,43.18,771 5920 16,
Department of Health,CT Revenue Funds,06/04/2017,Mobile Phones,Continence Services,EE LIMITED (FORMALLY ORANGE),01255993882,8.64,771 5920 16,
Department of Health,CT Revenue Funds,06/04/2017,Mobile Phones,Respiratory Liaison Nurses (T&W),EE LIMITED (FORMALLY ORANGE),01255993882,190.87,771 5920 16,
Department of Health,CT Revenue Funds,06/04/2017,Mobile Phones,Respiratory Liaison Nurses (T&W),EE LIMITED (FORMALLY ORANGE),01255993882,38.17,771 5920 16,
Department of Health,CT Revenue Funds,06/04/2017,Mobile Phones,Bridgnorth Hospital Minor Injuries Unit,EE LIMITED (FORMALLY ORANGE),01255993882,3.50,771 5920 16,
Department of Health,CT Revenue Funds,06/04/2017,Mobile Phones,Bridgnorth Hospital Minor Injuries Unit,EE LIMITED (FORMALLY ORANGE),01255993882,0.70,771 5920 16,
Department of Health,CT Revenue Funds,06/04/2017,Mobile Phones,Single Point of Referral,EE LIMITED (FORMALLY ORANGE),01255993882,16.75,771 5920 16,
Department of Health,CT Revenue Funds,06/04/2017,Mobile Phones,Single Point of Referral,EE LIMITED (FORMALLY ORANGE),01255993882,83.75,771 5920 16,
Department of Health,CT Revenue Funds,06/04/2017,Mobile Phones,Oswestry DAART,EE LIMITED (FORMALLY ORANGE),01255993882,2.83,771 5920 16,
Department of Health,CT Revenue Funds,06/04/2017,Mobile Phones,Oswestry DAART,EE LIMITED (FORMALLY ORANGE),01255993882,14.16,771 5920 16,
Department of Health,CT Revenue Funds,06/04/2017,Mobile Phones,Bridgnorth Hospital Administration,EE LIMITED (FORMALLY ORANGE),01255993882,16.25,771 5920 16,
Department of Health,CT Revenue Funds,06/04/2017,Mobile Phones,Bridgnorth Hospital Administration,EE LIMITED (FORMALLY ORANGE),01255993882,3.25,771 5920 16,
Department of Health,CT Revenue Funds,06/04/2017,Mobile Phones,Continence Advisors (T&W),EE LIMITED (FORMALLY ORANGE),01255993882,43.09,771 5920 16,
Department of Health,CT Revenue Funds,06/04/2017,Mobile Phones,Continence Advisors (T&W),EE LIMITED (FORMALLY ORANGE),01255993882,8.62,771 5920 16,
Department of Health,CT Revenue Funds,06/04/2017,Mobile Phones,Bridgnorth Hospital Inpatient Ward,EE LIMITED (FORMALLY ORANGE),01255993882,39.63,771 5920 16,
Department of Health,CT Revenue Funds,06/04/2017,Mobile Phones,Bridgnorth Hospital Inpatient Ward,EE LIMITED (FORMALLY ORANGE),01255993882,7.93,771 5920 16,
Department of Health,CT Revenue Funds,06/04/2017,Mobile Phones,South East Interdisciplinary Teams,EE LIMITED (FORMALLY ORANGE),01255993882,619.19,771 5920 16,
Department of Health,CT Revenue Funds,06/04/2017,Mobile Phones,South East Interdisciplinary Teams,EE LIMITED (FORMALLY ORANGE),01255993882,123.84,771 5920 16,
Department of Health,CT Revenue Funds,06/04/2017,Mobile Phones,William Farr House,EE LIMITED (FORMALLY ORANGE),01255993882,0.25,771 5920 16,
Department of Health,CT Revenue Funds,06/04/2017,Mobile Phones,William Farr House,EE LIMITED (FORMALLY ORANGE),01255993882,1.25,771 5920 16,
Department of Health,CT Revenue Funds,06/04/2017,Mobile Phones,ICS North West,EE LIMITED (FORMALLY ORANGE),01255993882,33.65,771 5920 16,
Department of Health,CT Revenue Funds,06/04/2017,Mobile Phones,ICS North West,EE LIMITED (FORMALLY ORANGE),01255993882,6.73,771 5920 16,
Department of Health,CT Revenue Funds,06/04/2017,Mobile Phones,Shropshire Child Psychiatry,EE LIMITED (FORMALLY ORANGE),01255993882,45.64,771 5920 16,
Department of Health,CT Revenue Funds,06/04/2017,Mobile Phones,Shropshire Child Psychiatry,EE LIMITED (FORMALLY ORANGE),01255993882,9.13,771 5920 16,
Department of Health,CT Revenue Funds,06/04/2017,Mobile Phones,ICS South West,EE LIMITED (FORMALLY ORANGE),01255993882,56.99,771 5920 16,
Department of Health,CT Revenue Funds,06/04/2017,Mobile Phones,ICS South West,EE LIMITED (FORMALLY ORANGE),01255993882,11.40,771 5920 16,
Department of Health,CT Revenue Funds,06/04/2017,Mobile Phones,Children & Families SDG Management,EE LIMITED (FORMALLY ORANGE),01255993882,40.77,771 5920 16,
Department of Health,CT Revenue Funds,06/04/2017,Mobile Phones,Children & Families SDG Management,EE LIMITED (FORMALLY ORANGE),01255993882,8.15,771 5920 16,
Department of Health,CT Revenue Funds,06/04/2017,Mobile Phones,Operations Directorate Management,EE LIMITED (FORMALLY ORANGE),01255993882,12.78,771 5920 16,
Department of Health,CT Revenue Funds,06/04/2017,Mobile Phones,Operations Directorate Divisional Management,EE LIMITED (FORMALLY ORANGE),01255993882,26.10,771 5920 16,
Department of Health,CT Revenue Funds,06/04/2017,Mobile Phones,Operations Directorate Divisional Management,EE LIMITED (FORMALLY ORANGE),01255993882,5.22,771 5920 16,
Department of Health,CT Revenue Funds,06/04/2017,Mobile Phones,Community Services Division Management,EE LIMITED (FORMALLY ORANGE),01255993882,96.50,771 5920 16,
Department of Health,CT Revenue Funds,06/04/2017,Mobile Phones,Community Services Division Management,EE LIMITED (FORMALLY ORANGE),01255993882,19.30,771 5920 16,
Department of Health,CT Revenue Funds,06/04/2017,Mobile Phones,Community Hospitals & Out Patient Svces Divison Management,EE LIMITED (FORMALLY ORANGE),01255993882,50.18,771 5920 16,
Department of Health,CT Revenue Funds,06/04/2017,Mobile Phones,Community Hospitals & Out Patient Svces Divison Management,EE LIMITED (FORMALLY ORANGE),01255993882,10.04,771 5920 16,
Department of Health,CT Revenue Funds,06/04/2017,Mobile Phones,Children and Families Division Management,EE LIMITED (FORMALLY ORANGE),01255993882,35.58,771 5920 16,
Department of Health,CT Revenue Funds,06/04/2017,Mobile Phones,Children and Families Division Management,EE LIMITED (FORMALLY ORANGE),01255993882,7.12,771 5920 16,
Department of Health,CT Revenue Funds,06/04/2017,Mobile Phones,Portico House Substance Misuse,EE LIMITED (FORMALLY ORANGE),01255993882,14.75,771 5920 16,
Department of Health,CT Revenue Funds,06/04/2017,Mobile Phones,Portico House Substance Misuse,EE LIMITED (FORMALLY ORANGE),01255993882,2.95,771 5920 16,
Department of Health,CT Revenue Funds,06/04/2017,Mobile Phones,Telford Child Development Centre,EE LIMITED (FORMALLY ORANGE),01255993882,3.50,771 5920 16,
Department of Health,CT Revenue Funds,06/04/2017,Mobile Phones,Telford Child Development Centre,EE LIMITED (FORMALLY ORANGE),01255993882,0.70,771 5920 16,
Department of Health,CT Revenue Funds,06/04/2017,Mobile Phones,Child Speech and Language Therapy,EE LIMITED (FORMALLY ORANGE),01255993882,873.56,771 5920 16,
Department of Health,CT Revenue Funds,06/04/2017,Mobile Phones,Child Speech and Language Therapy,EE LIMITED (FORMALLY ORANGE),01255993882,174.71,771 5920 16,
Department of Health,CT Revenue Funds,06/04/2017,Mobile Phones,Shrewsbury and Atcham South Interdisciplinary Teams,EE LIMITED (FORMALLY ORANGE),01255993882,48.35,771 5920 16,
Department of Health,CT Revenue Funds,06/04/2017,Mobile Phones,Telford South Cluster Health Visitors,EE LIMITED (FORMALLY ORANGE),01255993882,14.00,771 5920 16,
Department of Health,CT Revenue Funds,06/04/2017,Mobile Phones,Telford South Cluster Health Visitors,EE LIMITED (FORMALLY ORANGE),01255993882,2.80,771 5920 16,
Department of Health,CT Revenue Funds,06/04/2017,Mobile Phones,Telford Central Cluster Health Visitors,EE LIMITED (FORMALLY ORANGE),01255993882,26.50,771 5920 16,
Department of Health,CT Revenue Funds,06/04/2017,Mobile Phones,Telford Central Cluster Health Visitors,EE LIMITED (FORMALLY ORANGE),01255993882,5.30,771 5920 16,
Department of Health,CT Revenue Funds,06/04/2017,Mobile Phones,MSK Management & Admin,EE LIMITED (FORMALLY ORANGE),01255993882,80.67,771 5920 16,
Department of Health,CT Revenue Funds,06/04/2017,Mobile Phones,MSK Management & Admin,EE LIMITED (FORMALLY ORANGE),01255993882,16.13,771 5920 16,
Department of Health,CT Revenue Funds,06/04/2017,Mobile Phones,Immunisations and Vaccinations,EE LIMITED (FORMALLY ORANGE),01255993882,112.58,771 5920 16,
Department of Health,CT Revenue Funds,06/04/2017,Mobile Phones,Immunisations and Vaccinations,EE LIMITED (FORMALLY ORANGE),01255993882,22.52,771 5920 16,
Department of Health,CT Revenue Funds,06/04/2017,Mobile Phones,Shropshire School Nurses,EE LIMITED (FORMALLY ORANGE),01255993882,411.55,771 5920 16,
Department of Health,CT Revenue Funds,06/04/2017,Mobile Phones,Psychiatry Learning Disabilites,EE LIMITED (FORMALLY ORANGE),01255993882,8.00,771 5920 16,
Department of Health,CT Revenue Funds,06/04/2017,Mobile Phones,Psychiatry Learning Disabilites,EE LIMITED (FORMALLY ORANGE),01255993882,1.60,771 5920 16,
Department of Health,CT Revenue Funds,06/04/2017,Mobile Phones,Dental Central Admin,EE LIMITED (FORMALLY ORANGE),01255993882,36.14,771 5920 16,
Department of Health,CT Revenue Funds,06/04/2017,Mobile Phones,Dental Central Admin,EE LIMITED (FORMALLY ORANGE),01255993882,7.23,771 5920 16,
Department of Health,CT Revenue Funds,06/04/2017,Mobile Phones,Special Care and Access,EE LIMITED (FORMALLY ORANGE),01255993882,72.39,771 5920 16,
Department of Health,CT Revenue Funds,06/04/2017,Mobile Phones,Special Care and Access,EE LIMITED (FORMALLY ORANGE),01255993882,14.48,771 5920 16,
Department of Health,CT Revenue Funds,06/04/2017,Mobile Phones,South Shropshire Health Visitors,EE LIMITED (FORMALLY ORANGE),01255993882,213.40,771 5920 16,
Department of Health,CT Revenue Funds,06/04/2017,Mobile Phones,South Shropshire Health Visitors,EE LIMITED (FORMALLY ORANGE),01255993882,42.68,771 5920 16,
Department of Health,CT Revenue Funds,06/04/2017,Mobile Phones,Dudley School Nurses,EE LIMITED (FORMALLY ORANGE),01255993882,1154.65,771 5920 16,
Department of Health,CT Revenue Funds,06/04/2017,Mobile Phones,Dudley School Nurses,EE LIMITED (FORMALLY ORANGE),01255993882,230.92,771 5920 16,
Department of Health,CT Revenue Funds,06/04/2017,Mobile Phones,ICS North East,EE LIMITED (FORMALLY ORANGE),01255993882,65.44,771 5920 16,
Department of Health,CT Revenue Funds,06/04/2017,Mobile Phones,ICS North East,EE LIMITED (FORMALLY ORANGE),01255993882,13.09,771 5920 16,
Department of Health,CT Revenue Funds,06/04/2017,Mobile Phones,ICS South East,EE LIMITED (FORMALLY ORANGE),01255993882,59.80,771 5920 16,
Department of Health,CT Revenue Funds,06/04/2017,Mobile Phones,ICS South East,EE LIMITED (FORMALLY ORANGE),01255993882,11.96,771 5920 16,
Department of Health,CT Revenue Funds,06/04/2017,Mobile Phones,Telford North Cluster Health Visitors,EE LIMITED (FORMALLY ORANGE),01255993882,764.59,771 5920 16,
Department of Health,CT Revenue Funds,06/04/2017,Mobile Phones,Telford North Cluster Health Visitors,EE LIMITED (FORMALLY ORANGE),01255993882,152.92,771 5920 16,
Department of Health,CT Revenue Funds,06/04/2017,Mobile Phones,Shropshire FNP,EE LIMITED (FORMALLY ORANGE),01255993882,135.79,771 5920 16,
Department of Health,CT Revenue Funds,06/04/2017,Mobile Phones,Shropshire FNP,EE LIMITED (FORMALLY ORANGE),01255993882,27.16,771 5920 16,
Department of Health,CT Revenue Funds,06/04/2017,Mobile Phones,Shrewsbury and Atcham Health Visitiors,EE LIMITED (FORMALLY ORANGE),01255993882,334.23,771 5920 16,
Department of Health,CT Revenue Funds,06/04/2017,Mobile Phones,Shrewsbury and Atcham Health Visitiors,EE LIMITED (FORMALLY ORANGE),01255993882,66.85,771 5920 16,
Department of Health,CT Revenue Funds,06/04/2017,Mobile Phones,Coral House,EE LIMITED (FORMALLY ORANGE),01255993882,12.33,771 5920 16,
Department of Health,CT Revenue Funds,06/04/2017,Mobile Phones,Coral House,EE LIMITED (FORMALLY ORANGE),01255993882,2.47,771 5920 16,
Department of Health,CT Revenue Funds,06/04/2017,Mobile Phones,Family Nurse Programme,EE LIMITED (FORMALLY ORANGE),01255993882,147.58,771 5920 16,
Department of Health,CT Revenue Funds,06/04/2017,Mobile Phones,Family Nurse Programme,EE LIMITED (FORMALLY ORANGE),01255993882,29.52,771 5920 16,
Department of Health,CT Revenue Funds,06/04/2017,Mobile Phones,C Arms Dental Practice,EE LIMITED (FORMALLY ORANGE),01255993882,3.50,771 5920 16,
Department of Health,CT Revenue Funds,06/04/2017,Mobile Phones,C Arms Dental Practice,EE LIMITED (FORMALLY ORANGE),01255993882,0.70,771 5920 16,
Department of Health,CT Revenue Funds,06/04/2017,Mobile Phones,Shropshire LAC Nurses,EE LIMITED (FORMALLY ORANGE),01255993882,14.00,771 5920 16,
Department of Health,CT Revenue Funds,06/04/2017,Mobile Phones,Shropshire LAC Nurses,EE LIMITED (FORMALLY ORANGE),01255993882,2.80,771 5920 16,
Department of Health,CT Revenue Funds,06/04/2017,Mobile Phones,Safeguarding Team,EE LIMITED (FORMALLY ORANGE),01255993882,58.38,771 5920 16,
Department of Health,CT Revenue Funds,06/04/2017,Mobile Phones,Safeguarding Team,EE LIMITED (FORMALLY ORANGE),01255993882,11.68,771 5920 16,
Department of Health,CT Revenue Funds,06/04/2017,Mobile Phones,Shropshire Child Comm Physiotherapy,EE LIMITED (FORMALLY ORANGE),01255993882,154.27,771 5920 16,
Department of Health,CT Revenue Funds,06/04/2017,Mobile Phones,Shropshire Child Comm Physiotherapy,EE LIMITED (FORMALLY ORANGE),01255993882,30.85,771 5920 16,
Department of Health,CT Revenue Funds,06/04/2017,Mobile Phones,Shropshire School Nurses,EE LIMITED (FORMALLY ORANGE),01255993882,82.31,771 5920 16,
Department of Health,CT Revenue Funds,06/04/2017,Mobile Phones,Telford School Nurses,EE LIMITED (FORMALLY ORANGE),01255993882,231.51,771 5920 16,
Department of Health,CT Revenue Funds,06/04/2017,Mobile Phones,Telford School Nurses,EE LIMITED (FORMALLY ORANGE),01255993882,46.30,771 5920 16,
Department of Health,CT Revenue Funds,06/04/2017,Mobile Phones,Shropshire & Telford Special Schools (Bridge & Severndale),EE LIMITED (FORMALLY ORANGE),01255993882,4.26,771 5920 16,
Department of Health,CT Revenue Funds,06/04/2017,Mobile Phones,Shropshire & Telford Special Schools (Bridge & Severndale),EE LIMITED (FORMALLY ORANGE),01255993882,21.31,771 5920 16,
Department of Health,CT Revenue Funds,06/04/2017,Mobile Phones,Monkmoor CDC,EE LIMITED (FORMALLY ORANGE),01255993882,2.81,771 5920 16,
Department of Health,CT Revenue Funds,06/04/2017,Mobile Phones,Monkmoor CDC,EE LIMITED (FORMALLY ORANGE),01255993882,14.06,771 5920 16,
Department of Health,CT Revenue Funds,06/04/2017,Mobile Phones,M Drayton Dental Practice,EE LIMITED (FORMALLY ORANGE),01255993882,10.96,771 5920 16,
Department of Health,CT Revenue Funds,06/04/2017,Mobile Phones,M Drayton Dental Practice,EE LIMITED (FORMALLY ORANGE),01255993882,2.19,771 5920 16,
Department of Health,CT Revenue Funds,06/04/2017,Mobile Phones,Breast Feeding Lead,EE LIMITED (FORMALLY ORANGE),01255993882,37.77,771 5920 16,
Department of Health,CT Revenue Funds,06/04/2017,Mobile Phones,Breast Feeding Lead,EE LIMITED (FORMALLY ORANGE),01255993882,7.55,771 5920 16,
Department of Health,CT Revenue Funds,06/04/2017,Mobile Phones,Child Support Services Management,EE LIMITED (FORMALLY ORANGE),01255993882,14.00,771 5920 16,
Department of Health,CT Revenue Funds,06/04/2017,Mobile Phones,Child Support Services Management,EE LIMITED (FORMALLY ORANGE),01255993882,2.80,771 5920 16,
Department of Health,CT Revenue Funds,06/04/2017,Mobile Phones,Shropshire Community Paediatric Medical Staff,EE LIMITED (FORMALLY ORANGE),01255993882,15.50,771 5920 16,
Department of Health,CT Revenue Funds,06/04/2017,Mobile Phones,Shropshire Community Paediatric Medical Staff,EE LIMITED (FORMALLY ORANGE),01255993882,77.52,771 5920 16,
Department of Health,CT Revenue Funds,06/04/2017,Mobile Phones,CAMHS Learning Disabilities,EE LIMITED (FORMALLY ORANGE),01255993882,29.74,771 5920 16,
Department of Health,CT Revenue Funds,06/04/2017,Mobile Phones,CAMHS Learning Disabilities,EE LIMITED (FORMALLY ORANGE),01255993882,148.71,771 5920 16,
Department of Health,CT Revenue Funds,06/04/2017,Mobile Phones,Shrewsbury and Atcham South Interdisciplinary Teams,EE LIMITED (FORMALLY ORANGE),01255993882,241.77,771 5920 16,
Department of Health,CT Revenue Funds,06/04/2017,Non-NHS Trade Payables < 1 Year,Payables,SHROPSHIRE EDUCATION & CONFERENCE,148331,207.67,762 4470 27,
Department of Health,CT Revenue Funds,06/04/2017,Non-NHS Trade Payables < 1 Year,Payables,SHROPSHIRE EDUCATION & CONFERENCE,148331,41.53,762 4470 27,
Department of Health,CT Revenue Funds,06/04/2017,Non-NHS Trade Payables < 1 Year,Payables,OPRA PACKAGING LTD,16956,54.89,,
Department of Health,CT Revenue Funds,06/04/2017,Non-NHS Trade Payables < 1 Year,Payables,OPRA PACKAGING LTD,16956,274.45,,
Department of Health,CT Revenue Funds,06/04/2017,Non-NHS Trade Payables < 1 Year,Payables,TELFORD & WREKIN COUNCIL FOR VOLUNTARY SERVICE,20584,50.00,,
Department of Health,CT Revenue Funds,06/04/2017,Non-NHS Trade Payables < 1 Year,Payables,NUFFIELD HEALTH,243549,110.00,564 2911 37,
Department of Health,CT Revenue Funds,06/04/2017,Non-NHS Trade Payables < 1 Year,Payables,NUFFIELD HEALTH,243550,191.00,564 2911 37,
Department of Health,CT Revenue Funds,06/04/2017,Non-NHS Trade Payables < 1 Year,Payables,NUFFIELD HEALTH,243551,187.00,564 2911 37,
Department of Health,CT Revenue Funds,06/04/2017,Non-NHS Trade Payables < 1 Year,Payables,NUFFIELD HEALTH,243552,191.00,564 2911 37,
Department of Health,CT Revenue Funds,06/04/2017,Non-NHS Trade Payables < 1 Year,Payables,NUFFIELD HEALTH,243876,110.00,564 2911 37,
Department of Health,CT Revenue Funds,06/04/2017,Non-NHS Trade Payables < 1 Year,Payables,NUFFIELD HEALTH,243877,191.00,564 2911 37,
Department of Health,CT Revenue Funds,06/04/2017,Non-NHS Trade Payables < 1 Year,Payables,NUFFIELD HEALTH,243878,191.00,564 2911 37,
Department of Health,CT Revenue Funds,06/04/2017,Non-NHS Trade Payables < 1 Year,Payables,ABLEWORLD,3593,192.42,,
Department of Health,CT Revenue Funds,06/04/2017,Non-NHS Trade Payables < 1 Year,Payables,LONG SERVICE AWARDS,A DOYLE-GIBBONS LONG SERVICE,40.00,,
Department of Health,CT Revenue Funds,06/04/2017,Non-NHS Trade Payables < 1 Year,Payables,LONG SERVICE AWARDS,A SCULL LONG SERVICE,50.00,,
Department of Health,CT Revenue Funds,06/04/2017,Non-NHS Trade Payables < 1 Year,Payables,LONG SERVICE AWARDS,B NAYLOR LONG SERVICE,50.00,,
Department of Health,CT Revenue Funds,06/04/2017,Non-NHS Trade Payables < 1 Year,Payables,LONG SERVICE AWARDS,D ADAMS LONG SERVICE,50.00,,
Department of Health,CT Revenue Funds,06/04/2017,Non-NHS Trade Payables < 1 Year,Payables,LONG SERVICE AWARDS,D GARLAND LONG SERVICE,50.00,,
Department of Health,CT Revenue Funds,06/04/2017,Non-NHS Trade Payables < 1 Year,Payables,LONG SERVICE AWARDS,J BOLAND LONG SERVICE,40.00,,
Department of Health,CT Revenue Funds,06/04/2017,Non-NHS Trade Payables < 1 Year,Payables,KARENZ CATERING,JT1100,40.00,,
Department of Health,CT Revenue Funds,06/04/2017,Non-NHS Trade Payables < 1 Year,Payables,LONG SERVICE AWARDS,K HUETSON LONG SERVICE,50.00,,
Department of Health,CT Revenue Funds,06/04/2017,Non-NHS Trade Payables < 1 Year,Payables,LONG SERVICE AWARDS,K JARVIS LONG SERVICE,50.00,,
Department of Health,CT Revenue Funds,06/04/2017,Non-NHS Trade Payables < 1 Year,Payables,LONG SERVICE AWARDS,K MYLES LONG SERVICE,50.00,,
Department of Health,CT Revenue Funds,06/04/2017,Non-NHS Trade Payables < 1 Year,Payables,LONG SERVICE AWARDS,P HALEY LONG SERVICE,50.00,,
Department of Health,CT Revenue Funds,06/04/2017,Non-NHS Trade Payables < 1 Year,Payables,LONG SERVICE AWARDS,S DAVIES LONG SERVICE,50.00,,
Department of Health,CT Revenue Funds,06/04/2017,Non-NHS Trade Payables < 1 Year,Payables,CATHERINE BAILEY,TRAVEL-10/11-2/3/17,127.94,,
Department of Health,CT Revenue Funds,06/04/2017,Office Equipment & Materials : Lease,William Farr House,NEOPOST LTD,2017022581,134.85,597 2654 89,
Department of Health,CT Revenue Funds,06/04/2017,Office Equipment & Materials : Lease,William Farr House,NEOPOST LTD,2017022581,674.25,597 2654 89,
Department of Health,CT Revenue Funds,06/04/2017,Office Equipment & Materials : Lease,South East Interdisciplinary Teams,ALTODIGITAL,4403385491,141.18,,
Department of Health,CT Revenue Funds,06/04/2017,Office Equipment & Materials : Lease,South East Interdisciplinary Teams,ALTODIGITAL,4403385491,28.24,,
Department of Health,CT Revenue Funds,06/04/2017,Office Equipment & Materials : Lease,South East Interdisciplinary Teams,ALTODIGITAL,4403385491,-28.24,,
Department of Health,CT Revenue Funds,06/04/2017,Office Equipment & Materials : Purchase,Medicines Management,MISCO COMPUTER SUPPLIES LTD,11285214,658.24,494 1756 15,
Department of Health,CT Revenue Funds,06/04/2017,Office Equipment & Materials : Purchase,Medicines Management,MISCO COMPUTER SUPPLIES LTD,11285214,4.99,494 1756 15,
Department of Health,CT Revenue Funds,06/04/2017,Office Equipment & Materials : Purchase,Medicines Management,MISCO COMPUTER SUPPLIES LTD,11285214,1.00,494 1756 15,
Department of Health,CT Revenue Funds,06/04/2017,Office Equipment & Materials : Purchase,Medicines Management,MISCO COMPUTER SUPPLIES LTD,11285214,131.65,494 1756 15,
Department of Health,CT Revenue Funds,06/04/2017,Office Equipment & Materials : Purchase,Diabetes Specialist Nursing,KINGSFIELD COMPUTER PRODUCTS LTD,76959,37.41,,
Department of Health,CT Revenue Funds,06/04/2017,Office Equipment & Materials : Purchase,Diabetes Specialist Nursing,KINGSFIELD COMPUTER PRODUCTS LTD,76959,7.48,,
Department of Health,CT Revenue Funds,06/04/2017,Office Equipment & Materials : Purchase,Psychology Team,XEROX UK,97117922,125.44,232 3646 82,
Department of Health,CT Revenue Funds,06/04/2017,Office Equipment & Materials : Purchase,Psychology Team,XEROX UK,97117922,25.09,232 3646 82,
Department of Health,CT Revenue Funds,06/04/2017,Office Equipment & Materials : Purchase,Psychology Team,XEROX UK,97117922,-25.09,232 3646 82,
Department of Health,CT Revenue Funds,06/04/2017,Office Equipment & Materials : Purchase,Monkmoor CDC,XEROX UK,97117922,125.44,232 3646 82,
Department of Health,CT Revenue Funds,06/04/2017,Office Equipment & Materials : Purchase,Monkmoor CDC,XEROX UK,97117922,25.09,232 3646 82,
Department of Health,CT Revenue Funds,06/04/2017,Office Equipment & Materials : Purchase,Monkmoor CDC,XEROX UK,97117922,-25.09,232 3646 82,
Department of Health,CT Revenue Funds,06/04/2017,Office Equipment & Materials : Purchase,Dudley School Nurses,PETTY CASH,SHEET 4 7.3.4.17,6.98,,
Department of Health,CT Revenue Funds,06/04/2017,Office Equipment & Materials : Repairs,William Farr House,NEOPOST LTD,2017022581,456.00,597 2654 89,
Department of Health,CT Revenue Funds,06/04/2017,Office/Building Removal Expenses,Broseley Medical Practice,GLYN UPTON REMOVALS,S/69548/0317,220.00,549 7895 65,
Department of Health,CT Revenue Funds,06/04/2017,Office/Building Removal Expenses,Shropshire School Nurses,GLYN UPTON REMOVALS,S/69714/0317,200.00,549 7895 65,
Department of Health,CT Revenue Funds,06/04/2017,Other Bought-In Clinical Services,MSK MDT Clinic,ALLIANCE MEDICAL LTD,AML-060532,11130.00,,
Department of Health,CT Revenue Funds,06/04/2017,Other Bought-In Clinical Services,Occupational Health Stoke,DRS.DIRECT LIMITED,DRS10248,420.00,,
Department of Health,CT Revenue Funds,06/04/2017,Other Bought-In Clinical Services,Occupational Health Stoke,DRS.DIRECT LIMITED,DRS10248,2100.00,,
Department of Health,CT Revenue Funds,06/04/2017,Other General Supplies & Services,Ludlow Hospital Inpatient Wards,BRISTOL MAID HOSPITAL METALCRAFT LIMITED,372147,170.35,137 5867 34,
Department of Health,CT Revenue Funds,06/04/2017,Other General Supplies & Services,Ludlow Hospital Inpatient Wards,BRISTOL MAID HOSPITAL METALCRAFT LIMITED,372147,851.76,137 5867 34,
Department of Health,CT Revenue Funds,06/04/2017,Other General Supplies & Services,Ludlow Hospital Inpatient Wards,BRISTOL MAID HOSPITAL METALCRAFT LIMITED,372147,851.76,137 5867 34,
Department of Health,CT Revenue Funds,06/04/2017,Other General Supplies & Services,Ludlow Hospital Inpatient Wards,BRISTOL MAID HOSPITAL METALCRAFT LIMITED,372147,170.35,137 5867 34,
Department of Health,CT Revenue Funds,06/04/2017,Other Paper Products,Ludlow Hospital Hotel Services,PROVAC CLEANING SUPPLIES LTD,50941,35.00,,
Department of Health,CT Revenue Funds,06/04/2017,Other Paper Products,Ludlow Hospital Hotel Services,PROVAC CLEANING SUPPLIES LTD,50941,175.00,,
Department of Health,CT Revenue Funds,06/04/2017,Other Utility Fuels,Castle Foregate 71,FOREST FUELS,318351,998.40,,
Department of Health,CT Revenue Funds,06/04/2017,Other Utility Fuels,Castle Foregate 71,FOREST FUELS,318351,199.68,,
Department of Health,CT Revenue Funds,06/04/2017,Other Utility Fuels,Castle Foregate 71,FOREST FUELS,318436,2666.56,,
Department of Health,CT Revenue Funds,06/04/2017,Other Utility Fuels,Castle Foregate 71,FOREST FUELS,318436,533.31,,
Department of Health,CT Revenue Funds,06/04/2017,Packing & Storage,Bridgnorth Hospital Catering,HIRE THIS LIMITED,52647,55.20,,
Department of Health,CT Revenue Funds,06/04/2017,Packing & Storage,Dudley School Nurses,GLYN UPTON REMOVALS,DC/69693/0317,101.28,549 7895 65,
Department of Health,CT Revenue Funds,06/04/2017,Packing & Storage,Estates Management,GLYN UPTON REMOVALS,SC/69691/0317,1481.52,549 7895 65,
Department of Health,CT Revenue Funds,06/04/2017,Packing & Storage,Estates Management,GLYN UPTON REMOVALS,SC/69692/0317,102.00,549 7895 65,
Department of Health,CT Revenue Funds,06/04/2017,Paper Items & General Stationery Sundries,Ludlow Hospital Inpatient Wards,LG DAVIS (STATIONERS) LTD,099838,5.61,110 6445 14,
Department of Health,CT Revenue Funds,06/04/2017,Paper Items & General Stationery Sundries,Single Point of Referral,LG DAVIS (STATIONERS) LTD,100096,2517.00,110 6445 14,
Department of Health,CT Revenue Funds,06/04/2017,Paper Items & General Stationery Sundries,Ludlow & Bishop Castle Admin,LG DAVIS (STATIONERS) LTD,100112,4058.25,110 6445 14,
Department of Health,CT Revenue Funds,06/04/2017,Paper Items & General Stationery Sundries,Whitchurch Hospital Inpatient Ward,LG DAVIS (STATIONERS) LTD,100112,4058.25,110 6445 14,
Department of Health,CT Revenue Funds,06/04/2017,Paper Items & General Stationery Sundries,Bridgnorth Hospital Administration,LG DAVIS (STATIONERS) LTD,100112,4058.25,110 6445 14,
Department of Health,CT Revenue Funds,06/04/2017,Paper Items & General Stationery Sundries,DO NOT USE Bishops Castle Hospital Management - DO NOT USE,LG DAVIS (STATIONERS) LTD,100112,4058.25,110 6445 14,
Department of Health,CT Revenue Funds,06/04/2017,Paper Items & General Stationery Sundries,MSK Management & Admin,STAMPS DIRECT LTD,LN255629,13.41,283 5042 63,
Department of Health,CT Revenue Funds,06/04/2017,Paper Items & General Stationery Sundries,MSK Management & Admin,STAMPS DIRECT LTD,LN255629,67.05,283 5042 63,
Department of Health,CT Revenue Funds,06/04/2017,Patient Aids/Appliances : Kitchen,Community Equipment Stores,MOBILITY SMART LIMITED,SI-239567,14.00,,
Department of Health,CT Revenue Funds,06/04/2017,Patient Aids/Appliances : Kitchen,Community Equipment Stores,MOBILITY SMART LIMITED,SI-239567,69.99,,
Department of Health,CT Revenue Funds,06/04/2017,Patient Aids/Appliances : Mobility,Community Equipment Stores,PERFORMANCE HEALTH,5144308193,-6.11,945 7652 83,
Department of Health,CT Revenue Funds,06/04/2017,Patient Aids/Appliances : Mobility,Community Equipment Stores,PERFORMANCE HEALTH,5144308193,-30.57,945 7652 83,
Department of Health,CT Revenue Funds,06/04/2017,Patient Aids/Appliances : Mobility,Community Equipment Stores,PERFORMANCE HEALTH,5144308193,30.33,945 7652 83,
Department of Health,CT Revenue Funds,06/04/2017,Patient Aids/Appliances : Mobility,Community Equipment Stores,PERFORMANCE HEALTH,5144308193,151.67,945 7652 83,
Department of Health,CT Revenue Funds,06/04/2017,Patient Aids/Appliances : Mobility,Community Equipment Stores,SIMPLY MED UK LTD,64904,725.00,979 7837 26,
Department of Health,CT Revenue Funds,06/04/2017,Patient Aids/Appliances : Mobility,Community Equipment Stores,SIMPLY MED UK LTD,64904,145.00,979 7837 26,
Department of Health,CT Revenue Funds,06/04/2017,Patient Aids/Appliances : Mobility,Community Equipment Stores,SIMPLY MED UK LTD,64905,725.00,979 7837 26,
Department of Health,CT Revenue Funds,06/04/2017,Patient Aids/Appliances : Mobility,Community Equipment Stores,SIMPLY MED UK LTD,64905,145.00,979 7837 26,
Department of Health,CT Revenue Funds,06/04/2017,Patient Aids/Appliances : Mobility,Community Equipment Stores,SIMPLY MED UK LTD,64906,680.00,979 7837 26,
Department of Health,CT Revenue Funds,06/04/2017,Patient Aids/Appliances : Mobility,Community Equipment Stores,SIMPLY MED UK LTD,64906,680.00,979 7837 26,
Department of Health,CT Revenue Funds,06/04/2017,Patient Aids/Appliances : Mobility,Community Equipment Stores,SIMPLY MED UK LTD,64906,145.00,979 7837 26,
Department of Health,CT Revenue Funds,06/04/2017,Patient Aids/Appliances : Mobility,Community Equipment Stores,SIMPLY MED UK LTD,64906,136.00,979 7837 26,
Department of Health,CT Revenue Funds,06/04/2017,Patient Aids/Appliances : Mobility,Community Equipment Stores,SIMPLY MED UK LTD,64906,725.00,979 7837 26,
Department of Health,CT Revenue Funds,06/04/2017,Patient Aids/Appliances : Mobility,Community Equipment Stores,SIMPLY MED UK LTD,64906,136.00,979 7837 26,
Department of Health,CT Revenue Funds,06/04/2017,Patient Aids/Appliances : Mobility,Community Equipment Stores,EMILYHANNAH LTD,95033476,39.00,,
Department of Health,CT Revenue Funds,06/04/2017,Patient Aids/Appliances : Mobility,Community Equipment Stores,EMILYHANNAH LTD,95033476,7.80,,
Department of Health,CT Revenue Funds,06/04/2017,Patient Aids/Appliances : Toileting,Community Equipment Stores,SMITCARE LTD,2058243,279.60,709 3310 54,
Department of Health,CT Revenue Funds,06/04/2017,Patient Aids/Appliances : Toileting,Community Equipment Stores,SMITCARE LTD,2058243,55.92,709 3310 54,
Department of Health,CT Revenue Funds,06/04/2017,Patient Aids/Appliances : Toileting,Community Equipment Stores,AIDAPT,285457,156.00,,
Department of Health,CT Revenue Funds,06/04/2017,Patient Aids/Appliances : Toileting,Community Equipment Stores,AIDAPT,285457,780.00,,
Department of Health,CT Revenue Funds,06/04/2017,Patients Aid,Payables,PAYCARE,MAR17,376.20,,
Department of Health,CT Revenue Funds,06/04/2017,Pennies from Heaven,Payables,PENNIES FROM HEAVEN,MAR17,12.84,,
Department of Health,CT Revenue Funds,06/04/2017,Postage & Carriage,Bishops Castle Hospital Domestics,ARGOS,01514305,0.66,145 8990 25,
Department of Health,CT Revenue Funds,06/04/2017,Postage & Carriage,Bishops Castle Hospital Domestics,ARGOS,01514305,3.29,145 8990 25,
Department of Health,CT Revenue Funds,06/04/2017,Postage & Carriage,Community Neuro Rehabilitation Team (CNRT),ARGOS,01519677,0.66,145 8990 25,
Department of Health,CT Revenue Funds,06/04/2017,Postage & Carriage,Community Neuro Rehabilitation Team (CNRT),ARGOS,01519677,3.29,145 8990 25,
Department of Health,CT Revenue Funds,06/04/2017,Postage & Carriage,Ludlow Hospital Hotel Services,ARGOS,01519679,3.29,145 8990 25,
Department of Health,CT Revenue Funds,06/04/2017,Postage & Carriage,Ludlow Hospital Hotel Services,ARGOS,01519679,0.66,145 8990 25,
Department of Health,CT Revenue Funds,06/04/2017,Postage & Carriage,Ludlow Hospital Hotel Services,ARGOS,01519680,0.66,145 8990 25,
Department of Health,CT Revenue Funds,06/04/2017,Postage & Carriage,Ludlow Hospital Hotel Services,ARGOS,01519680,3.29,145 8990 25,
Department of Health,CT Revenue Funds,06/04/2017,Postage & Carriage,Child Speech and Language Therapy,WINSLOW PRESS,089868,0.99,814 5132 57,
Department of Health,CT Revenue Funds,06/04/2017,Postage & Carriage,Child Speech and Language Therapy,WINSLOW PRESS,089868,4.95,814 5132 57,
Department of Health,CT Revenue Funds,06/04/2017,Postage & Carriage,Immunisations and Vaccinations,ROYAL MAIL,1109270255,75.00,,
Department of Health,CT Revenue Funds,06/04/2017,Postage & Carriage,ICS Central,MISCO COMPUTER SUPPLIES LTD,11284468,1.00,494 1756 15,
Department of Health,CT Revenue Funds,06/04/2017,Postage & Carriage,ICS Central,MISCO COMPUTER SUPPLIES LTD,11284468,4.99,494 1756 15,
Department of Health,CT Revenue Funds,06/04/2017,Postage & Carriage,South East Interdisciplinary Teams,MISCO COMPUTER SUPPLIES LTD,11285507,1.00,494 1756 15,
Department of Health,CT Revenue Funds,06/04/2017,Postage & Carriage,South East Interdisciplinary Teams,MISCO COMPUTER SUPPLIES LTD,11285507,4.99,494 1756 15,
Department of Health,CT Revenue Funds,06/04/2017,Postage & Carriage,IM&T Support,MISCO COMPUTER SUPPLIES LTD,11288781,1.00,494 1756 15,
Department of Health,CT Revenue Funds,06/04/2017,Postage & Carriage,IM&T Support,MISCO COMPUTER SUPPLIES LTD,11288781,4.99,494 1756 15,
Department of Health,CT Revenue Funds,06/04/2017,Postage & Carriage,Community Hospitals & Out Patient Svces Divison Management,MISCO COMPUTER SUPPLIES LTD,11292537,4.99,494 1756 15,
Department of Health,CT Revenue Funds,06/04/2017,Postage & Carriage,Community Hospitals & Out Patient Svces Divison Management,MISCO COMPUTER SUPPLIES LTD,11292537,1.00,494 1756 15,
Department of Health,CT Revenue Funds,06/04/2017,Postage & Carriage,Oswestry Minor Injuries Unit,MISCO COMPUTER SUPPLIES LTD,11293089,4.99,494 1756 15,
Department of Health,CT Revenue Funds,06/04/2017,Postage & Carriage,Oswestry Minor Injuries Unit,MISCO COMPUTER SUPPLIES LTD,11293089,1.00,494 1756 15,
Department of Health,CT Revenue Funds,06/04/2017,Postage & Carriage,Special Care and Access,ORAL HEALTH FOUNDATION,117401,1.34,,
Department of Health,CT Revenue Funds,06/04/2017,Postage & Carriage,Special Care and Access,ORAL HEALTH FOUNDATION,117401,6.70,,
Department of Health,CT Revenue Funds,06/04/2017,Postage & Carriage,Ludlow Hospital Catering,NISBETS,14284802,1.00,974 8030 00,
Department of Health,CT Revenue Funds,06/04/2017,Postage & Carriage,Ludlow Hospital Catering,NISBETS,14284802,5.00,974 8030 00,
Department of Health,CT Revenue Funds,06/04/2017,Postage & Carriage,Ludlow Hospital Catering,NISBETS,14441767,1.00,974 8030 00,
Department of Health,CT Revenue Funds,06/04/2017,Postage & Carriage,Ludlow Hospital Catering,NISBETS,14441767,5.00,974 8030 00,
Department of Health,CT Revenue Funds,06/04/2017,Postage & Carriage,Community Equipment Stores,OSPREY SLING COMPANY LTD,17453,3.00,,
Department of Health,CT Revenue Funds,06/04/2017,Postage & Carriage,Community Equipment Stores,OSPREY SLING COMPANY LTD,17453,15.00,,
Department of Health,CT Revenue Funds,06/04/2017,Postage & Carriage,Child Speech and Language Therapy,LOGAN TECHNOLOGIES LTD,2856,0.50,,
Department of Health,CT Revenue Funds,06/04/2017,Postage & Carriage,Child Speech and Language Therapy,LOGAN TECHNOLOGIES LTD,2856,2.50,,
Department of Health,CT Revenue Funds,06/04/2017,Postage & Carriage,Community Neuro Rehabilitation Team (CNRT),TAYLOR & FRANCIS,4854363I,2.00,,
Department of Health,CT Revenue Funds,06/04/2017,Postage & Carriage,Ludlow Hospital Hotel Services,PROVAC CLEANING SUPPLIES LTD,50941,15.00,,
Department of Health,CT Revenue Funds,06/04/2017,Postage & Carriage,Ludlow Hospital Hotel Services,PROVAC CLEANING SUPPLIES LTD,50941,3.00,,
Department of Health,CT Revenue Funds,06/04/2017,Postage & Carriage,Community Equipment Stores,RBF HEALTHCARE,719,1.90,,
Department of Health,CT Revenue Funds,06/04/2017,Postage & Carriage,Community Equipment Stores,RBF HEALTHCARE,719,9.50,,
Department of Health,CT Revenue Funds,06/04/2017,Postage & Carriage,Oswestry Minor Injuries Unit,ABBOTT LABORATORIES LTD,751177687,15.00,430 8670 56,
Department of Health,CT Revenue Funds,06/04/2017,Postage & Carriage,Oswestry Minor Injuries Unit,ABBOTT LABORATORIES LTD,751177687,3.00,430 8670 56,
Department of Health,CT Revenue Funds,06/04/2017,Postage & Carriage,Diabetes Specialist Nursing,KINGSFIELD COMPUTER PRODUCTS LTD,76959,2.99,,
Department of Health,CT Revenue Funds,06/04/2017,Postage & Carriage,Diabetes Specialist Nursing,KINGSFIELD COMPUTER PRODUCTS LTD,76959,14.95,,
Department of Health,CT Revenue Funds,06/04/2017,Postage & Carriage,Community Neuro Rehabilitation Team (CNRT),KETTERING SURGICAL APPLIANCES LTD,80265,1.59,121 5091 15,
Department of Health,CT Revenue Funds,06/04/2017,Postage & Carriage,Community Neuro Rehabilitation Team (CNRT),KETTERING SURGICAL APPLIANCES LTD,80265,7.95,121 5091 15,
Department of Health,CT Revenue Funds,06/04/2017,Postage & Carriage,Wheelchair Services,GREENCARE MOBILITY LTD,9642,3.00,,
Department of Health,CT Revenue Funds,06/04/2017,Postage & Carriage,Wheelchair Services,GREENCARE MOBILITY LTD,9642,15.00,,
Department of Health,CT Revenue Funds,06/04/2017,Postage & Carriage,Coral House,ACTIVATE FOR KIDS LTD,AFK0800,5.97,,
Department of Health,CT Revenue Funds,06/04/2017,Postage & Carriage,Coral House,ACTIVATE FOR KIDS LTD,AFK0800,29.87,,
Department of Health,CT Revenue Funds,06/04/2017,Postage & Carriage,Community Neuro Rehabilitation Team (CNRT),EXTREMEGB LTD,EGB11325,2.46,,
Department of Health,CT Revenue Funds,06/04/2017,Postage & Carriage,Community Neuro Rehabilitation Team (CNRT),EXTREMEGB LTD,EGB11325,0.49,,
Department of Health,CT Revenue Funds,06/04/2017,Postage & Carriage,Wheelchair Services,ALEXANDRA WORKWEAR,OLSINV/04086442,0.80,927 1561 21,
Department of Health,CT Revenue Funds,06/04/2017,Postage & Carriage,Wheelchair Services,ALEXANDRA WORKWEAR,OLSINV/04086442,4.00,927 1561 21,
Department of Health,CT Revenue Funds,06/04/2017,Postage & Carriage,Bridgnorth Hospital Minor Injuries Unit,ALEXANDRA WORKWEAR,OLSINV/04101287,4.00,927 1561 21,
Department of Health,CT Revenue Funds,06/04/2017,Postage & Carriage,Bridgnorth Hospital Minor Injuries Unit,ALEXANDRA WORKWEAR,OLSINV/04101287,0.80,927 1561 21,
Department of Health,CT Revenue Funds,06/04/2017,Postage & Carriage,Bridgnorth Hospital Minor Injuries Unit,ALEXANDRA WORKWEAR,OLSINV/04107992,4.00,927 1561 21,
Department of Health,CT Revenue Funds,06/04/2017,Postage & Carriage,Bridgnorth Hospital Minor Injuries Unit,ALEXANDRA WORKWEAR,OLSINV/04107992,0.80,927 1561 21,
Department of Health,CT Revenue Funds,06/04/2017,Postage & Carriage,North West Shropshire Interdisciplinary Teams,ALEXANDRA WORKWEAR,OLSINV/04117855,0.80,927 1561 21,
Department of Health,CT Revenue Funds,06/04/2017,Postage & Carriage,North West Shropshire Interdisciplinary Teams,ALEXANDRA WORKWEAR,OLSINV/04117855,4.00,927 1561 21,
Department of Health,CT Revenue Funds,06/04/2017,Postage & Carriage,Community Equipment Stores,PROSYS INTERNATIONAL LTD,P6227,2.00,,
Department of Health,CT Revenue Funds,06/04/2017,Postage & Carriage,Community Equipment Stores,PROSYS INTERNATIONAL LTD,P6227,10.00,,
Department of Health,CT Revenue Funds,06/04/2017,Postage & Carriage,Community Equipment Stores,MOBILITY SMART LIMITED,SI-239567,0.83,,
Department of Health,CT Revenue Funds,06/04/2017,Postage & Carriage,Community Equipment Stores,MOBILITY SMART LIMITED,SI-239567,4.16,,
Department of Health,CT Revenue Funds,06/04/2017,Postage & Carriage,APCS ENT,EXMOOR PLASTICS LTD,SIN0177249,1.38,131 4173 11,
Department of Health,CT Revenue Funds,06/04/2017,Postage & Carriage,APCS ENT,EXMOOR PLASTICS LTD,SIN0177249,6.90,131 4173 11,
Department of Health,CT Revenue Funds,06/04/2017,Postage & Carriage,APCS Gynaecology,MEDIPLUS LTD,SIN189033,16.00,,
Department of Health,CT Revenue Funds,06/04/2017,Postage & Carriage,APCS Gynaecology,MEDIPLUS LTD,SIN189033,3.20,,
Department of Health,CT Revenue Funds,06/04/2017,Postage & Carriage,APCS Gynaecology,MEDIPLUS LTD,SIN189064,3.20,,
Department of Health,CT Revenue Funds,06/04/2017,Postage & Carriage,APCS Gynaecology,MEDIPLUS LTD,SIN189064,16.00,,
Department of Health,CT Revenue Funds,06/04/2017,Postage & Carriage,Community Equipment Stores,LISCLARE LTD,SINV03068834,4.00,,
Department of Health,CT Revenue Funds,06/04/2017,Postage & Carriage,Community Equipment Stores,LISCLARE LTD,SINV03068834,20.00,,
Department of Health,CT Revenue Funds,06/04/2017,Printing Costs,Child Audiology Support Staff,LG DAVIS (STATIONERS) LTD,099319,67.68,110 6445 14,
Department of Health,CT Revenue Funds,06/04/2017,Printing Costs,Child Audiology Support Staff,LG DAVIS (STATIONERS) LTD,099319,95.00,110 6445 14,
Department of Health,CT Revenue Funds,06/04/2017,Printing Costs,EPR Programme,BATTLEFIELD PRINTING GROUP,29265,75.00,,
Department of Health,CT Revenue Funds,06/04/2017,Printing Costs,EPR Programme,BATTLEFIELD PRINTING GROUP,29265,-75.00,,
Department of Health,CT Revenue Funds,06/04/2017,Printing Costs,EPR Programme,BATTLEFIELD PRINTING GROUP,29265,375.00,,
Department of Health,CT Revenue Funds,06/04/2017,Printing Costs,Shropshire FNP,HARLOW PRINTING LTD,728065,358.00,,
Department of Health,CT Revenue Funds,06/04/2017,Printing Costs,Shropshire FNP,HARLOW PRINTING LTD,728065,-71.60,,
Department of Health,CT Revenue Funds,06/04/2017,Printing Costs,Shropshire FNP,HARLOW PRINTING LTD,728065,71.60,,
Department of Health,CT Revenue Funds,06/04/2017,Printing Costs,Shropshire FNP,HARLOW PRINTING LTD,728066,-83.60,,
Department of Health,CT Revenue Funds,06/04/2017,Printing Costs,Shropshire FNP,HARLOW PRINTING LTD,728066,83.60,,
Department of Health,CT Revenue Funds,06/04/2017,Printing Costs,Shropshire FNP,HARLOW PRINTING LTD,728066,418.00,,
Department of Health,CT Revenue Funds,06/04/2017,Printing Costs,Shropshire FNP,HARLOW PRINTING LTD,728067,66.00,,
Department of Health,CT Revenue Funds,06/04/2017,Printing Costs,Shropshire FNP,HARLOW PRINTING LTD,728067,-66.00,,
Department of Health,CT Revenue Funds,06/04/2017,Printing Costs,Shropshire FNP,HARLOW PRINTING LTD,728067,330.00,,
Department of Health,CT Revenue Funds,06/04/2017,Printing Costs,MSK Management & Admin,SYNERTEC LTD,QS141089,536.04,,
Department of Health,CT Revenue Funds,06/04/2017,Printing Costs,MSK Management & Admin,SYNERTEC LTD,QS141089,-107.21,,
Department of Health,CT Revenue Funds,06/04/2017,Printing Costs,MSK Management & Admin,SYNERTEC LTD,QS141089,107.21,,
Department of Health,CT Revenue Funds,06/04/2017,Printing Costs,Coral House,SYNERTEC LTD,QS141090,79.17,,
Department of Health,CT Revenue Funds,06/04/2017,Printing Costs,Coral House,SYNERTEC LTD,QS141091,171.04,,
Department of Health,CT Revenue Funds,06/04/2017,Printing Costs,Coral House,SYNERTEC LTD,QS141092,50.26,,
Department of Health,CT Revenue Funds,06/04/2017,Printing Costs,Coral House,SYNERTEC LTD,QS141093,79.05,,
Department of Health,CT Revenue Funds,06/04/2017,Printing Costs,Estates Management,SYNERTEC LTD,QS141094,147.55,,
Department of Health,CT Revenue Funds,06/04/2017,Printing Costs,Shropshire School Nurses,SYNERTEC LTD,QS141095,-219.07,,
Department of Health,CT Revenue Funds,06/04/2017,Printing Costs,Shropshire School Nurses,SYNERTEC LTD,QS141095,219.07,,
Department of Health,CT Revenue Funds,06/04/2017,Printing Costs,Shropshire School Nurses,SYNERTEC LTD,QS141095,1095.33,,
Department of Health,CT Revenue Funds,06/04/2017,Printing Costs,Coral House,SYNERTEC LTD,QS141426,50.00,,
Department of Health,CT Revenue Funds,06/04/2017,Printing Costs,Estates Management,SYNERTEC LTD,QS141427,50.00,,
Department of Health,CT Revenue Funds,06/04/2017,Radiology Equipment,Bridgnorth Hospital Radiology,AGFA HEALTHCARE UK LTD,9009000620,137.30,,
Department of Health,CT Revenue Funds,06/04/2017,Radiology Equipment,Bridgnorth Hospital Radiology,AGFA HEALTHCARE UK LTD,9009000620,27.46,,
Department of Health,CT Revenue Funds,06/04/2017,Radiotherapy Equipment,Whitchurch Hospital Administration,LONSTO SYSTEMS LTD,57197,28.63,,
Department of Health,CT Revenue Funds,06/04/2017,Radiotherapy Equipment,Whitchurch Hospital Administration,LONSTO SYSTEMS LTD,57197,143.15,,
Department of Health,CT Revenue Funds,06/04/2017,Radiotherapy Equipment,Whitchurch Hospital Minor Injuries Unit,SPACELABS HEALTHCARE LTD,IN243160,121.41,573 2741 35,
Department of Health,CT Revenue Funds,06/04/2017,Radiotherapy Equipment,Whitchurch Hospital Minor Injuries Unit,SPACELABS HEALTHCARE LTD,IN243160,1.70,573 2741 35,
Department of Health,CT Revenue Funds,06/04/2017,Radiotherapy Equipment,Whitchurch Hospital Minor Injuries Unit,SPACELABS HEALTHCARE LTD,IN243160,8.50,573 2741 35,
Department of Health,CT Revenue Funds,06/04/2017,Radiotherapy Equipment,Whitchurch Hospital Minor Injuries Unit,SPACELABS HEALTHCARE LTD,IN243160,24.28,573 2741 35,
Department of Health,CT Revenue Funds,06/04/2017,Refuse Collection,Estates Management,BIFFA WASTE SERVICES LTD,612M10378,2824.75,537 9116 27,
Department of Health,CT Revenue Funds,06/04/2017,Rent,Dale Acre Way,TRINITY HEALTHCARE TELFORD LTD,33,3750.00,,
Department of Health,CT Revenue Funds,06/04/2017,Special Loan Equipment,Ludlow Hospital Inpatient Wards,PREMIERE HEALTHCARE,53772,86.45,,
Department of Health,CT Revenue Funds,06/04/2017,Special Loan Equipment,Ludlow Hospital Inpatient Wards,PREMIERE HEALTHCARE,53772,17.29,,
Department of Health,CT Revenue Funds,06/04/2017,Special Loan Equipment,Ludlow Hospital Inpatient Wards,PREMIERE HEALTHCARE,53773,10.92,,
Department of Health,CT Revenue Funds,06/04/2017,Special Loan Equipment,Ludlow Hospital Inpatient Wards,PREMIERE HEALTHCARE,53773,54.60,,
Department of Health,CT Revenue Funds,06/04/2017,Special Loan Equipment,Ludlow Hospital Inpatient Wards,PREMIERE HEALTHCARE,53774,54.60,,
Department of Health,CT Revenue Funds,06/04/2017,Special Loan Equipment,Ludlow Hospital Inpatient Wards,PREMIERE HEALTHCARE,53774,10.92,,
Department of Health,CT Revenue Funds,06/04/2017,Special Loan Equipment,Ludlow Hospital Inpatient Wards,PREMIERE HEALTHCARE,53775,0.91,,
Department of Health,CT Revenue Funds,06/04/2017,Special Loan Equipment,Ludlow Hospital Inpatient Wards,PREMIERE HEALTHCARE,53775,4.55,,
Department of Health,CT Revenue Funds,06/04/2017,Special Seating,Wheelchair Services,SPECIALISED ORTHOTIC SERVICES LTD,0000709761,9.92,616 9753 09,
Department of Health,CT Revenue Funds,06/04/2017,Special Seating,Wheelchair Services,SPECIALISED ORTHOTIC SERVICES LTD,0000709761,7.36,616 9753 09,
Department of Health,CT Revenue Funds,06/04/2017,Special Seating,Wheelchair Services,SPECIALISED ORTHOTIC SERVICES LTD,0000709761,10.08,616 9753 09,
Department of Health,CT Revenue Funds,06/04/2017,Special Seating,Wheelchair Services,SPECIALISED ORTHOTIC SERVICES LTD,0000709761,5.42,616 9753 09,
Department of Health,CT Revenue Funds,06/04/2017,Special Seating,Wheelchair Services,SPECIALISED ORTHOTIC SERVICES LTD,0000709761,5.16,616 9753 09,
Department of Health,CT Revenue Funds,06/04/2017,Special Seating,Wheelchair Services,SPECIALISED ORTHOTIC SERVICES LTD,0000709761,49.62,616 9753 09,
Department of Health,CT Revenue Funds,06/04/2017,Special Seating,Wheelchair Services,SPECIALISED ORTHOTIC SERVICES LTD,0000709761,36.80,616 9753 09,
Department of Health,CT Revenue Funds,06/04/2017,Special Seating,Wheelchair Services,SPECIALISED ORTHOTIC SERVICES LTD,0000709761,25.79,616 9753 09,
Department of Health,CT Revenue Funds,06/04/2017,Special Seating,Wheelchair Services,SPECIALISED ORTHOTIC SERVICES LTD,0000709761,27.08,616 9753 09,
Department of Health,CT Revenue Funds,06/04/2017,Special Seating,Wheelchair Services,SPECIALISED ORTHOTIC SERVICES LTD,0000709761,50.40,616 9753 09,
Department of Health,CT Revenue Funds,06/04/2017,Special Seating,Community Equipment Stores,ACCORA,042316,250.00,,
Department of Health,CT Revenue Funds,06/04/2017,Special Seating,Community Equipment Stores,ACCORA,042316,1885.00,,
Department of Health,CT Revenue Funds,06/04/2017,Special Seating,Community Equipment Stores,ACCORA,042316,-1885.00,,
Department of Health,CT Revenue Funds,06/04/2017,Special Seating,Community Equipment Stores,ACCORA,042316,1885.00,,
Department of Health,CT Revenue Funds,06/04/2017,Special Seating,Community Equipment Stores,ACCORA,042316,-30.00,,
Department of Health,CT Revenue Funds,06/04/2017,Special Seating,Community Equipment Stores,ACCORA,042316,-6.00,,
Department of Health,CT Revenue Funds,06/04/2017,Special Seating,Community Equipment Stores,ACCORA,042316,50.00,,
Department of Health,CT Revenue Funds,06/04/2017,Special Seating,Community Equipment Stores,ACCORA,042316,377.00,,
Department of Health,CT Revenue Funds,06/04/2017,Special Seating,Community Equipment Stores,ULTIMATE HEALTHCARE,237027,816.00,,
Department of Health,CT Revenue Funds,06/04/2017,Special Seating,Community Equipment Stores,ULTIMATE HEALTHCARE,237027,163.20,,
Department of Health,CT Revenue Funds,06/04/2017,Special Seating,Community Equipment Stores,ULTIMATE HEALTHCARE,237028,816.00,,
Department of Health,CT Revenue Funds,06/04/2017,Special Seating,Community Equipment Stores,ULTIMATE HEALTHCARE,237028,163.20,,
Department of Health,CT Revenue Funds,06/04/2017,Special Seating,Community Equipment Stores,ULTIMATE HEALTHCARE,237029,816.00,,
Department of Health,CT Revenue Funds,06/04/2017,Special Seating,Community Equipment Stores,ULTIMATE HEALTHCARE,237029,163.20,,
Department of Health,CT Revenue Funds,06/04/2017,Special Seating,Community Equipment Stores,ULTIMATE HEALTHCARE,237030,816.00,,
Department of Health,CT Revenue Funds,06/04/2017,Special Seating,Community Equipment Stores,ULTIMATE HEALTHCARE,237030,163.20,,
Department of Health,CT Revenue Funds,06/04/2017,Special Seating,Community Equipment Stores,FRONTIER THERAPEUTICS,434358,158.96,700 8536 57,
Department of Health,CT Revenue Funds,06/04/2017,Special Seating,Community Equipment Stores,FRONTIER THERAPEUTICS,434358,794.80,700 8536 57,
Department of Health,CT Revenue Funds,06/04/2017,Special Seating,Community Equipment Stores,FRONTIER THERAPEUTICS,434359,794.80,700 8536 57,
Department of Health,CT Revenue Funds,06/04/2017,Special Seating,Community Equipment Stores,FRONTIER THERAPEUTICS,434359,158.96,700 8536 57,
Department of Health,CT Revenue Funds,06/04/2017,Special Seating,Community Equipment Stores,FRONTIER THERAPEUTICS,434407,-5.97,700 8536 57,
Department of Health,CT Revenue Funds,06/04/2017,Special Seating,Community Equipment Stores,FRONTIER THERAPEUTICS,434407,-29.85,700 8536 57,
Department of Health,CT Revenue Funds,06/04/2017,Special Seating,Community Equipment Stores,FRONTIER THERAPEUTICS,434407,745.90,700 8536 57,
Department of Health,CT Revenue Funds,06/04/2017,Special Seating,Community Equipment Stores,FRONTIER THERAPEUTICS,434407,745.90,700 8536 57,
Department of Health,CT Revenue Funds,06/04/2017,Special Seating,Community Equipment Stores,FRONTIER THERAPEUTICS,434407,149.18,700 8536 57,
Department of Health,CT Revenue Funds,06/04/2017,Special Seating,Community Equipment Stores,FRONTIER THERAPEUTICS,434407,149.18,700 8536 57,
Department of Health,CT Revenue Funds,06/04/2017,Special Seating,Community Equipment Stores,FRONTIER THERAPEUTICS,434407,-29.85,700 8536 57,
Department of Health,CT Revenue Funds,06/04/2017,Special Seating,Community Equipment Stores,FRONTIER THERAPEUTICS,434407,-5.97,700 8536 57,
Department of Health,CT Revenue Funds,06/04/2017,Staff Uniforms & Clothing,Ludlow Hospital Catering,NISBETS,14284802,-7.00,974 8030 00,
Department of Health,CT Revenue Funds,06/04/2017,Staff Uniforms & Clothing,Ludlow Hospital Catering,NISBETS,14284802,-1.05,974 8030 00,
Department of Health,CT Revenue Funds,06/04/2017,Staff Uniforms & Clothing,Ludlow Hospital Catering,NISBETS,14284802,7.00,974 8030 00,
Department of Health,CT Revenue Funds,06/04/2017,Staff Uniforms & Clothing,Ludlow Hospital Catering,NISBETS,14284802,-5.25,974 8030 00,
Department of Health,CT Revenue Funds,06/04/2017,Staff Uniforms & Clothing,Ludlow Hospital Catering,NISBETS,14284802,34.99,974 8030 00,
Department of Health,CT Revenue Funds,06/04/2017,Staff Uniforms & Clothing,Ludlow Hospital Catering,NISBETS,14284802,-1.05,974 8030 00,
Department of Health,CT Revenue Funds,06/04/2017,Staff Uniforms & Clothing,Ludlow Hospital Catering,NISBETS,14284802,7.00,974 8030 00,
Department of Health,CT Revenue Funds,06/04/2017,Staff Uniforms & Clothing,Ludlow Hospital Catering,NISBETS,14284802,1.05,974 8030 00,
Department of Health,CT Revenue Funds,06/04/2017,Staff Uniforms & Clothing,Ludlow Hospital Catering,NISBETS,14284802,-0.01,974 8030 00,
Department of Health,CT Revenue Funds,06/04/2017,Staff Uniforms & Clothing,Ludlow Hospital Catering,NISBETS,14441767,2.80,974 8030 00,
Department of Health,CT Revenue Funds,06/04/2017,Staff Uniforms & Clothing,Ludlow Hospital Catering,NISBETS,14441767,2.80,974 8030 00,
Department of Health,CT Revenue Funds,06/04/2017,Staff Uniforms & Clothing,Ludlow Hospital Catering,NISBETS,14441767,2.80,974 8030 00,
Department of Health,CT Revenue Funds,06/04/2017,Staff Uniforms & Clothing,Ludlow Hospital Catering,NISBETS,14441767,13.98,974 8030 00,
Department of Health,CT Revenue Funds,06/04/2017,Staff Uniforms & Clothing,Ludlow Hospital Catering,NISBETS,14441767,13.98,974 8030 00,
Department of Health,CT Revenue Funds,06/04/2017,Staff Uniforms & Clothing,Ludlow Hospital Catering,NISBETS,14441767,13.98,974 8030 00,
Department of Health,CT Revenue Funds,06/04/2017,Staff Uniforms & Clothing,Ludlow Hospital Catering,NISBETS,14441767,-0.02,974 8030 00,
Department of Health,CT Revenue Funds,06/04/2017,Staff Uniforms & Clothing,Tissue Viability Nurses (T&W),SIMON JERSEY LTD,8127146,5.16,732 3615 53,
Department of Health,CT Revenue Funds,06/04/2017,Staff Uniforms & Clothing,Tissue Viability Nurses (T&W),SIMON JERSEY LTD,8127146,2.45,732 3615 53,
Department of Health,CT Revenue Funds,06/04/2017,Staff Uniforms & Clothing,Tissue Viability Nurses (T&W),SIMON JERSEY LTD,8127146,1.10,732 3615 53,
Department of Health,CT Revenue Funds,06/04/2017,Staff Uniforms & Clothing,Tissue Viability Nurses (T&W),SIMON JERSEY LTD,8127146,19.00,732 3615 53,
Department of Health,CT Revenue Funds,06/04/2017,Staff Uniforms & Clothing,Tissue Viability Nurses (T&W),SIMON JERSEY LTD,8127146,5.50,732 3615 53,
Department of Health,CT Revenue Funds,06/04/2017,Staff Uniforms & Clothing,Tissue Viability Nurses (T&W),SIMON JERSEY LTD,8127146,3.80,732 3615 53,
Department of Health,CT Revenue Funds,06/04/2017,Staff Uniforms & Clothing,Tissue Viability Nurses (T&W),SIMON JERSEY LTD,8127146,25.80,732 3615 53,
Department of Health,CT Revenue Funds,06/04/2017,Staff Uniforms & Clothing,Tissue Viability Nurses (T&W),SIMON JERSEY LTD,8127146,12.24,732 3615 53,
Department of Health,CT Revenue Funds,06/04/2017,Staff Uniforms & Clothing,Bridgnorth Hospital Minor Injuries Unit,SIMON JERSEY LTD,8130897,2.58,732 3615 53,
Department of Health,CT Revenue Funds,06/04/2017,Staff Uniforms & Clothing,Bridgnorth Hospital Minor Injuries Unit,SIMON JERSEY LTD,8130897,2.93,732 3615 53,
Department of Health,CT Revenue Funds,06/04/2017,Staff Uniforms & Clothing,Bridgnorth Hospital Minor Injuries Unit,SIMON JERSEY LTD,8130897,14.64,732 3615 53,
Department of Health,CT Revenue Funds,06/04/2017,Staff Uniforms & Clothing,Bridgnorth Hospital Minor Injuries Unit,SIMON JERSEY LTD,8130897,12.90,732 3615 53,
Department of Health,CT Revenue Funds,06/04/2017,Staff Uniforms & Clothing,South East Interdisciplinary Teams,SIMON JERSEY LTD,8131737,0.88,732 3615 53,
Department of Health,CT Revenue Funds,06/04/2017,Staff Uniforms & Clothing,South East Interdisciplinary Teams,SIMON JERSEY LTD,8131737,36.72,732 3615 53,
Department of Health,CT Revenue Funds,06/04/2017,Staff Uniforms & Clothing,South East Interdisciplinary Teams,SIMON JERSEY LTD,8131737,11.95,732 3615 53,
Department of Health,CT Revenue Funds,06/04/2017,Staff Uniforms & Clothing,South East Interdisciplinary Teams,SIMON JERSEY LTD,8131737,15.20,732 3615 53,
Department of Health,CT Revenue Funds,06/04/2017,Staff Uniforms & Clothing,South East Interdisciplinary Teams,SIMON JERSEY LTD,8131737,7.34,732 3615 53,
Department of Health,CT Revenue Funds,06/04/2017,Staff Uniforms & Clothing,South East Interdisciplinary Teams,SIMON JERSEY LTD,8131737,7.32,732 3615 53,
Department of Health,CT Revenue Funds,06/04/2017,Staff Uniforms & Clothing,South East Interdisciplinary Teams,SIMON JERSEY LTD,8131737,3.04,732 3615 53,
Department of Health,CT Revenue Funds,06/04/2017,Staff Uniforms & Clothing,South East Interdisciplinary Teams,SIMON JERSEY LTD,8131737,2.39,732 3615 53,
Department of Health,CT Revenue Funds,06/04/2017,Staff Uniforms & Clothing,South East Interdisciplinary Teams,SIMON JERSEY LTD,8131737,1.46,732 3615 53,
Department of Health,CT Revenue Funds,06/04/2017,Staff Uniforms & Clothing,South East Interdisciplinary Teams,SIMON JERSEY LTD,8131737,4.40,732 3615 53,
Department of Health,CT Revenue Funds,06/04/2017,Staff Uniforms & Clothing,Ludlow Hospital Inpatient Wards,SIMON JERSEY LTD,8134787,2.61,732 3615 53,
Department of Health,CT Revenue Funds,06/04/2017,Staff Uniforms & Clothing,Ludlow Hospital Inpatient Wards,SIMON JERSEY LTD,8134787,6.95,732 3615 53,
Department of Health,CT Revenue Funds,06/04/2017,Staff Uniforms & Clothing,Ludlow Hospital Inpatient Wards,SIMON JERSEY LTD,8134787,13.06,732 3615 53,
Department of Health,CT Revenue Funds,06/04/2017,Staff Uniforms & Clothing,Ludlow Hospital Inpatient Wards,SIMON JERSEY LTD,8134787,1.39,732 3615 53,
Department of Health,CT Revenue Funds,06/04/2017,Staff Uniforms & Clothing,Telford North Community Nursing,SIMON JERSEY LTD,8135312,1.10,732 3615 53,
Department of Health,CT Revenue Funds,06/04/2017,Staff Uniforms & Clothing,Telford North Community Nursing,SIMON JERSEY LTD,8135312,3.80,732 3615 53,
Department of Health,CT Revenue Funds,06/04/2017,Staff Uniforms & Clothing,Telford North Community Nursing,SIMON JERSEY LTD,8135312,6.45,732 3615 53,
Department of Health,CT Revenue Funds,06/04/2017,Staff Uniforms & Clothing,Telford North Community Nursing,SIMON JERSEY LTD,8135312,5.50,732 3615 53,
Department of Health,CT Revenue Funds,06/04/2017,Staff Uniforms & Clothing,Telford North Community Nursing,SIMON JERSEY LTD,8135312,19.00,732 3615 53,
Department of Health,CT Revenue Funds,06/04/2017,Staff Uniforms & Clothing,Telford North Community Nursing,SIMON JERSEY LTD,8135312,32.25,732 3615 53,
Department of Health,CT Revenue Funds,06/04/2017,Staff Uniforms & Clothing,South East Interdisciplinary Teams,SIMON JERSEY LTD,8135339,0.66,732 3615 53,
Department of Health,CT Revenue Funds,06/04/2017,Staff Uniforms & Clothing,South East Interdisciplinary Teams,SIMON JERSEY LTD,8135339,19.35,732 3615 53,
Department of Health,CT Revenue Funds,06/04/2017,Staff Uniforms & Clothing,South East Interdisciplinary Teams,SIMON JERSEY LTD,8135339,2.28,732 3615 53,
Department of Health,CT Revenue Funds,06/04/2017,Staff Uniforms & Clothing,South East Interdisciplinary Teams,SIMON JERSEY LTD,8135339,3.87,732 3615 53,
Department of Health,CT Revenue Funds,06/04/2017,Staff Uniforms & Clothing,South East Interdisciplinary Teams,SIMON JERSEY LTD,8135339,3.30,732 3615 53,
Department of Health,CT Revenue Funds,06/04/2017,Staff Uniforms & Clothing,South East Interdisciplinary Teams,SIMON JERSEY LTD,8135339,11.40,732 3615 53,
Department of Health,CT Revenue Funds,06/04/2017,Staff Uniforms & Clothing,Shrewsbury and Atcham North Interdisciplinary Teams,SIMON JERSEY LTD,8135567,11.95,732 3615 53,
Department of Health,CT Revenue Funds,06/04/2017,Staff Uniforms & Clothing,Shrewsbury and Atcham North Interdisciplinary Teams,SIMON JERSEY LTD,8135567,2.39,732 3615 53,
Department of Health,CT Revenue Funds,06/04/2017,Staff Uniforms & Clothing,South East Interdisciplinary Teams,SIMON JERSEY LTD,8138141,1.29,732 3615 53,
Department of Health,CT Revenue Funds,06/04/2017,Staff Uniforms & Clothing,South East Interdisciplinary Teams,SIMON JERSEY LTD,8138141,6.45,732 3615 53,
Department of Health,CT Revenue Funds,06/04/2017,Staff Uniforms & Clothing,Bridgnorth Hospital Inpatient Ward,SIMON JERSEY LTD,8138170,6.45,732 3615 53,
Department of Health,CT Revenue Funds,06/04/2017,Staff Uniforms & Clothing,Bridgnorth Hospital Inpatient Ward,SIMON JERSEY LTD,8138170,1.29,732 3615 53,
Department of Health,CT Revenue Funds,06/04/2017,Staff Uniforms & Clothing,Bridgnorth Hospital Inpatient Ward,SIMON JERSEY LTD,8138172,0.76,732 3615 53,
Department of Health,CT Revenue Funds,06/04/2017,Staff Uniforms & Clothing,Bridgnorth Hospital Inpatient Ward,SIMON JERSEY LTD,8138172,1.29,732 3615 53,
Department of Health,CT Revenue Funds,06/04/2017,Staff Uniforms & Clothing,Bridgnorth Hospital Inpatient Ward,SIMON JERSEY LTD,8138172,3.80,732 3615 53,
Department of Health,CT Revenue Funds,06/04/2017,Staff Uniforms & Clothing,Bridgnorth Hospital Inpatient Ward,SIMON JERSEY LTD,8138172,6.45,732 3615 53,
Department of Health,CT Revenue Funds,06/04/2017,Staff Uniforms & Clothing,Shrewsbury and Atcham South Interdisciplinary Teams,SIMON JERSEY LTD,8138658,1.52,732 3615 53,
